Body Name,Body,Service Area Catergorisation,Service Division Catergorisation,Responsible Unit,Expenses Type,Detailed Expenses Type,Expenses Code,Date,Transaction Number,Amount,Capital / Revenue,Supplier Name,Supplier ID
North East Lincolnshire Council,http://statistics.data.gov.uk/id/local-authority/00FC),Chief Executive,Director Of Finance,Backlog Maintenance,Cap Land/Build-Build Enh Wrk,Cap Land/Build-Build Enh Wrk,YA102,07/07/2016,418975,4526,CAPITAL,KES BUILDING MAINTENANCE LIMITED,100786
North East Lincolnshire Council,http://statistics.data.gov.uk/id/local-authority/00FC),Chief Executive,Director Of Finance,Backlog Maintenance,Cap Land/Build-Build Enh Wrk,Cap Land/Build-Build Enh Wrk,YA102,12/07/2016,419603,800,CAPITAL,J MELTON LTD,100636
North East Lincolnshire Council,http://statistics.data.gov.uk/id/local-authority/00FC),Chief Executive,Director Of Finance,Backlog Maintenance,Cap Land/Build-Build Enh Wrk,Cap Land/Build-Build Enh Wrk,YA102,11/07/2016,419268,7218,CAPITAL,KES BUILDING MAINTENANCE LIMITED,100786
North East Lincolnshire Council,http://statistics.data.gov.uk/id/local-authority/00FC),Chief Executive,Director Of Finance,Backlog Maintenance,Cap Land/Build-Build Enh Wrk,Cap Land/Build-Build Enh Wrk,YA102,11/07/2016,419274,86595.77,CAPITAL,KES BUILDING MAINTENANCE LIMITED,100786
North East Lincolnshire Council,http://statistics.data.gov.uk/id/local-authority/00FC),Chief Executive,Director Of Finance,Backlog Maintenance,Cap Land/Build-Build Enh Wrk,Cap Land/Build-Build Enh Wrk,YA102,14/07/2016,420163,3960,CAPITAL,STANNAH LIFT SERVICES LTD,100622
North East Lincolnshire Council,http://statistics.data.gov.uk/id/local-authority/00FC),Chief Executive,Director Of Finance,Property Rationalisation Prog,Cap Land/Build-Build Enh Wrk,Cap Land/Build-Build Enh Wrk,YA102,07/07/2016,418963,326.4,CAPITAL,ENGIE SERVICES LTD,133267
North East Lincolnshire Council,http://statistics.data.gov.uk/id/local-authority/00FC),Chief Executive,Director Of Finance,Property Rationalisation Prog,Cap Infrastr-Purchase,Cap Infrastr-Purchase,YC101,14/07/2016,420147,300,CAPITAL,UNITED CARLTON OFFICE SYSTEMS LTD,101652
North East Lincolnshire Council,http://statistics.data.gov.uk/id/local-authority/00FC),Chief Executive,Director Of Finance,Property Rationalisation Prog,Cap Land/Build-Build Enh Wrk,Cap Land/Build-Build Enh Wrk,YA102,14/07/2016,420169,19000,CAPITAL,JOHN SUTCLIFFE & SON LTD- IN ADMINISTRATION,134488
North East Lincolnshire Council,http://statistics.data.gov.uk/id/local-authority/00FC),Chief Executive,Ad Joint Delivery,Information System,Cap Intangible Assets,Cap Intangible Assets,YH101,28/07/2016,396037,13568.57,CAPITAL,CACI LTD,110598
North East Lincolnshire Council,http://statistics.data.gov.uk/id/local-authority/00FC),Chief Executive,Ad Joint Delivery,New Ict Framework,Cap Intangible Assets,Cap Intangible Assets,YH101,04/07/2016,417937,1000,CAPITAL,ESP SYSTEX LTD,102062
North East Lincolnshire Council,http://statistics.data.gov.uk/id/local-authority/00FC),Chief Executive,Ad Joint Delivery,New Ict Framework,Cap Intangible Assets,Cap Intangible Assets,YH101,14/07/2016,414608,1100,CAPITAL,FIRMSTEP,108310
North East Lincolnshire Council,http://statistics.data.gov.uk/id/local-authority/00FC),Chief Executive,Ad Joint Delivery,Cleethorpes Leis Cent Refurb,Cap Land/Build-Build Enh Wrk,Cap Land/Build-Build Enh Wrk,YA102,25/07/2016,420958,1980,CAPITAL,THE GELDER GROUP,103601
North East Lincolnshire Council,http://statistics.data.gov.uk/id/local-authority/00FC),Chief Executive,Ad Joint Delivery,Decommission Gy Swimming Pool,Cap Land/Build-Build Enh Wrk,Cap Land/Build-Build Enh Wrk,YA102,11/07/2016,419273,88334.38,CAPITAL,RHODAR LIMITED,107725
North East Lincolnshire Council,http://statistics.data.gov.uk/id/local-authority/00FC),Chief Executive,Ad Joint Delivery,Decommission Gy Swimming Pool,Cap Land/Build-Build Enh Wrk,Cap Land/Build-Build Enh Wrk,YA102,26/07/2016,421482,28500,CAPITAL,REDDISH DEMOLITION LIMITED,132796
North East Lincolnshire Council,http://statistics.data.gov.uk/id/local-authority/00FC),Chief Executive,Ad Joint Delivery,Shared Service Programme,Cap Intangible Assets,Cap Intangible Assets,YH101,07/07/2016,418925,3590.4,CAPITAL,PHOENIX SOFTWARE LTD,100753
North East Lincolnshire Council,http://statistics.data.gov.uk/id/local-authority/00FC),Chief Executive,Ad Joint Delivery,Ict Refresh 16-17,Cap Veh Plt Eqp-Purchase,Cap Veh Plt Eqp-Purchase,YB101,07/07/2016,406694,492,CAPITAL,SAFE CONTROL LTD,100989
North East Lincolnshire Council,http://statistics.data.gov.uk/id/local-authority/00FC),Chief Executive,Director Of Economy & Growth,Hps-Disabled Fac. Grants,Cap Grants To O/Side Sources,Cap Grants To O/Side Sources,YJ101,21/07/2016,420736,15193.36,CAPITAL,KES BUILDING MAINTENANCE LIMITED,100786
North East Lincolnshire Council,http://statistics.data.gov.uk/id/local-authority/00FC),Chief Executive,Director Of Economy & Growth,Hps-Disabled Fac. Grants,Cap Grants To O/Side Sources,Cap Grants To O/Side Sources,YJ101,19/07/2016,420259,350,CAPITAL,WESSEX LIFT CO LTD,126902
North East Lincolnshire Council,http://statistics.data.gov.uk/id/local-authority/00FC),Chief Executive,Director Of Economy & Growth,Hps-Disabled Fac. Grants,Cap Grants To O/Side Sources,Cap Grants To O/Side Sources,YJ101,19/07/2016,420260,8045,CAPITAL,WESSEX LIFT CO LTD,126902
North East Lincolnshire Council,http://statistics.data.gov.uk/id/local-authority/00FC),Chief Executive,Director Of Economy & Growth,Hps-Disabled Fac. Grants,Cap Grants To O/Side Sources,Cap Grants To O/Side Sources,YJ101,19/07/2016,420735,7320.09,CAPITAL,KES BUILDING MAINTENANCE LIMITED,100786
North East Lincolnshire Council,http://statistics.data.gov.uk/id/local-authority/00FC),Chief Executive,Director Of Economy & Growth,Hps-Disabled Fac. Grants,Cap Grants To O/Side Sources,Cap Grants To O/Side Sources,YJ101,21/07/2016,420885,7871.5,CAPITAL,VIC HANSEN BUILDING & JOINERY LTD,103981
North East Lincolnshire Council,http://statistics.data.gov.uk/id/local-authority/00FC),Chief Executive,Director Of Economy & Growth,Hps-Disabled Fac. Grants,Cap Grants To O/Side Sources,Cap Grants To O/Side Sources,YJ101,26/07/2016,421737,1515,CAPITAL,P G INGOLDBY & SONS LTD,100591
North East Lincolnshire Council,http://statistics.data.gov.uk/id/local-authority/00FC),Chief Executive,Director Of Economy & Growth,Hps-Disabled Fac. Grants,Cap Grants To O/Side Sources,Cap Grants To O/Side Sources,YJ101,18/07/2016,420227,7919.21,CAPITAL,TOPCON CONSTRUCTION LTD,108462
North East Lincolnshire Council,http://statistics.data.gov.uk/id/local-authority/00FC),Chief Executive,Director Of Economy & Growth,Hps-Disabled Fac. Grants,Cap Grants To O/Side Sources,Cap Grants To O/Side Sources,YJ101,07/07/2016,418622,4821.15,CAPITAL,TOPCON CONSTRUCTION LTD,108462
North East Lincolnshire Council,http://statistics.data.gov.uk/id/local-authority/00FC),Chief Executive,Director Of Economy & Growth,Hps-Disabled Fac. Grants,Cap Grants To O/Side Sources,Cap Grants To O/Side Sources,YJ101,21/07/2016,420898,5963.78,CAPITAL,OBAM LIFT SERVICES LTD,112666
North East Lincolnshire Council,http://statistics.data.gov.uk/id/local-authority/00FC),Chief Executive,Director Of Economy & Growth,Hps-Disabled Fac. Grants,Cap Grants To O/Side Sources,Cap Grants To O/Side Sources,YJ101,26/07/2016,421973,8505.66,CAPITAL,MEARS LTD,102433
North East Lincolnshire Council,http://statistics.data.gov.uk/id/local-authority/00FC),Chief Executive,Director Of Economy & Growth,Hps-Disabled Fac. Grants,Cap Grants To O/Side Sources,Cap Grants To O/Side Sources,YJ101,07/07/2016,418621,1658.68,CAPITAL,TOPCON CONSTRUCTION LTD,108462
North East Lincolnshire Council,http://statistics.data.gov.uk/id/local-authority/00FC),Chief Executive,Director Of Economy & Growth,Hps-Disabled Fac. Grants,Cap Grants To O/Side Sources,Cap Grants To O/Side Sources,YJ101,21/07/2016,421050,1753,CAPITAL,VIC HANSEN BUILDING & JOINERY LTD,103981
North East Lincolnshire Council,http://statistics.data.gov.uk/id/local-authority/00FC),Chief Executive,Director Of Economy & Growth,Hps-Disabled Fac. Grants,Cap Grants To O/Side Sources,Cap Grants To O/Side Sources,YJ101,28/07/2016,422711,8935.5,CAPITAL,P G INGOLDBY & SONS LTD,100591
North East Lincolnshire Council,http://statistics.data.gov.uk/id/local-authority/00FC),Chief Executive,Director Of Economy & Growth,Hps-Disabled Fac. Grants,Cap Grants To O/Side Sources,Cap Grants To O/Side Sources,YJ101,07/07/2016,418894,5561.47,CAPITAL,OBAM LIFT SERVICES LTD,112666
North East Lincolnshire Council,http://statistics.data.gov.uk/id/local-authority/00FC),Chief Executive,Director Of Economy & Growth,Hps-Disabled Fac. Grants,Cap Grants To O/Side Sources,Cap Grants To O/Side Sources,YJ101,07/07/2016,418893,3270,CAPITAL,DOLPHIN MOBILITY EAST MIDLANDS LTD,101317
North East Lincolnshire Council,http://statistics.data.gov.uk/id/local-authority/00FC),Chief Executive,Director Of Economy & Growth,Hps-Disabled Fac. Grants,Cap Grants To O/Side Sources,Cap Grants To O/Side Sources,YJ101,28/07/2016,421976,7327.47,CAPITAL,MEARS LTD,102433
North East Lincolnshire Council,http://statistics.data.gov.uk/id/local-authority/00FC),Chief Executive,Director Of Economy & Growth,Hps-Disabled Fac. Grants,Cap Grants To O/Side Sources,Cap Grants To O/Side Sources,YJ101,19/07/2016,420266,4115,CAPITAL,DOLPHIN MOBILITY EAST MIDLANDS LTD,101317
North East Lincolnshire Council,http://statistics.data.gov.uk/id/local-authority/00FC),Chief Executive,Director Of Economy & Growth,Hps-Disabled Fac. Grants,Cap Grants To O/Side Sources,Cap Grants To O/Side Sources,YJ101,29/07/2016,422280,1968,CAPITAL,ENGIE SERVICES LTD,133267
North East Lincolnshire Council,http://statistics.data.gov.uk/id/local-authority/00FC),Chief Executive,Director Of Economy & Growth,Hps-Disabled Fac. Grants,Cap Grants To O/Side Sources,Cap Grants To O/Side Sources,YJ101,29/07/2016,423196,10928.82,CAPITAL,MEARS LTD,102433
North East Lincolnshire Council,http://statistics.data.gov.uk/id/local-authority/00FC),Chief Executive,Director Of Economy & Growth,Hps-Disabled Fac. Grants,Cap Grants To O/Side Sources,Cap Grants To O/Side Sources,YJ101,07/07/2016,418883,2145,CAPITAL,DOLPHIN MOBILITY EAST MIDLANDS LTD,101317
North East Lincolnshire Council,http://statistics.data.gov.uk/id/local-authority/00FC),Chief Executive,Director Of Economy & Growth,Hps-Disabled Fac. Grants,Cap Grants To O/Side Sources,Cap Grants To O/Side Sources,YJ101,07/07/2016,418917,5167,CAPITAL,VIC HANSEN BUILDING & JOINERY LTD,103981
North East Lincolnshire Council,http://statistics.data.gov.uk/id/local-authority/00FC),Chief Executive,Director Of Economy & Growth,Hps-Disabled Fac. Grants,Cap Grants To O/Side Sources,Cap Grants To O/Side Sources,YJ101,19/07/2016,420263,950,CAPITAL,MARK BENNETT,101838
North East Lincolnshire Council,http://statistics.data.gov.uk/id/local-authority/00FC),Chief Executive,Director Of Economy & Growth,Hps-Disabled Fac. Grants,Cap Grants To O/Side Sources,Cap Grants To O/Side Sources,YJ101,21/07/2016,420897,1515,CAPITAL,OBAM LIFT SERVICES LTD,112666
North East Lincolnshire Council,http://statistics.data.gov.uk/id/local-authority/00FC),Chief Executive,Director Of Economy & Growth,Hps-Disabled Fac. Grants,Cap Grants To O/Side Sources,Cap Grants To O/Side Sources,YJ101,11/07/2016,418704,7870.71,CAPITAL,ENGIE SERVICES LTD,133267
North East Lincolnshire Council,http://statistics.data.gov.uk/id/local-authority/00FC),Chief Executive,Director Of Economy & Growth,Hps-Disabled Fac. Grants,Cap Grants To O/Side Sources,Cap Grants To O/Side Sources,YJ101,29/07/2016,423197,6224.4,CAPITAL,MEARS LTD,102433
North East Lincolnshire Council,http://statistics.data.gov.uk/id/local-authority/00FC),Chief Executive,Director Of Economy & Growth,Hps-Disabled Fac. Grants,Cap Grants To O/Side Sources,Cap Grants To O/Side Sources,YJ101,19/07/2016,420265,1544,CAPITAL,OBAM LIFT SERVICES LTD,112666
North East Lincolnshire Council,http://statistics.data.gov.uk/id/local-authority/00FC),Chief Executive,Director Of Economy & Growth,Hps-Disabled Fac. Grants,Cap Grants To O/Side Sources,Cap Grants To O/Side Sources,YJ101,21/07/2016,420945,10267,CAPITAL,VIC HANSEN BUILDING & JOINERY LTD,103981
North East Lincolnshire Council,http://statistics.data.gov.uk/id/local-authority/00FC),Chief Executive,Director Of Economy & Growth,Hps-Disabled Fac. Grants,Cap Grants To O/Side Sources,Cap Grants To O/Side Sources,YJ101,26/07/2016,421688,6736,CAPITAL,MARK BENNETT,101838
North East Lincolnshire Council,http://statistics.data.gov.uk/id/local-authority/00FC),Chief Executive,Director Of Economy & Growth,Hps-Disabled Fac. Grants,Cap Grants To O/Side Sources,Cap Grants To O/Side Sources,YJ101,19/07/2016,420269,1495,CAPITAL,OBAM LIFT SERVICES LTD,112666
North East Lincolnshire Council,http://statistics.data.gov.uk/id/local-authority/00FC),Chief Executive,Director Of Economy & Growth,Hps-Disabled Fac. Grants,Cap Grants To O/Side Sources,Cap Grants To O/Side Sources,YJ101,19/07/2016,420734,5633,CAPITAL,MARK BENNETT,101838
North East Lincolnshire Council,http://statistics.data.gov.uk/id/local-authority/00FC),Chief Executive,Director Of Economy & Growth,Hps-Disabled Fac. Grants,Cap Grants To O/Side Sources,Cap Grants To O/Side Sources,YJ101,19/07/2016,420752,6953,CAPITAL,MARK BENNETT,101838
North East Lincolnshire Council,http://statistics.data.gov.uk/id/local-authority/00FC),Chief Executive,Director Of Economy & Growth,Hps-Disabled Fac. Grants,Cap Grants To O/Side Sources,Cap Grants To O/Side Sources,YJ101,11/07/2016,418990,514,CAPITAL,ENGIE SERVICES LTD,133267
North East Lincolnshire Council,http://statistics.data.gov.uk/id/local-authority/00FC),Chief Executive,Director Of Economy & Growth,Hps-Disabled Fac. Grants,Cap Grants To O/Side Sources,Cap Grants To O/Side Sources,YJ101,07/07/2016,418895,2595,CAPITAL,OBAM LIFT SERVICES LTD,112666
North East Lincolnshire Council,http://statistics.data.gov.uk/id/local-authority/00FC),Chief Executive,Director Of Economy & Growth,Hps-Disabled Fac. Grants,Cap Grants To O/Side Sources,Cap Grants To O/Side Sources,YJ101,18/07/2016,420570,5651,CAPITAL,MARK BENNETT,101838
North East Lincolnshire Council,http://statistics.data.gov.uk/id/local-authority/00FC),Chief Executive,Director Of Economy & Growth,Hps-Disabled Fac. Grants,Cap Grants To O/Side Sources,Cap Grants To O/Side Sources,YJ101,19/07/2016,420258,463.6,CAPITAL,ENGIE SERVICES LTD,133267
North East Lincolnshire Council,http://statistics.data.gov.uk/id/local-authority/00FC),Chief Executive,Director Of Economy & Growth,Hps-Disabled Fac. Grants,Cap Grants To O/Side Sources,Cap Grants To O/Side Sources,YJ101,07/07/2016,418619,463.6,CAPITAL,ENGIE SERVICES LTD,133267
North East Lincolnshire Council,http://statistics.data.gov.uk/id/local-authority/00FC),Chief Executive,Director Of Economy & Growth,Hps-Disabled Fac. Grants,Cap Grants To O/Side Sources,Cap Grants To O/Side Sources,YJ101,07/07/2016,418860,300,CAPITAL,WESSEX LIFT CO LTD,126902
North East Lincolnshire Council,http://statistics.data.gov.uk/id/local-authority/00FC),Chief Executive,Director Of Economy & Growth,Local Transport Plan Schemes,Cap Infrastr-Build Enh Wrk,Cap Infrastr-Build Enh Wrk,YC102,28/07/2016,422778,9454.88,CAPITAL,C R REYNOLDS (CONSTRUCTION) LTD,103021
North East Lincolnshire Council,http://statistics.data.gov.uk/id/local-authority/00FC),Chief Executive,Director Of Economy & Growth,Local Transport Plan Schemes,Cap Land/Build-Build Enh Wrk,Cap Land/Build-Build Enh Wrk,YA102,18/07/2016,419389,684.73,CAPITAL,COFELY WORKPLACE LIMITED,123983
North East Lincolnshire Council,http://statistics.data.gov.uk/id/local-authority/00FC),Chief Executive,Director Of Economy & Growth,Local Transport Plan Schemes,Cap Infrastr-Build Enh Wrk,Cap Infrastr-Build Enh Wrk,YC102,18/07/2016,419389,1714.27,CAPITAL,COFELY WORKPLACE LIMITED,123983
North East Lincolnshire Council,http://statistics.data.gov.uk/id/local-authority/00FC),Chief Executive,Director Of Economy & Growth,Local Transport Plan Schemes,Cap Infrastr-Build Enh Wrk,Cap Infrastr-Build Enh Wrk,YC102,14/07/2016,418996,1200,CAPITAL,ONEWAY TM LIMITED,128602
North East Lincolnshire Council,http://statistics.data.gov.uk/id/local-authority/00FC),Chief Executive,Director Of Economy & Growth,Local Transport Plan Schemes,Cap Land/Build-Build Enh Wrk,Cap Land/Build-Build Enh Wrk,YA102,11/07/2016,419272,1169.97,CAPITAL,NORTHERN POWERGRID (YORKSHIRE) PLC,108328
North East Lincolnshire Council,http://statistics.data.gov.uk/id/local-authority/00FC),Chief Executive,Director Of Economy & Growth,Local Transport Plan Schemes,Cap Land/Build-Build Enh Wrk,Cap Land/Build-Build Enh Wrk,YA102,25/07/2016,420960,779.98,CAPITAL,NORTHERN POWERGRID (YORKSHIRE) PLC,108328
North East Lincolnshire Council,http://statistics.data.gov.uk/id/local-authority/00FC),Chief Executive,Director Of Economy & Growth,Local Transport Plan Schemes,Cap Land/Build-Build Enh Wrk,Cap Land/Build-Build Enh Wrk,YA102,11/07/2016,419271,1559.96,CAPITAL,NORTHERN POWERGRID (YORKSHIRE) PLC,108328
North East Lincolnshire Council,http://statistics.data.gov.uk/id/local-authority/00FC),Chief Executive,Director Of Economy & Growth,Local Transport Plan Schemes,Cap Infrastr-Prof Fees,Cap Infrastr-Prof Fees,YC103,07/07/2016,405331,690,CAPITAL,NATIONWIDE DATA COLLECTION,127290
North East Lincolnshire Council,http://statistics.data.gov.uk/id/local-authority/00FC),Chief Executive,Director Of Economy & Growth,Local Transport Plan Schemes,Cap Infrastr-Prof Fees,Cap Infrastr-Prof Fees,YC103,07/07/2016,416352,3900,CAPITAL,WATERMAN ASPEN LIMITED,101688
North East Lincolnshire Council,http://statistics.data.gov.uk/id/local-authority/00FC),Chief Executive,Director Of Economy & Growth,Local Transport Plan Schemes,Cap Infrastr-Prof Fees,Cap Infrastr-Prof Fees,YC103,14/07/2016,420175,1300,CAPITAL,AECOM LTD,133565
North East Lincolnshire Council,http://statistics.data.gov.uk/id/local-authority/00FC),Chief Executive,Director Of Economy & Growth,Local Transport Plan Schemes,Cap Infrastr-Build Enh Wrk,Cap Infrastr-Build Enh Wrk,YC102,04/07/2016,417951,7875,CAPITAL,J MCCANN & CO LTD,100841
North East Lincolnshire Council,http://statistics.data.gov.uk/id/local-authority/00FC),Chief Executive,Director Of Economy & Growth,Local Transport Plan Schemes,Cap Infrastr-Build Enh Wrk,Cap Infrastr-Build Enh Wrk,YC102,14/07/2016,419450,8230,CAPITAL,ONEWAY TM LIMITED,128602
North East Lincolnshire Council,http://statistics.data.gov.uk/id/local-authority/00FC),Chief Executive,Director Of Economy & Growth,Local Transport Plan Schemes,Cap Infrastr-Build Enh Wrk,Cap Infrastr-Build Enh Wrk,YC102,14/07/2016,420134,2092.28,CAPITAL,SPECIALIST SURFACING LIMITED,100579
North East Lincolnshire Council,http://statistics.data.gov.uk/id/local-authority/00FC),Chief Executive,Director Of Economy & Growth,Local Transport Plan Schemes,Cap Infrastr-Build Enh Wrk,Cap Infrastr-Build Enh Wrk,YC102,25/07/2016,419005,775.85,CAPITAL,HUMBERSIDE MATERIALS LABORATORY LTD,122103
North East Lincolnshire Council,http://statistics.data.gov.uk/id/local-authority/00FC),Chief Executive,Director Of Economy & Growth,Local Transport Plan Schemes,Cap Infrastr-Build Enh Wrk,Cap Infrastr-Build Enh Wrk,YC102,25/07/2016,419004,941.24,CAPITAL,HUMBERSIDE MATERIALS LABORATORY LTD,122103
North East Lincolnshire Council,http://statistics.data.gov.uk/id/local-authority/00FC),Chief Executive,Director Of Economy & Growth,Local Transport Plan Schemes,Cap Infrastr-Build Enh Wrk,Cap Infrastr-Build Enh Wrk,YC102,14/07/2016,419668,740,CAPITAL,P H CONSTRUCTION SERVICES LTD,102107
North East Lincolnshire Council,http://statistics.data.gov.uk/id/local-authority/00FC),Chief Executive,Director Of Economy & Growth,Local Transport Plan Schemes,Cap Land/Build-Build Enh Wrk,Cap Land/Build-Build Enh Wrk,YA102,05/07/2016,417851,8165,CAPITAL,ADVANTAGE TSC & D LTD,109136
North East Lincolnshire Council,http://statistics.data.gov.uk/id/local-authority/00FC),Chief Executive,Director Of Economy & Growth,Local Transport Plan Schemes,Cap Infrastr-Purchase,Cap Infrastr-Purchase,YC101,07/07/2016,418550,510.57,CAPITAL,SPECIALIST SURFACING LIMITED,100579
North East Lincolnshire Council,http://statistics.data.gov.uk/id/local-authority/00FC),Chief Executive,Director Of Economy & Growth,Local Transport Plan Schemes,Cap Land/Build-Build Enh Wrk,Cap Land/Build-Build Enh Wrk,YA102,07/07/2016,417933,555,CAPITAL,J MCCANN & CO LTD,100841
North East Lincolnshire Council,http://statistics.data.gov.uk/id/local-authority/00FC),Chief Executive,Director Of Economy & Growth,Freeman Street Regeneration,Cap Invest Prop-Build Enh Wrk,Cap Invest Prop-Build Enh Wrk,YE102,11/07/2016,418693,2163.9,CAPITAL,GHETTOPARK LIMITED,123682
North East Lincolnshire Council,http://statistics.data.gov.uk/id/local-authority/00FC),Chief Executive,Director Of Economy & Growth,Housing Assist Grants And Loan,Cap Grants To O/Side Sources,Cap Grants To O/Side Sources,YJ101,26/07/2016,421591,2172,CAPITAL,MAYNE GAS HEATING LTD,101861
North East Lincolnshire Council,http://statistics.data.gov.uk/id/local-authority/00FC),Chief Executive,Director Of Economy & Growth,Housing Assist Grants And Loan,Cap Grants To O/Side Sources,Cap Grants To O/Side Sources,YJ101,21/07/2016,420884,4423.88,CAPITAL,F R TOWNSEND & CO LTD,104217
North East Lincolnshire Council,http://statistics.data.gov.uk/id/local-authority/00FC),Chief Executive,Director Of Economy & Growth,Housing Assist Grants And Loan,Cap Grants To O/Side Sources,Cap Grants To O/Side Sources,YJ101,11/07/2016,418704,1515.6,CAPITAL,ENGIE SERVICES LTD,133267
North East Lincolnshire Council,http://statistics.data.gov.uk/id/local-authority/00FC),Chief Executive,Director Of Economy & Growth,Housing Assist Grants And Loan,Cap Grants To O/Side Sources,Cap Grants To O/Side Sources,YJ101,28/07/2016,421596,7320,CAPITAL,VIC HANSEN BUILDING & JOINERY LTD,103981
North East Lincolnshire Council,http://statistics.data.gov.uk/id/local-authority/00FC),Chief Executive,Director Of Economy & Growth,Housing Assist Grants And Loan,Cap Grants To O/Side Sources,Cap Grants To O/Side Sources,YJ101,26/07/2016,421566,2736,CAPITAL,MAYNE GAS HEATING LTD,101861
North East Lincolnshire Council,http://statistics.data.gov.uk/id/local-authority/00FC),Chief Executive,Director Of Economy & Growth,Derelict Land & Comm Prop,Cap Grants To O/Side Sources,Cap Grants To O/Side Sources,YJ101,11/07/2016,418704,11997.6,CAPITAL,ENGIE SERVICES LTD,133267
North East Lincolnshire Council,http://statistics.data.gov.uk/id/local-authority/00FC),Chief Executive,Director Of Economy & Growth,A18 - A180 Link Road,Cap Infrastr-Build Enh Wrk,Cap Infrastr-Build Enh Wrk,YC102,21/07/2016,418971,148175.97,CAPITAL,I & H BROWN LTD,129380
North East Lincolnshire Council,http://statistics.data.gov.uk/id/local-authority/00FC),Chief Executive,Director Of Economy & Growth,Victoria Mills,Cap Land/Build-Build Enh Wrk,Cap Land/Build-Build Enh Wrk,YA102,12/07/2016,419633,133249.39,CAPITAL,LINDUM GROUP LIMITED,101185
North East Lincolnshire Council,http://statistics.data.gov.uk/id/local-authority/00FC),Chief Executive,Director Of Economy & Growth,Victoria Mills,Cap Land/Build-Prof Fees,Cap Land/Build-Prof Fees,YA103,21/07/2016,426674,1700,CAPITAL,REDACTED PERSONAL INFORMATION,REDACTED PERSONAL INFORMATION
North East Lincolnshire Council,http://statistics.data.gov.uk/id/local-authority/00FC),Chief Executive,Director Of Economy & Growth,Victoria Mills,Cap Land/Build-Prof Fees,Cap Land/Build-Prof Fees,YA103,05/07/2016,417964,20000,CAPITAL,ENGIE SERVICES LTD,133267
North East Lincolnshire Council,http://statistics.data.gov.uk/id/local-authority/00FC),Chief Executive,Director Of Economy & Growth,Victoria Mills,Cap Land/Build-Prof Fees,Cap Land/Build-Prof Fees,YA103,05/07/2016,417965,4128,CAPITAL,ENGIE SERVICES LTD,133267
North East Lincolnshire Council,http://statistics.data.gov.uk/id/local-authority/00FC),Chief Executive,Director Of Economy & Growth,Immingham Hub,Cap Land/Build-Build Enh Wrk,Cap Land/Build-Build Enh Wrk,YA102,11/07/2016,416709,30500,CAPITAL,F G LIBRARY PRODUCTS,119227
North East Lincolnshire Council,http://statistics.data.gov.uk/id/local-authority/00FC),Chief Executive,Director Of Economy & Growth,Immingham Hub,Cap Land/Build-Build Enh Wrk,Cap Land/Build-Build Enh Wrk,YA102,11/07/2016,416977,850,CAPITAL,D-TECH INTERNATIONAL LTD,102138
North East Lincolnshire Council,http://statistics.data.gov.uk/id/local-authority/00FC),Chief Executive,Director Of Economy & Growth,Immingham Hub,Cap Land/Build-Build Enh Wrk,Cap Land/Build-Build Enh Wrk,YA102,18/07/2016,419686,4943.72,CAPITAL,IMMINGHAM TOWN COUNCIL,101597
North East Lincolnshire Council,http://statistics.data.gov.uk/id/local-authority/00FC),Chief Executive,Director Of Economy & Growth,Immingham Hub,Cap Land/Build-Build Enh Wrk,Cap Land/Build-Build Enh Wrk,YA102,18/07/2016,419686,850,CAPITAL,IMMINGHAM TOWN COUNCIL,101597
North East Lincolnshire Council,http://statistics.data.gov.uk/id/local-authority/00FC),Chief Executive,Director Of Economy & Growth,Immingham Hub,Cap Land/Build-Build Enh Wrk,Cap Land/Build-Build Enh Wrk,YA102,26/07/2016,421970,1050,CAPITAL,W R CULLUM,100811
North East Lincolnshire Council,http://statistics.data.gov.uk/id/local-authority/00FC),Chief Executive,Director Of Economy & Growth,Victoria St Refresh,Cap Infrastr-Build Enh Wrk,Cap Infrastr-Build Enh Wrk,YC102,18/07/2016,419951,1960,CAPITAL,SOVEREIGN SIGNS LTD,125963
North East Lincolnshire Council,http://statistics.data.gov.uk/id/local-authority/00FC),Chief Executive,Director Of Economy & Growth,Cartergate Office Development,Cap Invest Prop-Build Enh Wrk,Cap Invest Prop-Build Enh Wrk,YE102,26/07/2016,421985,772796.97,CAPITAL,THE GELDER GROUP,103601
North East Lincolnshire Council,http://statistics.data.gov.uk/id/local-authority/00FC),Chief Executive,Director Of Economy & Growth,Cartergate Office Development,Cap Invest Prop-Prof Fees,Cap Invest Prop-Prof Fees,YE103,12/07/2016,418914,12000,CAPITAL,ENGIE SERVICES LTD,133267
North East Lincolnshire Council,http://statistics.data.gov.uk/id/local-authority/00FC),Chief Executive,Director Of Economy & Growth,Town Centre Works Lep,Cap Infrastr-Build Enh Wrk,Cap Infrastr-Build Enh Wrk,YC102,07/07/2016,418836,366.63,CAPITAL,NORTHERN POWERGRID (YORKSHIRE) PLC,108328
North East Lincolnshire Council,http://statistics.data.gov.uk/id/local-authority/00FC),Chief Executive,Director Of Economy & Growth,Town Centre Works Lep,Cap Infrastr-Build Enh Wrk,Cap Infrastr-Build Enh Wrk,YC102,28/07/2016,421129,169015.45,CAPITAL,PBS CONSTRUCTION (NORTH EAST) LTD,127459
North East Lincolnshire Council,http://statistics.data.gov.uk/id/local-authority/00FC),Chief Executive,Director Of Economy & Growth,Town Centre Works Lep,Cap Infrastr-Build Enh Wrk,Cap Infrastr-Build Enh Wrk,YC102,14/07/2016,419669,400,CAPITAL,P H CONSTRUCTION SERVICES LTD,102107
North East Lincolnshire Council,http://statistics.data.gov.uk/id/local-authority/00FC),Chief Executive,Director Of Economy & Growth,Town Centre Works Lep,Cap Infrastr-Build Enh Wrk,Cap Infrastr-Build Enh Wrk,YC102,26/07/2016,420463,300,CAPITAL,THE CITY OF HULL ENVIRONMENT FORUM,108032
North East Lincolnshire Council,http://statistics.data.gov.uk/id/local-authority/00FC),Chief Executive,Director Of Economy & Growth,Car Pk Ticket Machine Upgrade,Cap Land/Build-Build Enh Wrk,Cap Land/Build-Build Enh Wrk,YA102,18/07/2016,419389,5040,CAPITAL,COFELY WORKPLACE LIMITED,123983
North East Lincolnshire Council,http://statistics.data.gov.uk/id/local-authority/00FC),Chief Executive,Director Of Economy & Growth,Car Pk Ticket Machine Upgrade,Cap Land/Build-Build Enh Wrk,Cap Land/Build-Build Enh Wrk,YA102,18/07/2016,420166,-5040,CAPITAL,COFELY WORKPLACE LIMITED,123983
North East Lincolnshire Council,http://statistics.data.gov.uk/id/local-authority/00FC),Chief Executive,Director Of Economy & Growth,Shiip Scheme,Cap Land/Build-Prof Fees,Cap Land/Build-Prof Fees,YA103,05/07/2016,417708,45950,CAPITAL,ENGIE SERVICES LTD,133267
North East Lincolnshire Council,http://statistics.data.gov.uk/id/local-authority/00FC),Chief Executive,Director Of Economy & Growth,Shiip Scheme,Cap Infrastr-Prof Fees,Cap Infrastr-Prof Fees,YC103,26/07/2016,419689,10875,CAPITAL,CLUGSTON SURVEY SERVICES,105668
North East Lincolnshire Council,http://statistics.data.gov.uk/id/local-authority/00FC),Chief Executive,Director Of Economy & Growth,Shiip Scheme,Cap Infrastr-Prof Fees,Cap Infrastr-Prof Fees,YC103,26/07/2016,420911,4720,CAPITAL,ENGIE SERVICES LTD,133267
North East Lincolnshire Council,http://statistics.data.gov.uk/id/local-authority/00FC),Chief Executive,Director Of Economy & Growth,Shiip Scheme,Cap Infrastr-Prof Fees,Cap Infrastr-Prof Fees,YC103,26/07/2016,421967,921.12,CAPITAL,HUMBERSIDE MATERIALS LABORATORY LTD,122103
North East Lincolnshire Council,http://statistics.data.gov.uk/id/local-authority/00FC),Chief Executive,Director Of Economy & Growth,Shiip Scheme,Cap Infrastr-Build Enh Wrk,Cap Infrastr-Build Enh Wrk,YC102,04/07/2016,417869,2254,CAPITAL,HUMBERSIDE MATERIALS LABORATORY LTD,122103
North East Lincolnshire Council,http://statistics.data.gov.uk/id/local-authority/00FC),Chief Executive,Director Of Economy & Growth,Catch Offshore,Cap Land/Build-Build Enh Wrk,Cap Land/Build-Build Enh Wrk,YA102,21/07/2016,420850,1112.91,CAPITAL,ENGIE SERVICES LTD,133267
North East Lincolnshire Council,http://statistics.data.gov.uk/id/local-authority/00FC),Chief Executive,Director Of Economy & Growth,Catch Offshore,Cap Land/Build-Purchase,Cap Land/Build-Purchase,YA101,07/07/2016,419033,34450,CAPITAL,HM REVENUE AND CUSTOMS,129635
North East Lincolnshire Council,http://statistics.data.gov.uk/id/local-authority/00FC),Chief Executive,Director Of Economy & Growth,Catch Offshore,Cap Land/Build-Build Enh Wrk,Cap Land/Build-Build Enh Wrk,YA102,12/07/2016,419601,11550,CAPITAL,DELTA-SIMONS ENVIRONMENTAL CONSULTANTS LTD,122455
North East Lincolnshire Council,http://statistics.data.gov.uk/id/local-authority/00FC),Chief Executive,Director Of Economy & Growth,Abbey Walk Car Park,Cap Land/Build-Build Enh Wrk,Cap Land/Build-Build Enh Wrk,YA102,04/07/2016,418116,88434.37,CAPITAL,MAKERS CONSTRUCTION LTD,134054
North East Lincolnshire Council,http://statistics.data.gov.uk/id/local-authority/00FC),Chief Executive,Director Of Finance,Chief Finance Officer,Equip / Furniture / Materials,Promotions,LA124,29/07/2016,423193,6116.5,REVENUE,COMMUNITY PRESS OFFICE,101728
North East Lincolnshire Council,http://statistics.data.gov.uk/id/local-authority/00FC),Chief Executive,Director Of Finance,Chief Finance Officer,Equip / Furniture / Materials,Promotions,LA124,25/07/2016,420717,10000,REVENUE,GREEN FUTURES,102397
North East Lincolnshire Council,http://statistics.data.gov.uk/id/local-authority/00FC),Chief Executive,Director Of Finance,Chief Exec & Support,Direct Transport Costs,Hired Transport - Employees,JA101,26/07/2016,421966,397.74,REVENUE,SCOT GROUP LTD T/A THRIFTY CAR & VAN RENTAL,130539
North East Lincolnshire Council,http://statistics.data.gov.uk/id/local-authority/00FC),Chief Executive,Director Of Finance,Chief Exec & Support,Contributions To Provisions,Contributions - Third Sector,LK102,28/07/2016,422234,500,REVENUE,PCC HUMBERSIDE,120398
North East Lincolnshire Council,http://statistics.data.gov.uk/id/local-authority/00FC),Chief Executive,Director Of Finance,Chief Exec & Support,Private Contractors,Third Party Prov - Private,PH101,07/07/2016,418929,647.5,REVENUE,TOTAL MERCHANDISE LTD,134343
North East Lincolnshire Council,http://statistics.data.gov.uk/id/local-authority/00FC),Chief Executive,Director Of Finance,Cfs Assets & Pc Programme,Car Allowances,Travel - Employees,JF101,25/07/2016,421958,-198,REVENUE,CLICK TRAVEL,127476
North East Lincolnshire Council,http://statistics.data.gov.uk/id/local-authority/00FC),Chief Executive,Director Of Finance,Cfs Assets & Pc Programme,Rates,Rates,GD101,14/07/2016,419373,40754,REVENUE,NORTH EAST LINCOLNSHIRE COUNCIL,100894
North East Lincolnshire Council,http://statistics.data.gov.uk/id/local-authority/00FC),Chief Executive,Director Of Finance,Cfs Assets & Pc Programme,Rates,Rates,GD101,14/07/2016,419784,2087.4,REVENUE,NORTH EAST LINCOLNSHIRE COUNCIL,100894
North East Lincolnshire Council,http://statistics.data.gov.uk/id/local-authority/00FC),Chief Executive,Director Of Finance,Facilities Management,Rep Alterations Maint Building,Buildings - Repairs And Maint,GA102,28/07/2016,422615,377.86,REVENUE,ENGIE SERVICES LTD,133267
North East Lincolnshire Council,http://statistics.data.gov.uk/id/local-authority/00FC),Chief Executive,Director Of Finance,Facilities Management,Rep Alterations Maint Building,Security Alarms And Cctv,GA101,07/07/2016,418935,1399.77,REVENUE,SECOM PLC,100771
North East Lincolnshire Council,http://statistics.data.gov.uk/id/local-authority/00FC),Chief Executive,Director Of Finance,Facilities Management,Energy Costs,Electricity,GB102,11/07/2016,419037,1409.07,REVENUE,WOODLANDS ACADEMY,132649
North East Lincolnshire Council,http://statistics.data.gov.uk/id/local-authority/00FC),Chief Executive,Director Of Finance,Facilities Management,Energy Costs,Gas,GB101,21/07/2016,421070,512.3,REVENUE,BRITISH GAS TRADING LTD,101507
North East Lincolnshire Council,http://statistics.data.gov.uk/id/local-authority/00FC),Chief Executive,Director Of Finance,Facilities Management,Rates,Rates,GD101,11/07/2016,419298,16898,REVENUE,NORTH EAST LINCOLNSHIRE COUNCIL,100894
North East Lincolnshire Council,http://statistics.data.gov.uk/id/local-authority/00FC),Chief Executive,Director Of Finance,Facilities Management,Water Services,Water,GE101,26/07/2016,422158,833.67,REVENUE,ANGLIAN WATER,100508
North East Lincolnshire Council,http://statistics.data.gov.uk/id/local-authority/00FC),Chief Executive,Director Of Finance,Facilities Management,Cleaning And Domestic Supplies,Cleaning - Services,GH102,07/07/2016,418959,603.31,REVENUE,FUTURE CLEANING SERVICES LTD,102557
North East Lincolnshire Council,http://statistics.data.gov.uk/id/local-authority/00FC),Chief Executive,Director Of Finance,Facilities Management,Cleaning And Domestic Supplies,Cleaning - Services,GH102,07/07/2016,418964,603.31,REVENUE,FUTURE CLEANING SERVICES LTD,102557
North East Lincolnshire Council,http://statistics.data.gov.uk/id/local-authority/00FC),Chief Executive,Director Of Finance,Facilities Management,Cleaning And Domestic Supplies,Cleaning - Services,GH102,07/07/2016,418965,603.31,REVENUE,FUTURE CLEANING SERVICES LTD,102557
North East Lincolnshire Council,http://statistics.data.gov.uk/id/local-authority/00FC),Chief Executive,Director Of Finance,Facilities Management,Cleaning And Domestic Supplies,Cleaning - Services,GH102,07/07/2016,418966,603.31,REVENUE,FUTURE CLEANING SERVICES LTD,102557
North East Lincolnshire Council,http://statistics.data.gov.uk/id/local-authority/00FC),Chief Executive,Director Of Finance,Facilities Management,Rates,Rates,GD101,11/07/2016,419293,6413,REVENUE,NORTH EAST LINCOLNSHIRE COUNCIL,100894
North East Lincolnshire Council,http://statistics.data.gov.uk/id/local-authority/00FC),Chief Executive,Director Of Finance,Facilities Management,Water Services,Water,GE101,14/07/2016,419399,266.24,REVENUE,ANGLIAN WATER,100508
North East Lincolnshire Council,http://statistics.data.gov.uk/id/local-authority/00FC),Chief Executive,Director Of Finance,Facilities Management,Rep Alterations Maint Building,Buildings - Repairs And Maint,GA102,05/07/2016,418255,364.35,REVENUE,ENGIE SERVICES LTD,133267
North East Lincolnshire Council,http://statistics.data.gov.uk/id/local-authority/00FC),Chief Executive,Director Of Finance,Facilities Management,Rates,Rates,GD101,11/07/2016,419292,4114,REVENUE,NORTH EAST LINCOLNSHIRE COUNCIL,100894
North East Lincolnshire Council,http://statistics.data.gov.uk/id/local-authority/00FC),Chief Executive,Director Of Finance,Facilities Management,Cleaning And Domestic Supplies,Refuse Collection,GH104,04/07/2016,418239,485.6,REVENUE,BIFFA WASTE SERVICES LTD,100515
North East Lincolnshire Council,http://statistics.data.gov.uk/id/local-authority/00FC),Chief Executive,Director Of Finance,Facilities Management,Energy Costs,Electricity,GB102,21/07/2016,420940,459.75,REVENUE,EDWARD HENEAGE PRIMARY (ACADEMY),111742
North East Lincolnshire Council,http://statistics.data.gov.uk/id/local-authority/00FC),Chief Executive,Director Of Finance,Facilities Management,Energy Costs,Gas,GB101,11/07/2016,419280,403.15,REVENUE,BRITISH GAS TRADING LTD,101507
North East Lincolnshire Council,http://statistics.data.gov.uk/id/local-authority/00FC),Chief Executive,Director Of Finance,Facilities Management,Rates,Rates,GD101,14/07/2016,419372,5445,REVENUE,NORTH EAST LINCOLNSHIRE COUNCIL,100894
North East Lincolnshire Council,http://statistics.data.gov.uk/id/local-authority/00FC),Chief Executive,Director Of Finance,Facilities Management,Rates,Rates,GD101,11/07/2016,419297,4114,REVENUE,NORTH EAST LINCOLNSHIRE COUNCIL,100894
North East Lincolnshire Council,http://statistics.data.gov.uk/id/local-authority/00FC),Chief Executive,Director Of Finance,Facilities Management,Cleaning And Domestic Supplies,Cleaning - Services,GH102,21/07/2016,420939,640,REVENUE,FOR UNDER FIVES LTD,100647
North East Lincolnshire Council,http://statistics.data.gov.uk/id/local-authority/00FC),Chief Executive,Director Of Finance,Facilities Management,Cleaning And Domestic Supplies,Refuse Collection,GH104,21/07/2016,421304,482.49,REVENUE,BELL WASTE CONTROL,101433
North East Lincolnshire Council,http://statistics.data.gov.uk/id/local-authority/00FC),Chief Executive,Director Of Finance,Facilities Management,Energy Costs,Electricity,GB102,07/07/2016,418936,332.94,REVENUE,NPOWER YORKSHIRE LTD,101525
North East Lincolnshire Council,http://statistics.data.gov.uk/id/local-authority/00FC),Chief Executive,Director Of Finance,Facilities Management,Energy Costs,Electricity,GB102,14/07/2016,420170,344,REVENUE,NPOWER YORKSHIRE LTD,101525
North East Lincolnshire Council,http://statistics.data.gov.uk/id/local-authority/00FC),Chief Executive,Director Of Finance,Facilities Management,Rates,Rates,GD101,11/07/2016,419295,6534,REVENUE,NORTH EAST LINCOLNSHIRE COUNCIL,100894
North East Lincolnshire Council,http://statistics.data.gov.uk/id/local-authority/00FC),Chief Executive,Director Of Finance,Facilities Management,Water Services,Water,GE101,04/07/2016,417998,336.2,REVENUE,ANGLIAN WATER,100508
North East Lincolnshire Council,http://statistics.data.gov.uk/id/local-authority/00FC),Chief Executive,Director Of Finance,Facilities Management,Energy Costs,Electricity,GB102,11/07/2016,419262,1617.83,REVENUE,EASTFIELD PRIMARY ACADEMY,121907
North East Lincolnshire Council,http://statistics.data.gov.uk/id/local-authority/00FC),Chief Executive,Director Of Finance,Facilities Management,Energy Costs,Electricity,GB102,14/07/2016,420182,338.48,REVENUE,EASTFIELD PRIMARY ACADEMY,121907
North East Lincolnshire Council,http://statistics.data.gov.uk/id/local-authority/00FC),Chief Executive,Director Of Finance,Facilities Management,Energy Costs,Electricity,GB102,14/07/2016,420183,338.4,REVENUE,EASTFIELD PRIMARY ACADEMY,121907
North East Lincolnshire Council,http://statistics.data.gov.uk/id/local-authority/00FC),Chief Executive,Director Of Finance,Facilities Management,Energy Costs,Heating Fuel,GB103,14/07/2016,420167,674.43,REVENUE,EASTFIELD PRIMARY ACADEMY,121907
North East Lincolnshire Council,http://statistics.data.gov.uk/id/local-authority/00FC),Chief Executive,Director Of Finance,Facilities Management,Rep Alterations Maint Building,Buildings - Repairs And Maint,GA102,11/07/2016,419277,1773.79,REVENUE,THRUNSCOE PRIMARY AND NURSERY ACADEMY,118749
North East Lincolnshire Council,http://statistics.data.gov.uk/id/local-authority/00FC),Chief Executive,Director Of Finance,Facilities Management,Rents,Service Charge,GC102,14/07/2016,420155,1307.54,REVENUE,THRUNSCOE PRIMARY AND NURSERY ACADEMY,118749
North East Lincolnshire Council,http://statistics.data.gov.uk/id/local-authority/00FC),Chief Executive,Director Of Finance,Facilities Management,Rents,Service Charge,GC102,14/07/2016,420156,2351.91,REVENUE,THRUNSCOE PRIMARY AND NURSERY ACADEMY,118749
North East Lincolnshire Council,http://statistics.data.gov.uk/id/local-authority/00FC),Chief Executive,Director Of Finance,Facilities Management,Rates,Rates,GD101,11/07/2016,419290,12300.75,REVENUE,NORTH EAST LINCOLNSHIRE COUNCIL,100894
North East Lincolnshire Council,http://statistics.data.gov.uk/id/local-authority/00FC),Chief Executive,Director Of Finance,Facilities Management,Cleaning And Domestic Supplies,Cleaning - Services,GH102,11/07/2016,419206,416,REVENUE,TULIP HEALTHCARE,101042
North East Lincolnshire Council,http://statistics.data.gov.uk/id/local-authority/00FC),Chief Executive,Director Of Finance,Facilities Management,Equip / Furniture / Materials,Equipment - Hire,LA102,20/07/2016,418135,331,REVENUE,VENDING ENTERPRISES,100635
North East Lincolnshire Council,http://statistics.data.gov.uk/id/local-authority/00FC),Chief Executive,Director Of Finance,Facilities Management,Rep Alterations Maint Building,Buildings - Repairs And Maint,GA102,07/07/2016,418252,433.01,REVENUE,ENGIE SERVICES LTD,133267
North East Lincolnshire Council,http://statistics.data.gov.uk/id/local-authority/00FC),Chief Executive,Director Of Finance,Facilities Management,Rep Alterations Maint Building,Security Alarms And Cctv,GA101,21/07/2016,421053,416,REVENUE,WILLOWS PRIMARY ACADEMY,120478
North East Lincolnshire Council,http://statistics.data.gov.uk/id/local-authority/00FC),Chief Executive,Director Of Finance,Facilities Management,Rep Alterations Maint Building,Security Alarms And Cctv,GA101,28/07/2016,422776,845,REVENUE,WILLOWS PRIMARY ACADEMY,120478
North East Lincolnshire Council,http://statistics.data.gov.uk/id/local-authority/00FC),Chief Executive,Director Of Finance,Facilities Management,Rep Alterations Maint Building,Security Alarms And Cctv,GA101,26/07/2016,421150,-224,REVENUE,WILLOWS PRIMARY ACADEMY,120478
North East Lincolnshire Council,http://statistics.data.gov.uk/id/local-authority/00FC),Chief Executive,Director Of Finance,Facilities Management,Rep Alterations Maint Building,Security Alarms And Cctv,GA101,26/07/2016,422140,688.6,REVENUE,NORTH EAST LINCOLNSHIRE COUNCIL,100894
North East Lincolnshire Council,http://statistics.data.gov.uk/id/local-authority/00FC),Chief Executive,Director Of Finance,Facilities Management,Energy Costs,Electricity,GB102,05/07/2016,418243,375.19,REVENUE,WILLOWS PRIMARY ACADEMY,120478
North East Lincolnshire Council,http://statistics.data.gov.uk/id/local-authority/00FC),Chief Executive,Director Of Finance,Facilities Management,Rents,Rent,GC101,11/07/2016,419296,11679.5,REVENUE,NORTH EAST LINCOLNSHIRE COUNCIL,100894
North East Lincolnshire Council,http://statistics.data.gov.uk/id/local-authority/00FC),Chief Executive,Director Of Finance,Facilities Management,Cleaning And Domestic Supplies,Cleaning - Services,GH102,11/07/2016,419036,787.01,REVENUE,FUTURE CLEANING SERVICES LTD,102557
North East Lincolnshire Council,http://statistics.data.gov.uk/id/local-authority/00FC),Chief Executive,Director Of Finance,Facilities Management,Cleaning And Domestic Supplies,Cleaning - Services,GH102,04/07/2016,418236,787.01,REVENUE,FUTURE CLEANING SERVICES LTD,102557
North East Lincolnshire Council,http://statistics.data.gov.uk/id/local-authority/00FC),Chief Executive,Director Of Finance,Facilities Management,Cleaning And Domestic Supplies,Cleaning - Services,GH102,18/07/2016,420473,1890.83,REVENUE,PHS GROUP LTD,100554
North East Lincolnshire Council,http://statistics.data.gov.uk/id/local-authority/00FC),Chief Executive,Director Of Finance,Facilities Management,Cleaning And Domestic Supplies,Cleaning - Services,GH102,04/07/2016,418238,787.01,REVENUE,FUTURE CLEANING SERVICES LTD,102557
North East Lincolnshire Council,http://statistics.data.gov.uk/id/local-authority/00FC),Chief Executive,Director Of Finance,Facilities Management,Cleaning And Domestic Supplies,Refuse Collection,GH104,05/07/2016,418245,352.3,REVENUE,BIFFA WASTE SERVICES LTD,100515
North East Lincolnshire Council,http://statistics.data.gov.uk/id/local-authority/00FC),Chief Executive,Director Of Finance,Facilities Management,Rep Alterations Maint Building,Buildings - Repairs And Maint,GA102,28/07/2016,422618,314.87,REVENUE,ENGIE SERVICES LTD,133267
North East Lincolnshire Council,http://statistics.data.gov.uk/id/local-authority/00FC),Chief Executive,Director Of Finance,Facilities Management,Rep Alterations Maint Building,Buildings - Repairs And Maint,GA102,12/07/2016,418251,339.87,REVENUE,ENGIE SERVICES LTD,133267
North East Lincolnshire Council,http://statistics.data.gov.uk/id/local-authority/00FC),Chief Executive,Director Of Finance,Facilities Management,Rep Alterations Maint Building,Buildings - Repairs And Maint,GA102,04/07/2016,417997,250,REVENUE,ENGIE SERVICES LTD,133267
North East Lincolnshire Council,http://statistics.data.gov.uk/id/local-authority/00FC),Chief Executive,Director Of Finance,Facilities Management,Energy Costs,Electricity,GB102,11/07/2016,419275,283.49,REVENUE,YARBOROUGH ACADEMY,112852
North East Lincolnshire Council,http://statistics.data.gov.uk/id/local-authority/00FC),Chief Executive,Director Of Finance,Facilities Management,Energy Costs,Electricity,GB102,26/07/2016,421483,270.21,REVENUE,YARBOROUGH ACADEMY,112852
North East Lincolnshire Council,http://statistics.data.gov.uk/id/local-authority/00FC),Chief Executive,Director Of Finance,Facilities Management,Rates,Rates,GD101,11/07/2016,419294,11182.5,REVENUE,NORTH EAST LINCOLNSHIRE COUNCIL,100894
North East Lincolnshire Council,http://statistics.data.gov.uk/id/local-authority/00FC),Chief Executive,Director Of Finance,Facilities Management,Cleaning And Domestic Supplies,Cleaning - Services,GH102,11/07/2016,419035,979.92,REVENUE,FUTURE CLEANING SERVICES LTD,102557
North East Lincolnshire Council,http://statistics.data.gov.uk/id/local-authority/00FC),Chief Executive,Director Of Finance,Facilities Management,Cleaning And Domestic Supplies,Cleaning - Services,GH102,04/07/2016,418235,979.92,REVENUE,FUTURE CLEANING SERVICES LTD,102557
North East Lincolnshire Council,http://statistics.data.gov.uk/id/local-authority/00FC),Chief Executive,Director Of Finance,Facilities Management,Cleaning And Domestic Supplies,Cleaning - Services,GH102,04/07/2016,418237,979.92,REVENUE,FUTURE CLEANING SERVICES LTD,102557
North East Lincolnshire Council,http://statistics.data.gov.uk/id/local-authority/00FC),Chief Executive,Director Of Finance,Facilities Management,Rates,Rates,GD101,11/07/2016,419291,5687,REVENUE,NORTH EAST LINCOLNSHIRE COUNCIL,100894
North East Lincolnshire Council,http://statistics.data.gov.uk/id/local-authority/00FC),Chief Executive,Director Of Finance,Facilities Management,Cleaning And Domestic Supplies,Cleaning - Services,GH102,07/07/2016,418960,559.26,REVENUE,FUTURE CLEANING SERVICES LTD,102557
North East Lincolnshire Council,http://statistics.data.gov.uk/id/local-authority/00FC),Chief Executive,Director Of Finance,Facilities Management,Cleaning And Domestic Supplies,Cleaning - Services,GH102,14/07/2016,419381,754.4,REVENUE,PHS GROUP LTD,100554
North East Lincolnshire Council,http://statistics.data.gov.uk/id/local-authority/00FC),Chief Executive,Director Of Finance,Facilities Management,Cleaning And Domestic Supplies,Cleaning - Services,GH102,14/07/2016,420159,1949.51,REVENUE,OCS LIMITED,101291
North East Lincolnshire Council,http://statistics.data.gov.uk/id/local-authority/00FC),Chief Executive,Director Of Finance,Facilities Management,Rents,Rent,GC101,12/07/2016,419613,7412.5,REVENUE,CAPAX (C I ) LIMITED,101112
North East Lincolnshire Council,http://statistics.data.gov.uk/id/local-authority/00FC),Chief Executive,Director Of Finance,Facilities Management,Rates,Rates,GD101,18/07/2016,419757,7139,REVENUE,NORTH EAST LINCOLNSHIRE COUNCIL,100894
North East Lincolnshire Council,http://statistics.data.gov.uk/id/local-authority/00FC),Chief Executive,Director Of Finance,Facilities Management,Rates,Rates,GD101,18/07/2016,419756,5929,REVENUE,NORTH EAST LINCOLNSHIRE COUNCIL,100894
North East Lincolnshire Council,http://statistics.data.gov.uk/id/local-authority/00FC),Chief Executive,Director Of Finance,Facilities Management,Rates,Rates,GD101,14/07/2016,419735,36032.5,REVENUE,NORTH EAST LINCOLNSHIRE COUNCIL,100894
North East Lincolnshire Council,http://statistics.data.gov.uk/id/local-authority/00FC),Chief Executive,Director Of Finance,Facilities Management,Rates,Rates,GD101,12/07/2016,419738,80017,REVENUE,NORTH EAST LINCOLNSHIRE COUNCIL,100894
North East Lincolnshire Council,http://statistics.data.gov.uk/id/local-authority/00FC),Chief Executive,Director Of Finance,Facilities Management,Rates,Rates,GD101,12/07/2016,419739,39014.5,REVENUE,NORTH EAST LINCOLNSHIRE COUNCIL,100894
North East Lincolnshire Council,http://statistics.data.gov.uk/id/local-authority/00FC),Chief Executive,Director Of Finance,Facilities Management,Rates,Rates,GD101,12/07/2016,419728,8946,REVENUE,NORTH EAST LINCOLNSHIRE COUNCIL,100894
North East Lincolnshire Council,http://statistics.data.gov.uk/id/local-authority/00FC),Chief Executive,Director Of Finance,Facilities Management,Rates,Rates,GD101,18/07/2016,419741,7260,REVENUE,NORTH EAST LINCOLNSHIRE COUNCIL,100894
North East Lincolnshire Council,http://statistics.data.gov.uk/id/local-authority/00FC),Chief Executive,Director Of Finance,Facilities Management,Rates,Rates,GD101,21/07/2016,421061,4017.2,REVENUE,NORTH EAST LINCOLNSHIRE COUNCIL,100894
North East Lincolnshire Council,http://statistics.data.gov.uk/id/local-authority/00FC),Chief Executive,Director Of Finance,Facilities Management,Rates,Rates,GD101,21/07/2016,420585,14910,REVENUE,NORTH EAST LINCOLNSHIRE COUNCIL,100894
North East Lincolnshire Council,http://statistics.data.gov.uk/id/local-authority/00FC),Chief Executive,Director Of Finance,Facilities Management,Rates,Rates,GD101,18/07/2016,419762,1355.2,REVENUE,NORTH EAST LINCOLNSHIRE COUNCIL,100894
North East Lincolnshire Council,http://statistics.data.gov.uk/id/local-authority/00FC),Chief Executive,Director Of Finance,Facilities Management,Rates,Rates,GD101,21/07/2016,421058,7082.25,REVENUE,NORTH EAST LINCOLNSHIRE COUNCIL,100894
North East Lincolnshire Council,http://statistics.data.gov.uk/id/local-authority/00FC),Chief Executive,Director Of Finance,Facilities Management,Rates,Rates,GD101,18/07/2016,419769,6897,REVENUE,NORTH EAST LINCOLNSHIRE COUNCIL,100894
North East Lincolnshire Council,http://statistics.data.gov.uk/id/local-authority/00FC),Chief Executive,Director Of Finance,Facilities Management,Rates,Rates,GD101,21/07/2016,421060,5445,REVENUE,NORTH EAST LINCOLNSHIRE COUNCIL,100894
North East Lincolnshire Council,http://statistics.data.gov.uk/id/local-authority/00FC),Chief Executive,Director Of Finance,Facilities Management,Rates,Rates,GD101,14/07/2016,419787,6897,REVENUE,NORTH EAST LINCOLNSHIRE COUNCIL,100894
North East Lincolnshire Council,http://statistics.data.gov.uk/id/local-authority/00FC),Chief Executive,Director Of Finance,Facilities Management,Rates,Rates,GD101,18/07/2016,419761,3630,REVENUE,NORTH EAST LINCOLNSHIRE COUNCIL,100894
North East Lincolnshire Council,http://statistics.data.gov.uk/id/local-authority/00FC),Chief Executive,Director Of Finance,Facilities Management,Rates,Rates,GD101,18/07/2016,419766,3726.8,REVENUE,NORTH EAST LINCOLNSHIRE COUNCIL,100894
North East Lincolnshire Council,http://statistics.data.gov.uk/id/local-authority/00FC),Chief Executive,Director Of Finance,Facilities Management,Rates,Rates,GD101,18/07/2016,419777,3976,REVENUE,NORTH EAST LINCOLNSHIRE COUNCIL,100894
North East Lincolnshire Council,http://statistics.data.gov.uk/id/local-authority/00FC),Chief Executive,Director Of Finance,Facilities Management,Rates,Rates,GD101,18/07/2016,419788,2565.2,REVENUE,NORTH EAST LINCOLNSHIRE COUNCIL,100894
North East Lincolnshire Council,http://statistics.data.gov.uk/id/local-authority/00FC),Chief Executive,Director Of Finance,Facilities Management,Rates,Rates,GD101,18/07/2016,419799,1988,REVENUE,NORTH EAST LINCOLNSHIRE COUNCIL,100894
North East Lincolnshire Council,http://statistics.data.gov.uk/id/local-authority/00FC),Chief Executive,Director Of Finance,Facilities Management,Rates,Rates,GD101,14/07/2016,419795,6897,REVENUE,NORTH EAST LINCOLNSHIRE COUNCIL,100894
North East Lincolnshire Council,http://statistics.data.gov.uk/id/local-authority/00FC),Chief Executive,Director Of Finance,Facilities Management,Rates,Rates,GD101,14/07/2016,419793,1913.45,REVENUE,NORTH EAST LINCOLNSHIRE COUNCIL,100894
North East Lincolnshire Council,http://statistics.data.gov.uk/id/local-authority/00FC),Chief Executive,Director Of Finance,Facilities Management,Rates,Rates,GD101,14/07/2016,419791,4025.7,REVENUE,NORTH EAST LINCOLNSHIRE COUNCIL,100894
North East Lincolnshire Council,http://statistics.data.gov.uk/id/local-authority/00FC),Chief Executive,Director Of Finance,Facilities Management,Rates,Rates,GD101,21/07/2016,421057,3630,REVENUE,NORTH EAST LINCOLNSHIRE COUNCIL,100894
North East Lincolnshire Council,http://statistics.data.gov.uk/id/local-authority/00FC),Chief Executive,Director Of Finance,Facilities Management,Rates,Rates,GD101,21/07/2016,421059,9318.75,REVENUE,NORTH EAST LINCOLNSHIRE COUNCIL,100894
North East Lincolnshire Council,http://statistics.data.gov.uk/id/local-authority/00FC),Chief Executive,Director Of Finance,Facilities Management,Rates,Rates,GD101,12/07/2016,419726,41748,REVENUE,NORTH EAST LINCOLNSHIRE COUNCIL,100894
North East Lincolnshire Council,http://statistics.data.gov.uk/id/local-authority/00FC),Chief Executive,Director Of Finance,Facilities Management,Rents,Rent,GC101,12/07/2016,419604,36270,REVENUE,WYKELAND GROUP LTD,101729
North East Lincolnshire Council,http://statistics.data.gov.uk/id/local-authority/00FC),Chief Executive,Director Of Finance,Facilities Management,Rents,Service Charge,GC102,12/07/2016,419605,1027.2,REVENUE,WYKELAND GROUP LTD,101729
North East Lincolnshire Council,http://statistics.data.gov.uk/id/local-authority/00FC),Chief Executive,Director Of Finance,Facilities Management,Rates,Rates,GD101,14/07/2016,419736,51688,REVENUE,NORTH EAST LINCOLNSHIRE COUNCIL,100894
North East Lincolnshire Council,http://statistics.data.gov.uk/id/local-authority/00FC),Chief Executive,Director Of Finance,Facilities Management,Rates,Rates,GD101,21/07/2016,420585,16152.5,REVENUE,NORTH EAST LINCOLNSHIRE COUNCIL,100894
North East Lincolnshire Council,http://statistics.data.gov.uk/id/local-authority/00FC),Chief Executive,Director Of Finance,Facilities Management,Rates,Rates,GD101,14/07/2016,419819,8591,REVENUE,NORTH EAST LINCOLNSHIRE COUNCIL,100894
North East Lincolnshire Council,http://statistics.data.gov.uk/id/local-authority/00FC),Chief Executive,Director Of Finance,Facilities Management,Rates,Rates,GD101,18/07/2016,419818,3339.6,REVENUE,NORTH EAST LINCOLNSHIRE COUNCIL,100894
North East Lincolnshire Council,http://statistics.data.gov.uk/id/local-authority/00FC),Chief Executive,Director Of Finance,Facilities Management,Rates,Rates,GD101,18/07/2016,419740,34889.4,REVENUE,NORTH EAST LINCOLNSHIRE COUNCIL,100894
North East Lincolnshire Council,http://statistics.data.gov.uk/id/local-authority/00FC),Chief Executive,Director Of Finance,Facilities Management,Rates,Rates,GD101,12/07/2016,419749,2395.8,REVENUE,NORTH EAST LINCOLNSHIRE COUNCIL,100894
North East Lincolnshire Council,http://statistics.data.gov.uk/id/local-authority/00FC),Chief Executive,Director Of Finance,Facilities Management,Cleaning And Domestic Supplies,Cleaning - Services,GH102,11/07/2016,418220,780,REVENUE,SUPERCLEAN SERVICES WOTHORPE LIMITED,133882
North East Lincolnshire Council,http://statistics.data.gov.uk/id/local-authority/00FC),Chief Executive,Director Of Finance,Facilities Management,Rates,Rates,GD101,18/07/2016,419772,6171,REVENUE,NORTH EAST LINCOLNSHIRE COUNCIL,100894
North East Lincolnshire Council,http://statistics.data.gov.uk/id/local-authority/00FC),Chief Executive,Director Of Finance,Facilities Management,Rates,Rates,GD101,18/07/2016,419776,2807.2,REVENUE,NORTH EAST LINCOLNSHIRE COUNCIL,100894
North East Lincolnshire Council,http://statistics.data.gov.uk/id/local-authority/00FC),Chief Executive,Director Of Finance,Facilities Management,Rents,Service Charge,GC102,21/07/2016,420941,9547.2,REVENUE,IMMINGHAM TOWN COUNCIL,101597
North East Lincolnshire Council,http://statistics.data.gov.uk/id/local-authority/00FC),Chief Executive,Director Of Finance,Facilities Management,Rates,Rates,GD101,18/07/2016,419752,4210.8,REVENUE,NORTH EAST LINCOLNSHIRE COUNCIL,100894
North East Lincolnshire Council,http://statistics.data.gov.uk/id/local-authority/00FC),Chief Executive,Director Of Finance,Facilities Management,Rates,Rates,GD101,18/07/2016,419753,5445,REVENUE,NORTH EAST LINCOLNSHIRE COUNCIL,100894
North East Lincolnshire Council,http://statistics.data.gov.uk/id/local-authority/00FC),Chief Executive,Director Of Finance,Facilities Management,Rates,Rates,GD101,18/07/2016,419775,2153.8,REVENUE,NORTH EAST LINCOLNSHIRE COUNCIL,100894
North East Lincolnshire Council,http://statistics.data.gov.uk/id/local-authority/00FC),Chief Executive,Director Of Finance,Facilities Management,Rates,Rates,GD101,18/07/2016,419773,445.28,REVENUE,NORTH EAST LINCOLNSHIRE COUNCIL,100894
North East Lincolnshire Council,http://statistics.data.gov.uk/id/local-authority/00FC),Chief Executive,Director Of Finance,Facilities Management,Rates,Rates,GD101,14/07/2016,419734,34541.5,REVENUE,NORTH EAST LINCOLNSHIRE COUNCIL,100894
North East Lincolnshire Council,http://statistics.data.gov.uk/id/local-authority/00FC),Chief Executive,Director Of Finance,Facilities Management,Rates,Rates,GD101,14/07/2016,419724,2710.4,REVENUE,NORTH EAST LINCOLNSHIRE COUNCIL,100894
North East Lincolnshire Council,http://statistics.data.gov.uk/id/local-authority/00FC),Chief Executive,Director Of Finance,Facilities Management,Cleaning And Domestic Supplies,Refuse Collection,GH104,14/07/2016,420168,285,REVENUE,BELL WASTE CONTROL,101433
North East Lincolnshire Council,http://statistics.data.gov.uk/id/local-authority/00FC),Chief Executive,Director Of Finance,Facilities Management,Rents,Service Charge,GC102,12/07/2016,419612,933,REVENUE,AWS LTD,101343
North East Lincolnshire Council,http://statistics.data.gov.uk/id/local-authority/00FC),Chief Executive,Director Of Finance,Facilities Management,Rates,Rates,GD101,12/07/2016,419737,11679.5,REVENUE,NORTH EAST LINCOLNSHIRE COUNCIL,100894
North East Lincolnshire Council,http://statistics.data.gov.uk/id/local-authority/00FC),Chief Executive,Director Of Finance,Facilities Management,Rates,Rates,GD101,14/07/2016,419812,11555.25,REVENUE,NORTH EAST LINCOLNSHIRE COUNCIL,100894
North East Lincolnshire Council,http://statistics.data.gov.uk/id/local-authority/00FC),Chief Executive,Director Of Finance,Facilities Management,Rates,Rates,GD101,14/07/2016,419786,8946,REVENUE,NORTH EAST LINCOLNSHIRE COUNCIL,100894
North East Lincolnshire Council,http://statistics.data.gov.uk/id/local-authority/00FC),Chief Executive,Director Of Finance,Facilities Management,Rates,Rates,GD101,14/07/2016,419763,7623,REVENUE,NORTH EAST LINCOLNSHIRE COUNCIL,100894
North East Lincolnshire Council,http://statistics.data.gov.uk/id/local-authority/00FC),Chief Executive,Director Of Finance,Facilities Management,Rates,Rates,GD101,14/07/2016,419794,1766.6,REVENUE,NORTH EAST LINCOLNSHIRE COUNCIL,100894
North East Lincolnshire Council,http://statistics.data.gov.uk/id/local-authority/00FC),Chief Executive,Director Of Finance,Facilities Management,Rents,Rent,GC101,21/07/2016,421068,1250,REVENUE,THE GRIMSBY INSTITUTE OF FURTHER,102742
North East Lincolnshire Council,http://statistics.data.gov.uk/id/local-authority/00FC),Chief Executive,Director Of Finance,Facilities Management,Rents,Service Charge,GC102,21/07/2016,421068,1100,REVENUE,THE GRIMSBY INSTITUTE OF FURTHER,102742
North East Lincolnshire Council,http://statistics.data.gov.uk/id/local-authority/00FC),Chief Executive,Director Of Finance,Facilities Management,Rates,Rates,GD101,18/07/2016,419767,9815.75,REVENUE,NORTH EAST LINCOLNSHIRE COUNCIL,100894
North East Lincolnshire Council,http://statistics.data.gov.uk/id/local-authority/00FC),Chief Executive,Director Of Finance,Facilities Management,Print Stationery / Gen Off Exp,Advertising,LD104,05/07/2016,418249,4534,REVENUE,SCOTTS PROPERTY LLP,103513
North East Lincolnshire Council,http://statistics.data.gov.uk/id/local-authority/00FC),Chief Executive,Director Of Finance,Facilities Management,Rates,Rates,GD101,21/07/2016,420930,2563.6,REVENUE,NORTH EAST LINCOLNSHIRE COUNCIL,100894
North East Lincolnshire Council,http://statistics.data.gov.uk/id/local-authority/00FC),Chief Executive,Director Of Finance,Commercial Estate,Rates,Rates,GD101,18/07/2016,419783,13294.75,REVENUE,NORTH EAST LINCOLNSHIRE COUNCIL,100894
North East Lincolnshire Council,http://statistics.data.gov.uk/id/local-authority/00FC),Chief Executive,Director Of Finance,Commercial Estate,Rates,Rates,GD101,18/07/2016,419770,14288.75,REVENUE,NORTH EAST LINCOLNSHIRE COUNCIL,100894
North East Lincolnshire Council,http://statistics.data.gov.uk/id/local-authority/00FC),Chief Executive,Director Of Finance,Commercial Estate,Rates,Rates,GD101,18/07/2016,419802,1590.4,REVENUE,NORTH EAST LINCOLNSHIRE COUNCIL,100894
North East Lincolnshire Council,http://statistics.data.gov.uk/id/local-authority/00FC),Chief Executive,Director Of Finance,Commercial Estate,Rates,Rates,GD101,18/07/2016,419782,3081.4,REVENUE,NORTH EAST LINCOLNSHIRE COUNCIL,100894
North East Lincolnshire Council,http://statistics.data.gov.uk/id/local-authority/00FC),Chief Executive,Director Of Finance,Commercial Estate,Rates,Rates,GD101,14/07/2016,419790,2032.8,REVENUE,NORTH EAST LINCOLNSHIRE COUNCIL,100894
North East Lincolnshire Council,http://statistics.data.gov.uk/id/local-authority/00FC),Chief Executive,Director Of Finance,Commercial Estate,Rates,Rates,GD101,14/07/2016,419391,2708.31,REVENUE,NORTH EAST LINCOLNSHIRE COUNCIL,100894
North East Lincolnshire Council,http://statistics.data.gov.uk/id/local-authority/00FC),Chief Executive,Director Of Finance,Commercial Estate,Rates,Rates,GD101,18/07/2016,419779,1590.4,REVENUE,NORTH EAST LINCOLNSHIRE COUNCIL,100894
North East Lincolnshire Council,http://statistics.data.gov.uk/id/local-authority/00FC),Chief Executive,Director Of Finance,Commercial Estate,Rates,Rates,GD101,14/07/2016,419390,2583.31,REVENUE,NORTH EAST LINCOLNSHIRE COUNCIL,100894
North East Lincolnshire Council,http://statistics.data.gov.uk/id/local-authority/00FC),Chief Executive,Director Of Finance,Commercial Estate,Rates,Rates,GD101,18/07/2016,419771,3081.4,REVENUE,NORTH EAST LINCOLNSHIRE COUNCIL,100894
North East Lincolnshire Council,http://statistics.data.gov.uk/id/local-authority/00FC),Chief Executive,Director Of Finance,Commercial Estate,Rates,Rates,GD101,14/07/2016,419764,3081.4,REVENUE,NORTH EAST LINCOLNSHIRE COUNCIL,100894
North East Lincolnshire Council,http://statistics.data.gov.uk/id/local-authority/00FC),Chief Executive,Director Of Finance,Commercial Estate,Rates,Rates,GD101,18/07/2016,419789,1548.8,REVENUE,NORTH EAST LINCOLNSHIRE COUNCIL,100894
North East Lincolnshire Council,http://statistics.data.gov.uk/id/local-authority/00FC),Chief Executive,Director Of Finance,Commercial Estate,Rates,Rates,GD101,18/07/2016,419781,1548.8,REVENUE,NORTH EAST LINCOLNSHIRE COUNCIL,100894
North East Lincolnshire Council,http://statistics.data.gov.uk/id/local-authority/00FC),Chief Executive,Director Of Finance,Commercial Estate,Rates,Rates,GD101,14/07/2016,419733,2456.68,REVENUE,NORTH EAST LINCOLNSHIRE COUNCIL,100894
North East Lincolnshire Council,http://statistics.data.gov.uk/id/local-authority/00FC),Chief Executive,Director Of Finance,Commercial Estate,Rates,Rates,GD101,14/07/2016,419392,1498.9,REVENUE,NORTH EAST LINCOLNSHIRE COUNCIL,100894
North East Lincolnshire Council,http://statistics.data.gov.uk/id/local-authority/00FC),Chief Executive,Director Of Finance,Commercial Estate,Rates,Rates,GD101,18/07/2016,419780,3081.4,REVENUE,NORTH EAST LINCOLNSHIRE COUNCIL,100894
North East Lincolnshire Council,http://statistics.data.gov.uk/id/local-authority/00FC),Chief Executive,Director Of Finance,Commercial Estate,Rates,Rates,GD101,14/07/2016,419732,2456.68,REVENUE,NORTH EAST LINCOLNSHIRE COUNCIL,100894
North East Lincolnshire Council,http://statistics.data.gov.uk/id/local-authority/00FC),Chief Executive,Director Of Finance,Commercial Estate,Rates,Rates,GD101,14/07/2016,419778,3031.7,REVENUE,NORTH EAST LINCOLNSHIRE COUNCIL,100894
North East Lincolnshire Council,http://statistics.data.gov.uk/id/local-authority/00FC),Chief Executive,Director Of Finance,Commercial Estate,Rates,Rates,GD101,14/07/2016,419797,1590.4,REVENUE,NORTH EAST LINCOLNSHIRE COUNCIL,100894
North East Lincolnshire Council,http://statistics.data.gov.uk/id/local-authority/00FC),Chief Executive,Director Of Finance,Commercial Estate,Rates,Rates,GD101,14/07/2016,419800,1590.4,REVENUE,NORTH EAST LINCOLNSHIRE COUNCIL,100894
North East Lincolnshire Council,http://statistics.data.gov.uk/id/local-authority/00FC),Chief Executive,Director Of Finance,Commercial Estate,Rates,Rates,GD101,14/07/2016,419801,3000.8,REVENUE,NORTH EAST LINCOLNSHIRE COUNCIL,100894
North East Lincolnshire Council,http://statistics.data.gov.uk/id/local-authority/00FC),Chief Executive,Director Of Finance,Commercial Estate,Rates,Rates,GD101,14/07/2016,419798,3081.4,REVENUE,NORTH EAST LINCOLNSHIRE COUNCIL,100894
North East Lincolnshire Council,http://statistics.data.gov.uk/id/local-authority/00FC),Chief Executive,Director Of Finance,Commercial Estate,Cleaning And Domestic Supplies,Refuse Collection,GH104,14/07/2016,420180,340.9,REVENUE,BELL WASTE CONTROL,101433
North East Lincolnshire Council,http://statistics.data.gov.uk/id/local-authority/00FC),Chief Executive,Director Of Finance,Commercial Estate,Cleaning And Domestic Supplies,Refuse Collection,GH104,14/07/2016,420168,343.5,REVENUE,BELL WASTE CONTROL,101433
North East Lincolnshire Council,http://statistics.data.gov.uk/id/local-authority/00FC),Chief Executive,Director Of Finance,Commercial Estate,Cleaning And Domestic Supplies,Refuse Collection,GH104,12/07/2016,419615,442.5,REVENUE,BELL WASTE CONTROL,101433
North East Lincolnshire Council,http://statistics.data.gov.uk/id/local-authority/00FC),Chief Executive,Director Of Finance,Commercial Estate,Rates,Rates,GD101,12/07/2016,419712,1149.5,REVENUE,NORTH EAST LINCOLNSHIRE COUNCIL,100894
North East Lincolnshire Council,http://statistics.data.gov.uk/id/local-authority/00FC),Chief Executive,Director Of Finance,Commercial Estate,Rates,Rates,GD101,14/07/2016,419803,1887.6,REVENUE,NORTH EAST LINCOLNSHIRE COUNCIL,100894
North East Lincolnshire Council,http://statistics.data.gov.uk/id/local-authority/00FC),Chief Executive,Director Of Finance,Commercial Estate,Rates,Rates,GD101,12/07/2016,419711,2087.4,REVENUE,NORTH EAST LINCOLNSHIRE COUNCIL,100894
North East Lincolnshire Council,http://statistics.data.gov.uk/id/local-authority/00FC),Chief Executive,Director Of Finance,Commercial Estate,Rates,Rates,GD101,18/07/2016,419816,1258.4,REVENUE,NORTH EAST LINCOLNSHIRE COUNCIL,100894
North East Lincolnshire Council,http://statistics.data.gov.uk/id/local-authority/00FC),Chief Executive,Director Of Finance,Commercial Estate,Rates,Rates,GD101,18/07/2016,419808,2982,REVENUE,NORTH EAST LINCOLNSHIRE COUNCIL,100894
North East Lincolnshire Council,http://statistics.data.gov.uk/id/local-authority/00FC),Chief Executive,Director Of Finance,Commercial Estate,Rates,Rates,GD101,14/07/2016,419394,4771.2,REVENUE,NORTH EAST LINCOLNSHIRE COUNCIL,100894
North East Lincolnshire Council,http://statistics.data.gov.uk/id/local-authority/00FC),Chief Executive,Director Of Finance,Commercial Estate,Rates,Rates,GD101,18/07/2016,419804,6413,REVENUE,NORTH EAST LINCOLNSHIRE COUNCIL,100894
North East Lincolnshire Council,http://statistics.data.gov.uk/id/local-authority/00FC),Chief Executive,Director Of Finance,Commercial Estate,Rates,Rates,GD101,14/07/2016,419805,2683.8,REVENUE,NORTH EAST LINCOLNSHIRE COUNCIL,100894
North East Lincolnshire Council,http://statistics.data.gov.uk/id/local-authority/00FC),Chief Executive,Director Of Finance,Commercial Estate,Rates,Rates,GD101,14/07/2016,419806,2683.8,REVENUE,NORTH EAST LINCOLNSHIRE COUNCIL,100894
North East Lincolnshire Council,http://statistics.data.gov.uk/id/local-authority/00FC),Chief Executive,Director Of Finance,Commercial Estate,Rates,Rates,GD101,14/07/2016,419810,1379.4,REVENUE,NORTH EAST LINCOLNSHIRE COUNCIL,100894
North East Lincolnshire Council,http://statistics.data.gov.uk/id/local-authority/00FC),Chief Executive,Director Of Finance,Commercial Estate,Rates,Rates,GD101,14/07/2016,419813,2087.4,REVENUE,NORTH EAST LINCOLNSHIRE COUNCIL,100894
North East Lincolnshire Council,http://statistics.data.gov.uk/id/local-authority/00FC),Chief Executive,Director Of Finance,Commercial Estate,Rates,Rates,GD101,14/07/2016,419811,8591,REVENUE,NORTH EAST LINCOLNSHIRE COUNCIL,100894
North East Lincolnshire Council,http://statistics.data.gov.uk/id/local-authority/00FC),Chief Executive,Director Of Finance,Commercial Estate,Rates,Rates,GD101,14/07/2016,419807,3379.6,REVENUE,NORTH EAST LINCOLNSHIRE COUNCIL,100894
North East Lincolnshire Council,http://statistics.data.gov.uk/id/local-authority/00FC),Chief Executive,Director Of Finance,Commercial Estate,Rates,Rates,GD101,14/07/2016,419809,1366.75,REVENUE,NORTH EAST LINCOLNSHIRE COUNCIL,100894
North East Lincolnshire Council,http://statistics.data.gov.uk/id/local-authority/00FC),Chief Executive,Director Of Finance,Commercial Estate,Rates,Rates,GD101,18/07/2016,419792,2758.8,REVENUE,NORTH EAST LINCOLNSHIRE COUNCIL,100894
North East Lincolnshire Council,http://statistics.data.gov.uk/id/local-authority/00FC),Chief Executive,Director Of Finance,Commercial Estate,Rates,Rates,GD101,12/07/2016,419683,3581.6,REVENUE,NORTH EAST LINCOLNSHIRE COUNCIL,100894
North East Lincolnshire Council,http://statistics.data.gov.uk/id/local-authority/00FC),Chief Executive,Director Of Finance,Commercial Estate,Rates,Rates,GD101,12/07/2016,419746,1491,REVENUE,NORTH EAST LINCOLNSHIRE COUNCIL,100894
North East Lincolnshire Council,http://statistics.data.gov.uk/id/local-authority/00FC),Chief Executive,Director Of Finance,Commercial Estate,Rates,Rates,GD101,18/07/2016,419730,4019.57,REVENUE,NORTH EAST LINCOLNSHIRE COUNCIL,100894
North East Lincolnshire Council,http://statistics.data.gov.uk/id/local-authority/00FC),Chief Executive,Director Of Finance,Commercial Estate,Rates,Rates,GD101,14/07/2016,419722,2236.5,REVENUE,NORTH EAST LINCOLNSHIRE COUNCIL,100894
North East Lincolnshire Council,http://statistics.data.gov.uk/id/local-authority/00FC),Chief Executive,Director Of Finance,Commercial Estate,Rates,Rates,GD101,18/07/2016,419729,2101.7,REVENUE,NORTH EAST LINCOLNSHIRE COUNCIL,100894
North East Lincolnshire Council,http://statistics.data.gov.uk/id/local-authority/00FC),Chief Executive,Director Of Finance,Commercial Estate,Rates,Rates,GD101,18/07/2016,419748,2236.5,REVENUE,NORTH EAST LINCOLNSHIRE COUNCIL,100894
North East Lincolnshire Council,http://statistics.data.gov.uk/id/local-authority/00FC),Chief Executive,Director Of Finance,Commercial Estate,Rates,Rates,GD101,18/07/2016,419751,2236.5,REVENUE,NORTH EAST LINCOLNSHIRE COUNCIL,100894
North East Lincolnshire Council,http://statistics.data.gov.uk/id/local-authority/00FC),Chief Executive,Director Of Finance,Commercial Estate,Rates,Rates,GD101,14/07/2016,419745,2236.5,REVENUE,NORTH EAST LINCOLNSHIRE COUNCIL,100894
North East Lincolnshire Council,http://statistics.data.gov.uk/id/local-authority/00FC),Chief Executive,Director Of Finance,Commercial Estate,Rates,Rates,GD101,14/07/2016,419744,2236.5,REVENUE,NORTH EAST LINCOLNSHIRE COUNCIL,100894
North East Lincolnshire Council,http://statistics.data.gov.uk/id/local-authority/00FC),Chief Executive,Director Of Finance,Commercial Estate,Rates,Rates,GD101,14/07/2016,419727,1486.92,REVENUE,NORTH EAST LINCOLNSHIRE COUNCIL,100894
North East Lincolnshire Council,http://statistics.data.gov.uk/id/local-authority/00FC),Chief Executive,Director Of Finance,Commercial Estate,Rates,Rates,GD101,18/07/2016,419742,1664.95,REVENUE,NORTH EAST LINCOLNSHIRE COUNCIL,100894
North East Lincolnshire Council,http://statistics.data.gov.uk/id/local-authority/00FC),Chief Executive,Director Of Finance,Commercial Estate,Rates,Rates,GD101,14/07/2016,419723,1664.95,REVENUE,NORTH EAST LINCOLNSHIRE COUNCIL,100894
North East Lincolnshire Council,http://statistics.data.gov.uk/id/local-authority/00FC),Chief Executive,Director Of Finance,Commercial Estate,Rates,Rates,GD101,18/07/2016,419750,1615.25,REVENUE,NORTH EAST LINCOLNSHIRE COUNCIL,100894
North East Lincolnshire Council,http://statistics.data.gov.uk/id/local-authority/00FC),Chief Executive,Director Of Finance,Commercial Estate,Rates,Rates,GD101,12/07/2016,419747,2057,REVENUE,NORTH EAST LINCOLNSHIRE COUNCIL,100894
North East Lincolnshire Council,http://statistics.data.gov.uk/id/local-authority/00FC),Chief Executive,Director Of Finance,Commercial Estate,Rates,Rates,GD101,14/07/2016,419731,358.07,REVENUE,NORTH EAST LINCOLNSHIRE COUNCIL,100894
North East Lincolnshire Council,http://statistics.data.gov.uk/id/local-authority/00FC),Chief Executive,Director Of Finance,Commercial Estate,Rates,Rates,GD101,18/07/2016,419755,6050,REVENUE,NORTH EAST LINCOLNSHIRE COUNCIL,100894
North East Lincolnshire Council,http://statistics.data.gov.uk/id/local-authority/00FC),Chief Executive,Director Of Finance,Commercial Estate,Rates,Rates,GD101,18/07/2016,419759,5591.25,REVENUE,NORTH EAST LINCOLNSHIRE COUNCIL,100894
North East Lincolnshire Council,http://statistics.data.gov.uk/id/local-authority/00FC),Chief Executive,Director Of Finance,Commercial Estate,Rates,Rates,GD101,21/07/2016,421055,4343,REVENUE,NORTH EAST LINCOLNSHIRE COUNCIL,100894
North East Lincolnshire Council,http://statistics.data.gov.uk/id/local-authority/00FC),Chief Executive,Director Of Finance,Commercial Estate,Rates,Rates,GD101,14/07/2016,419754,2278.3,REVENUE,NORTH EAST LINCOLNSHIRE COUNCIL,100894
North East Lincolnshire Council,http://statistics.data.gov.uk/id/local-authority/00FC),Chief Executive,Director Of Finance,Commercial Estate,Rates,Rates,GD101,18/07/2016,419785,2584.4,REVENUE,NORTH EAST LINCOLNSHIRE COUNCIL,100894
North East Lincolnshire Council,http://statistics.data.gov.uk/id/local-authority/00FC),Chief Executive,Director Of Finance,Commercial Estate,Rates,Rates,GD101,18/07/2016,419768,1292.2,REVENUE,NORTH EAST LINCOLNSHIRE COUNCIL,100894
North East Lincolnshire Council,http://statistics.data.gov.uk/id/local-authority/00FC),Chief Executive,Director Of Finance,Commercial Estate,Rates,Rates,GD101,18/07/2016,419821,665.5,REVENUE,NORTH EAST LINCOLNSHIRE COUNCIL,100894
North East Lincolnshire Council,http://statistics.data.gov.uk/id/local-authority/00FC),Chief Executive,Director Of Finance,Commercial Estate,Rates,Rates,GD101,14/07/2016,419820,665.5,REVENUE,NORTH EAST LINCOLNSHIRE COUNCIL,100894
North East Lincolnshire Council,http://statistics.data.gov.uk/id/local-authority/00FC),Chief Executive,Director Of Finance,Commercial Estate,Rates,Rates,GD101,14/07/2016,419822,750.2,REVENUE,NORTH EAST LINCOLNSHIRE COUNCIL,100894
North East Lincolnshire Council,http://statistics.data.gov.uk/id/local-authority/00FC),Chief Executive,Director Of Finance,Bus Support & Customer Serv,Miscellaneous Expenses,Other Supplies & Services,LL110,14/07/2016,420122,3436.38,REVENUE,STOR-A-FILE LTD,124466
North East Lincolnshire Council,http://statistics.data.gov.uk/id/local-authority/00FC),Chief Executive,Director Of Finance,Bus Support & Customer Serv,Miscellaneous Expenses,Other Supplies & Services,LL110,14/07/2016,420119,683.05,REVENUE,STOR-A-FILE LTD,124466
North East Lincolnshire Council,http://statistics.data.gov.uk/id/local-authority/00FC),Chief Executive,Director Of Finance,Bus Support & Customer Serv,Equip / Furniture / Materials,Goods For Resale,LA123,14/07/2016,419332,951.45,REVENUE,NORTHGATE PUBLIC SERVICES (UK) LTD,101841
North East Lincolnshire Council,http://statistics.data.gov.uk/id/local-authority/00FC),Chief Executive,Director Of Finance,Bus Support & Customer Serv,Private Contractors,External Security Services,PH103,21/07/2016,420755,464.51,REVENUE,G4S CASH SERVICES (UK) LIMITED,100952
North East Lincolnshire Council,http://statistics.data.gov.uk/id/local-authority/00FC),Chief Executive,Director Of Finance,Bus Support & Customer Serv,Private Contractors,External Security Services,PH103,18/07/2016,419911,4750.29,REVENUE,ALLPAY LIMITED,112919
North East Lincolnshire Council,http://statistics.data.gov.uk/id/local-authority/00FC),Chief Executive,Director Of Finance,Bus Support & Customer Serv,Communications And Computing,Postage,LF111,11/07/2016,418436,1902.9,REVENUE,ROYAL MAIL GROUP PLC,101082
North East Lincolnshire Council,http://statistics.data.gov.uk/id/local-authority/00FC),Chief Executive,Director Of Finance,Bus Support & Customer Serv,Communications And Computing,Postage,LF111,11/07/2016,418435,2952.23,REVENUE,ROYAL MAIL GROUP PLC,101082
North East Lincolnshire Council,http://statistics.data.gov.uk/id/local-authority/00FC),Chief Executive,Director Of Finance,Bus Support & Customer Serv,Communications And Computing,Postage,LF111,14/07/2016,420176,1445,REVENUE,ROYAL MAIL GROUP PLC,101082
North East Lincolnshire Council,http://statistics.data.gov.uk/id/local-authority/00FC),Chief Executive,Director Of Finance,Bus Support & Customer Serv,Communications And Computing,Postage,LF111,28/07/2016,422327,2712.87,REVENUE,ROYAL MAIL GROUP PLC,101082
North East Lincolnshire Council,http://statistics.data.gov.uk/id/local-authority/00FC),Chief Executive,Director Of Finance,Bus Support & Customer Serv,Communications And Computing,Postage,LF111,28/07/2016,421234,1591.24,REVENUE,ROYAL MAIL GROUP PLC,101082
North East Lincolnshire Council,http://statistics.data.gov.uk/id/local-authority/00FC),Chief Executive,Director Of Finance,Bus Support & Customer Serv,Communications And Computing,Postage,LF111,14/07/2016,420177,277.17,REVENUE,ROYAL MAIL GROUP PLC,101082
North East Lincolnshire Council,http://statistics.data.gov.uk/id/local-authority/00FC),Chief Executive,Director Of Finance,Bus Support & Customer Serv,Communications And Computing,Postage,LF111,05/07/2016,418209,299.92,REVENUE,ROYAL MAIL GROUP PLC,101082
North East Lincolnshire Council,http://statistics.data.gov.uk/id/local-authority/00FC),Chief Executive,Director Of Finance,Bus Support & Customer Serv,Communications And Computing,Postage,LF111,26/07/2016,421559,14697.74,REVENUE,NEOPOST FINANCE LIMITED,101065
North East Lincolnshire Council,http://statistics.data.gov.uk/id/local-authority/00FC),Chief Executive,Director Of Finance,Comm & Strategic Support Unit,Grounds Maintenance Costs,Grounds Maintenance,GJ101,19/07/2016,420478,520,REVENUE,BSB SERVICES,102305
North East Lincolnshire Council,http://statistics.data.gov.uk/id/local-authority/00FC),Chief Executive,Director Of Finance,Comm & Strategic Support Unit,Equip / Furniture / Materials,Equipment - Hire,LA102,07/07/2016,417644,1000,REVENUE,SEAVIEW TRAIN,109694
North East Lincolnshire Council,http://statistics.data.gov.uk/id/local-authority/00FC),Chief Executive,Director Of Finance,Comm & Strategic Support Unit,Equip / Furniture / Materials,Equipment - Hire,LA102,07/07/2016,409538,25403,REVENUE,LIGHTMEDIA DISPLAYS LTD,133601
North East Lincolnshire Council,http://statistics.data.gov.uk/id/local-authority/00FC),Chief Executive,Director Of Finance,Comm & Strategic Support Unit,Equip / Furniture / Materials,Equipment - Hire,LA102,19/07/2016,417640,4592.5,REVENUE,BLOCKFREE SERVICES LTD,111032
North East Lincolnshire Council,http://statistics.data.gov.uk/id/local-authority/00FC),Chief Executive,Director Of Finance,Comm & Strategic Support Unit,Equip / Furniture / Materials,Equipment - Hire,LA102,07/07/2016,417638,725,REVENUE,BLOCKFREE SERVICES LTD,111032
North East Lincolnshire Council,http://statistics.data.gov.uk/id/local-authority/00FC),Chief Executive,Director Of Finance,Comm & Strategic Support Unit,Equip / Furniture / Materials,Equipment - Hire,LA102,21/07/2016,419304,328,REVENUE,NINEHUNDRED COMMUNICATIONS,111131
North East Lincolnshire Council,http://statistics.data.gov.uk/id/local-authority/00FC),Chief Executive,Director Of Finance,Comm & Strategic Support Unit,Equip / Furniture / Materials,Equipment - Hire,LA102,11/07/2016,417641,1010,REVENUE,BLOCKFREE SERVICES LTD,111032
North East Lincolnshire Council,http://statistics.data.gov.uk/id/local-authority/00FC),Chief Executive,Director Of Finance,Comm & Strategic Support Unit,Equip / Furniture / Materials,Equipment - Hire,LA102,11/07/2016,417730,22899,REVENUE,STAGECOACH SERVICES,101404
North East Lincolnshire Council,http://statistics.data.gov.uk/id/local-authority/00FC),Chief Executive,Director Of Finance,Comm & Strategic Support Unit,Equip / Furniture / Materials,Equipment - Hire,LA102,07/07/2016,416688,400,REVENUE,WYATT COACHES LTD,134299
North East Lincolnshire Council,http://statistics.data.gov.uk/id/local-authority/00FC),Chief Executive,Director Of Finance,Comm & Strategic Support Unit,Equip / Furniture / Materials,Equipment - Hire,LA102,14/07/2016,419302,470,REVENUE,AMS BOBCAT LTD,101550
North East Lincolnshire Council,http://statistics.data.gov.uk/id/local-authority/00FC),Chief Executive,Director Of Finance,Comm & Strategic Support Unit,Equip / Furniture / Materials,Equipment - Hire,LA102,18/07/2016,419626,832,REVENUE,BOB CLARK CALOR SHOP,120321
North East Lincolnshire Council,http://statistics.data.gov.uk/id/local-authority/00FC),Chief Executive,Director Of Finance,Comm & Strategic Support Unit,Equip / Furniture / Materials,Equipment - Hire,LA102,11/07/2016,419001,905,REVENUE,ASHTEAD PLANT HIRE CO LTD,122623
North East Lincolnshire Council,http://statistics.data.gov.uk/id/local-authority/00FC),Chief Executive,Director Of Finance,Comm & Strategic Support Unit,Equip / Furniture / Materials,Equipment - Hire,LA102,18/07/2016,420578,6910,REVENUE,ASHTEAD PLANT HIRE CO LTD,122623
North East Lincolnshire Council,http://statistics.data.gov.uk/id/local-authority/00FC),Chief Executive,Director Of Finance,Comm & Strategic Support Unit,Equip / Furniture / Materials,Equipment - Purchase,LA101,14/07/2016,419823,250,REVENUE,CASPIAN ACCESS & PLANT HIRE LTD,101225
North East Lincolnshire Council,http://statistics.data.gov.uk/id/local-authority/00FC),Chief Executive,Director Of Finance,Comm & Strategic Support Unit,Miscellaneous Expenses,Hospitality,LL112,28/07/2016,417410,666.67,REVENUE,CLEETHORPES PIER AND PAVILLION LIMITED,129600
North East Lincolnshire Council,http://statistics.data.gov.uk/id/local-authority/00FC),Chief Executive,Director Of Finance,Comm & Strategic Support Unit,Miscellaneous Expenses,Hospitality,LL112,11/07/2016,418697,591.62,REVENUE,CLEETHORPES PIER AND PAVILLION LIMITED,129600
North East Lincolnshire Council,http://statistics.data.gov.uk/id/local-authority/00FC),Chief Executive,Director Of Finance,Comm & Strategic Support Unit,Miscellaneous Expenses,Medical Supplies And Services,LL109,26/07/2016,421561,24222,REVENUE,ST JOHN AMBULANCE,100764
North East Lincolnshire Council,http://statistics.data.gov.uk/id/local-authority/00FC),Chief Executive,Director Of Finance,Comm & Strategic Support Unit,Miscellaneous Expenses,Other Expenses General,LL119,12/07/2016,419609,1144,REVENUE,SUPERCLEAN SERVICES WOTHORPE LIMITED,133882
North East Lincolnshire Council,http://statistics.data.gov.uk/id/local-authority/00FC),Chief Executive,Director Of Finance,Comm & Strategic Support Unit,Miscellaneous Expenses,Other Supplies & Services,LL110,07/07/2016,418976,3741,REVENUE,HAITHS HEATING LTD,101342
North East Lincolnshire Council,http://statistics.data.gov.uk/id/local-authority/00FC),Chief Executive,Director Of Finance,Comm & Strategic Support Unit,Miscellaneous Expenses,Other Supplies & Services,LL110,12/07/2016,419682,1492.51,REVENUE,HAITHS HEATING LTD,101342
North East Lincolnshire Council,http://statistics.data.gov.uk/id/local-authority/00FC),Chief Executive,Director Of Finance,Comm & Strategic Support Unit,Miscellaneous Expenses,Other Supplies & Services,LL110,14/07/2016,420085,447.54,REVENUE,ELLIOTT GROUP LTD,109912
North East Lincolnshire Council,http://statistics.data.gov.uk/id/local-authority/00FC),Chief Executive,Director Of Finance,Comm & Strategic Support Unit,Miscellaneous Expenses,Other Supplies & Services,LL110,25/07/2016,421741,22685,REVENUE,SEP EVENTS,134546
North East Lincolnshire Council,http://statistics.data.gov.uk/id/local-authority/00FC),Chief Executive,Director Of Finance,Comm & Strategic Support Unit,Miscellaneous Expenses,Other Supplies & Services,LL110,05/07/2016,418695,7915.25,REVENUE,EVENT STEWARDING,111493
North East Lincolnshire Council,http://statistics.data.gov.uk/id/local-authority/00FC),Chief Executive,Director Of Finance,Comm & Strategic Support Unit,Miscellaneous Expenses,Other Supplies & Services,LL110,12/07/2016,419608,759,REVENUE,SUPERCLEAN SERVICES WOTHORPE LIMITED,133882
North East Lincolnshire Council,http://statistics.data.gov.uk/id/local-authority/00FC),Chief Executive,Director Of Finance,Comm & Strategic Support Unit,Miscellaneous Expenses,Other Supplies & Services,LL110,12/07/2016,419616,659,REVENUE,NINEHUNDRED COMMUNICATIONS,111131
North East Lincolnshire Council,http://statistics.data.gov.uk/id/local-authority/00FC),Chief Executive,Director Of Finance,Comm & Strategic Support Unit,Miscellaneous Expenses,Other Supplies & Services,LL110,04/07/2016,422265,259.41,REVENUE,REDACTED PERSONAL INFORMATION,REDACTED PERSONAL INFORMATION
North East Lincolnshire Council,http://statistics.data.gov.uk/id/local-authority/00FC),Chief Executive,Director Of Finance,Comm & Strategic Support Unit,Miscellaneous Expenses,Other Supplies & Services,LL110,11/07/2016,419269,2820,REVENUE,KES BUILDING MAINTENANCE LIMITED,100786
North East Lincolnshire Council,http://statistics.data.gov.uk/id/local-authority/00FC),Chief Executive,Director Of Finance,Comm & Strategic Support Unit,Miscellaneous Expenses,Other Supplies & Services,LL110,14/07/2016,417934,700,REVENUE,J MCCANN & CO LTD,100841
North East Lincolnshire Council,http://statistics.data.gov.uk/id/local-authority/00FC),Chief Executive,Director Of Finance,Comm & Strategic Support Unit,Miscellaneous Expenses,Other Supplies & Services,LL110,21/07/2016,419410,2750,REVENUE,PMC SCAFFOLD AND ACCESS LTD,134238
North East Lincolnshire Council,http://statistics.data.gov.uk/id/local-authority/00FC),Chief Executive,Director Of Finance,Comm & Strategic Support Unit,Miscellaneous Expenses,Other Supplies & Services,LL110,07/07/2016,418931,360,REVENUE,CLEETHORPES TOWN FC,124596
North East Lincolnshire Council,http://statistics.data.gov.uk/id/local-authority/00FC),Chief Executive,Director Of Finance,Comm & Strategic Support Unit,Miscellaneous Expenses,Other Supplies & Services,LL110,07/07/2016,418889,1750,REVENUE,W R CULLUM,100811
North East Lincolnshire Council,http://statistics.data.gov.uk/id/local-authority/00FC),Chief Executive,Director Of Finance,Comm & Strategic Support Unit,Miscellaneous Expenses,Other Supplies & Services,LL110,21/07/2016,420845,9405,REVENUE,ONEWAY TM LIMITED,128602
North East Lincolnshire Council,http://statistics.data.gov.uk/id/local-authority/00FC),Chief Executive,Director Of Finance,Comm & Strategic Support Unit,Miscellaneous Expenses,Other Supplies & Services,LL110,21/07/2016,420846,5950,REVENUE,ONEWAY TM LIMITED,128602
North East Lincolnshire Council,http://statistics.data.gov.uk/id/local-authority/00FC),Chief Executive,Director Of Finance,Comm & Strategic Support Unit,Miscellaneous Expenses,Other Supplies & Services,LL110,21/07/2016,420847,2118.74,REVENUE,ONEWAY TM LIMITED,128602
North East Lincolnshire Council,http://statistics.data.gov.uk/id/local-authority/00FC),Chief Executive,Director Of Finance,Comm & Strategic Support Unit,Private Contractors,External Security Services,PH103,05/07/2016,418696,5451.45,REVENUE,NATIONWIDE SECURITY & CLEANING SERVICES,101555
North East Lincolnshire Council,http://statistics.data.gov.uk/id/local-authority/00FC),Chief Executive,Director Of Economy & Growth,Discovery Centre,Equip / Furniture / Materials,Goods For Resale,LA123,21/07/2016,420842,345.64,REVENUE,HEAVEN SENDS LTD,107722
North East Lincolnshire Council,http://statistics.data.gov.uk/id/local-authority/00FC),Chief Executive,Director Of Economy & Growth,Discovery Centre,Print Stationery / Gen Off Exp,Advertising,LD104,25/07/2016,421977,400,REVENUE,SEAVIEW TRAIN,109694
North East Lincolnshire Council,http://statistics.data.gov.uk/id/local-authority/00FC),Chief Executive,Director Of Economy & Growth,Discovery Centre,Equip / Furniture / Materials,Goods For Resale,LA123,14/07/2016,419646,-6.99,REVENUE,HOLDSWORTH LTD,121021
North East Lincolnshire Council,http://statistics.data.gov.uk/id/local-authority/00FC),Chief Executive,Director Of Economy & Growth,Discovery Centre,Equip / Furniture / Materials,Goods For Resale,LA123,14/07/2016,419638,-4.15,REVENUE,HOLDSWORTH LTD,121021
North East Lincolnshire Council,http://statistics.data.gov.uk/id/local-authority/00FC),Chief Executive,Director Of Economy & Growth,Discovery Centre,Equip / Furniture / Materials,Goods For Resale,LA123,14/07/2016,419641,-41.94,REVENUE,HOLDSWORTH LTD,121021
North East Lincolnshire Council,http://statistics.data.gov.uk/id/local-authority/00FC),Chief Executive,Director Of Economy & Growth,Discovery Centre,Equip / Furniture / Materials,Goods For Resale,LA123,14/07/2016,419639,-19.95,REVENUE,HOLDSWORTH LTD,121021
North East Lincolnshire Council,http://statistics.data.gov.uk/id/local-authority/00FC),Chief Executive,Director Of Economy & Growth,Discovery Centre,Equip / Furniture / Materials,Goods For Resale,LA123,14/07/2016,419640,-22.5,REVENUE,HOLDSWORTH LTD,121021
North East Lincolnshire Council,http://statistics.data.gov.uk/id/local-authority/00FC),Chief Executive,Director Of Economy & Growth,Discovery Centre,Equip / Furniture / Materials,Goods For Resale,LA123,18/07/2016,419644,-19.44,REVENUE,HOLDSWORTH LTD,121021
North East Lincolnshire Council,http://statistics.data.gov.uk/id/local-authority/00FC),Chief Executive,Director Of Economy & Growth,Discovery Centre,Equip / Furniture / Materials,Goods For Resale,LA123,18/07/2016,419645,-3,REVENUE,HOLDSWORTH LTD,121021
North East Lincolnshire Council,http://statistics.data.gov.uk/id/local-authority/00FC),Chief Executive,Director Of Economy & Growth,Discovery Centre,Equip / Furniture / Materials,Goods For Resale,LA123,18/07/2016,419647,-9.2,REVENUE,HOLDSWORTH LTD,121021
North East Lincolnshire Council,http://statistics.data.gov.uk/id/local-authority/00FC),Chief Executive,Director Of Economy & Growth,Discovery Centre,Equip / Furniture / Materials,Goods For Resale,LA123,26/07/2016,421739,266.73,REVENUE,HOLDSWORTH LTD,121021
North East Lincolnshire Council,http://statistics.data.gov.uk/id/local-authority/00FC),Chief Executive,Director Of Economy & Growth,Discovery Centre,Equip / Furniture / Materials,Goods For Resale,LA123,26/07/2016,421740,259.72,REVENUE,HOLDSWORTH LTD,121021
North East Lincolnshire Council,http://statistics.data.gov.uk/id/local-authority/00FC),Chief Executive,Director Of Economy & Growth,Discovery Centre,Equip / Furniture / Materials,Goods For Resale,LA123,14/07/2016,419642,-8.25,REVENUE,HOLDSWORTH LTD,121021
North East Lincolnshire Council,http://statistics.data.gov.uk/id/local-authority/00FC),Chief Executive,Director Of Economy & Growth,Discovery Centre,Equip / Furniture / Materials,Goods For Resale,LA123,26/07/2016,421632,321.57,REVENUE,EDEN FARM HULLEYS,133466
North East Lincolnshire Council,http://statistics.data.gov.uk/id/local-authority/00FC),Chief Executive,Director Of Economy & Growth,Discovery Centre,Equip / Furniture / Materials,Goods For Resale,LA123,28/07/2016,422326,282.7,REVENUE,EDEN FARM HULLEYS,133466
North East Lincolnshire Council,http://statistics.data.gov.uk/id/local-authority/00FC),Chief Executive,Director Of Economy & Growth,Discovery Centre,Equip / Furniture / Materials,Goods For Resale,LA123,28/07/2016,421630,258.2,REVENUE,EDEN FARM HULLEYS,133466
North East Lincolnshire Council,http://statistics.data.gov.uk/id/local-authority/00FC),Chief Executive,Director Of Economy & Growth,Discovery Centre,Equip / Furniture / Materials,Goods For Resale,LA123,28/07/2016,421639,264.58,REVENUE,EDEN FARM HULLEYS,133466
North East Lincolnshire Council,http://statistics.data.gov.uk/id/local-authority/00FC),Chief Executive,Director Of Economy & Growth,Discovery Centre,Equip / Furniture / Materials,Goods For Resale,LA123,28/07/2016,422298,343.2,REVENUE,R W STOKES & SONS LTD,123706
North East Lincolnshire Council,http://statistics.data.gov.uk/id/local-authority/00FC),Chief Executive,Director Of Economy & Growth,Discovery Centre,Equip / Furniture / Materials,Goods For Resale,LA123,28/07/2016,422300,465.6,REVENUE,R W STOKES & SONS LTD,123706
North East Lincolnshire Council,http://statistics.data.gov.uk/id/local-authority/00FC),Chief Executive,Director Of Economy & Growth,Discovery Centre,Equip / Furniture / Materials,Goods For Resale,LA123,28/07/2016,422302,313.7,REVENUE,R W STOKES & SONS LTD,123706
North East Lincolnshire Council,http://statistics.data.gov.uk/id/local-authority/00FC),Chief Executive,Director Of Economy & Growth,Discovery Centre,Equip / Furniture / Materials,Goods For Resale,LA123,25/07/2016,418898,348.65,REVENUE,TURNER BROS LTD,112906
North East Lincolnshire Council,http://statistics.data.gov.uk/id/local-authority/00FC),Chief Executive,Director Of Economy & Growth,Events,Rep Alterations Maint Building,Buildings - Repairs And Maint,GA102,25/07/2016,421983,1055.18,REVENUE,COFELY WORKPLACE LIMITED,123983
North East Lincolnshire Council,http://statistics.data.gov.uk/id/local-authority/00FC),Chief Executive,Director Of Economy & Growth,Events,Customer And Client Receipts,Fees/Chrgs-O/Side Scope Vat 4,VC125,28/07/2016,422768,1000,REVENUE,FIESTA ENTERTAINMENT LIMITED NEW WOLDS CIRCUS,133822
North East Lincolnshire Council,http://statistics.data.gov.uk/id/local-authority/00FC),Chief Executive,Director Of Economy & Growth,Events,Customer And Client Receipts,Fees/Chrgs-O/Side Scope Vat 4,VC125,14/07/2016,419300,1200,REVENUE,DEMON EVENTS,125764
North East Lincolnshire Council,http://statistics.data.gov.uk/id/local-authority/00FC),Chief Executive,Director Of Economy & Growth,Marketing And Promotion,Equip / Furniture / Materials,Promotions,LA124,12/07/2016,423928,506.81,REVENUE,REDACTED PERSONAL INFORMATION,REDACTED PERSONAL INFORMATION
North East Lincolnshire Council,http://statistics.data.gov.uk/id/local-authority/00FC),Chief Executive,Director Of Economy & Growth,Marketing And Promotion,Equip / Furniture / Materials,Promotions,LA124,25/07/2016,420899,1540.5,REVENUE,SIGN OF THE TIMES,100575
North East Lincolnshire Council,http://statistics.data.gov.uk/id/local-authority/00FC),Chief Executive,Director Of Economy & Growth,Marketing And Promotion,Equip / Furniture / Materials,Promotions,LA124,25/07/2016,420899,409.5,REVENUE,SIGN OF THE TIMES,100575
North East Lincolnshire Council,http://statistics.data.gov.uk/id/local-authority/00FC),Chief Executive,Director Of Economy & Growth,Museums & N F Heritage Centre,Contributions To Provisions,Contributions - Third Sector,LK102,07/07/2016,418547,2900,REVENUE,NORTH LINCOLNSHIRE COUNCIL,101186
North East Lincolnshire Council,http://statistics.data.gov.uk/id/local-authority/00FC),Chief Executive,Director Of Economy & Growth,Museums & N F Heritage Centre,Equip / Furniture / Materials,Goods For Resale,LA123,18/07/2016,419636,-11.95,REVENUE,HOLDSWORTH LTD,121021
North East Lincolnshire Council,http://statistics.data.gov.uk/id/local-authority/00FC),Chief Executive,Director Of Economy & Growth,Museums & N F Heritage Centre,Equip / Furniture / Materials,Goods For Resale,LA123,18/07/2016,419643,-1.95,REVENUE,HOLDSWORTH LTD,121021
North East Lincolnshire Council,http://statistics.data.gov.uk/id/local-authority/00FC),Chief Executive,Director Of Economy & Growth,Tourist Information Centre,Private Contractors,Third Party Prov - Private,PH101,19/07/2016,420892,667,REVENUE,SOLID ENTERTAINMENTS,106032
North East Lincolnshire Council,http://statistics.data.gov.uk/id/local-authority/00FC),Chief Executive,Director Of Economy & Growth,Tourist Information Centre,Private Contractors,Third Party Prov - Private,PH101,28/07/2016,422623,1497,REVENUE,THE CAXTON PLAYERS,129590
North East Lincolnshire Council,http://statistics.data.gov.uk/id/local-authority/00FC),Chief Executive,Director Of Economy & Growth,Tourist Information Centre,Private Contractors,Third Party Prov - Private,PH101,04/07/2016,418165,269,REVENUE,THE CAXTON PLAYERS,129590
North East Lincolnshire Council,http://statistics.data.gov.uk/id/local-authority/00FC),Chief Executive,Director Of Economy & Growth,Tourist Information Centre,Private Contractors,Third Party Prov - Private,PH101,28/07/2016,422625,424,REVENUE,THE CAXTON PLAYERS,129590
North East Lincolnshire Council,http://statistics.data.gov.uk/id/local-authority/00FC),Chief Executive,Director Of Economy & Growth,Tourist Information Centre,Private Contractors,Third Party Prov - Private,PH101,04/07/2016,418168,1940,REVENUE,DEMON EVENTS,125764
North East Lincolnshire Council,http://statistics.data.gov.uk/id/local-authority/00FC),Chief Executive,Director Of Economy & Growth,Tourist Information Centre,Private Contractors,Third Party Prov - Private,PH101,21/07/2016,421219,988,REVENUE,GRIMSBY JAZZ,104461
North East Lincolnshire Council,http://statistics.data.gov.uk/id/local-authority/00FC),Chief Executive,Director Of Economy & Growth,Tourist Information Centre,Private Contractors,Third Party Prov - Private,PH101,19/07/2016,420888,1410.5,REVENUE,NATIONAL EXPRESS LTD,100835
North East Lincolnshire Council,http://statistics.data.gov.uk/id/local-authority/00FC),Chief Executive,Director Of Economy & Growth,Tourist Information Centre,Private Contractors,Third Party Prov - Private,PH101,19/07/2016,420889,1438.35,REVENUE,NATIONAL EXPRESS LTD,100835
North East Lincolnshire Council,http://statistics.data.gov.uk/id/local-authority/00FC),Chief Executive,Director Of Economy & Growth,Tourist Information Centre,Private Contractors,Third Party Prov - Private,PH101,28/07/2016,422765,450,REVENUE,GRIMSBY AUDITORIUM,128160
North East Lincolnshire Council,http://statistics.data.gov.uk/id/local-authority/00FC),Chief Executive,Director Of Economy & Growth,Tourist Information Centre,Private Contractors,Third Party Prov - Private,PH101,05/07/2016,418169,1060.5,REVENUE,TONY HOPKINS ENTERTAINMENTS LTD,134192
North East Lincolnshire Council,http://statistics.data.gov.uk/id/local-authority/00FC),Chief Executive,Director Of Economy & Growth,Highways Plan Out Of Scope,Grants And Subscriptions,Subscriptions,LJ101,19/07/2016,417402,3850,REVENUE,LINCOLNSHIRE COUNTY COUNCIL,130779
North East Lincolnshire Council,http://statistics.data.gov.uk/id/local-authority/00FC),Chief Executive,Director Of Economy & Growth,Community Investment Team,Print Stationery / Gen Off Exp,Publicity,LD105,12/07/2016,418902,400,REVENUE,LOCAL WORLD LIMITED,118774
North East Lincolnshire Council,http://statistics.data.gov.uk/id/local-authority/00FC),Chief Executive,Director Of Economy & Growth,Community Investment Team,Print Stationery / Gen Off Exp,Publicity,LD105,14/07/2016,418903,400,REVENUE,LOCAL WORLD LIMITED,118774
North East Lincolnshire Council,http://statistics.data.gov.uk/id/local-authority/00FC),Chief Executive,Director Of Economy & Growth,Community Investment Team,Private Contractors,Third Party Prov - Private,PH101,26/07/2016,421986,866.25,REVENUE,NAVIGO,104262
North East Lincolnshire Council,http://statistics.data.gov.uk/id/local-authority/00FC),Chief Executive,Director Of Economy & Growth,Community Investment Team,Private Contractors,Third Party Prov - Private,PH101,26/07/2016,421986,866.25,REVENUE,NAVIGO,104262
North East Lincolnshire Council,http://statistics.data.gov.uk/id/local-authority/00FC),Chief Executive,Director Of Economy & Growth,Community Investment Team,Private Contractors,Third Party Prov - Private,PH101,05/07/2016,417967,6762.66,REVENUE,SCANIA (GREAT BRITAIN) LTD,101361
North East Lincolnshire Council,http://statistics.data.gov.uk/id/local-authority/00FC),Chief Executive,Director Of Economy & Growth,Community Investment Team,Private Contractors,Third Party Prov - Private,PH101,05/07/2016,417969,6195.44,REVENUE,SCANIA (GREAT BRITAIN) LTD,101361
North East Lincolnshire Council,http://statistics.data.gov.uk/id/local-authority/00FC),Chief Executive,Director Of Economy & Growth,Community Investment Team,Private Contractors,Third Party Prov - Private,PH101,12/07/2016,419889,-30,REVENUE,SCANIA (GREAT BRITAIN) LTD,101361
North East Lincolnshire Council,http://statistics.data.gov.uk/id/local-authority/00FC),Chief Executive,Director Of Economy & Growth,Community Investment Team,Private Contractors,Third Party Prov - Private,PH101,12/07/2016,419891,-30,REVENUE,SCANIA (GREAT BRITAIN) LTD,101361
North East Lincolnshire Council,http://statistics.data.gov.uk/id/local-authority/00FC),Chief Executive,Director Of Economy & Growth,Community Investment Team,Private Contractors,Third Party Prov - Private,PH101,28/07/2016,421984,1666,REVENUE,MARINER GROUNDWORK,132919
North East Lincolnshire Council,http://statistics.data.gov.uk/id/local-authority/00FC),Chief Executive,Director Of Economy & Growth,Community Investment Team,Private Contractors,Third Party Prov - Private,PH101,28/07/2016,421616,5900,REVENUE,FORESIGHT,114365
North East Lincolnshire Council,http://statistics.data.gov.uk/id/local-authority/00FC),Chief Executive,Director Of Economy & Growth,Community Investment Team,Private Contractors,Third Party Prov - Private,PH101,07/07/2016,418987,400,REVENUE,VOLUNTARY ACTION NORTH EAST LINCOLNSHIRE,103631
North East Lincolnshire Council,http://statistics.data.gov.uk/id/local-authority/00FC),Chief Executive,Director Of Economy & Growth,Community Investment Team,Private Contractors,Third Party Prov - Private,PH101,28/07/2016,421615,8000,REVENUE,FORESIGHT,114365
North East Lincolnshire Council,http://statistics.data.gov.uk/id/local-authority/00FC),Chief Executive,Director Of Economy & Growth,Community Investment Team,Private Contractors,Third Party Prov - Private,PH101,12/07/2016,419892,-693,REVENUE,SCANIA (GREAT BRITAIN) LTD,101361
North East Lincolnshire Council,http://statistics.data.gov.uk/id/local-authority/00FC),Chief Executive,Director Of Economy & Growth,Community Investment Team,Private Contractors,Third Party Prov - Private,PH101,05/07/2016,417966,312,REVENUE,SCANIA (GREAT BRITAIN) LTD,101361
North East Lincolnshire Council,http://statistics.data.gov.uk/id/local-authority/00FC),Chief Executive,Director Of Economy & Growth,Community Investment Team,Private Contractors,Third Party Prov - Private,PH101,12/07/2016,419892,-675,REVENUE,SCANIA (GREAT BRITAIN) LTD,101361
North East Lincolnshire Council,http://statistics.data.gov.uk/id/local-authority/00FC),Chief Executive,Director Of Economy & Growth,Community Investment Team,Private Contractors,Third Party Prov - Private,PH101,25/07/2016,421981,1113,REVENUE,GY CARS LIMITED,134155
North East Lincolnshire Council,http://statistics.data.gov.uk/id/local-authority/00FC),Chief Executive,Director Of Economy & Growth,Community Investment Team,Other Agencies,Grants Pd Over To Third Party,PJ138,25/07/2016,421573,11909.36,REVENUE,CENTRAL INSULATIONS LTD,116570
North East Lincolnshire Council,http://statistics.data.gov.uk/id/local-authority/00FC),Chief Executive,Director Of Economy & Growth,Community Investment Team,Other Agencies,Grants Pd Over To Third Party,PJ138,25/07/2016,421555,705.44,REVENUE,MPH FULFILMENT LTD,128058
North East Lincolnshire Council,http://statistics.data.gov.uk/id/local-authority/00FC),Chief Executive,Director Of Economy & Growth,Community Investment Team,Other Agencies,Grants Pd Over To Third Party,PJ138,25/07/2016,421572,23214.48,REVENUE,UMBER CREATIVE LIMITED,133869
North East Lincolnshire Council,http://statistics.data.gov.uk/id/local-authority/00FC),Chief Executive,Director Of Economy & Growth,Community Investment Team,Other Agencies,Grants Pd Over To Third Party,PJ138,07/07/2016,418705,4873.93,REVENUE,MARTIN WILLIAMS (HULL) LTD,122299
North East Lincolnshire Council,http://statistics.data.gov.uk/id/local-authority/00FC),Chief Executive,Director Of Economy & Growth,Community Investment Team,Other Agencies,Grants Pd Over To Third Party,PJ138,28/07/2016,422787,79578.27,REVENUE,ADVANCED PLASTICS LTD,133410
North East Lincolnshire Council,http://statistics.data.gov.uk/id/local-authority/00FC),Chief Executive,Director Of Economy & Growth,Community Investment Team,Other Agencies,Grants Pd Over To Third Party,PJ138,04/07/2016,417917,2569.89,REVENUE,TEVALIS LTD,134043
North East Lincolnshire Council,http://statistics.data.gov.uk/id/local-authority/00FC),Chief Executive,Director Of Economy & Growth,Community Investment Team,Other Agencies,Grants Pd Over To Third Party,PJ138,28/07/2016,422785,5030.11,REVENUE,TEVALIS LTD,134043
North East Lincolnshire Council,http://statistics.data.gov.uk/id/local-authority/00FC),Chief Executive,Director Of Economy & Growth,Community Investment Team,Other Agencies,Grants Pd Over To Third Party,PJ138,14/07/2016,419617,90000,REVENUE,LOADTEC LIMITED,133099
North East Lincolnshire Council,http://statistics.data.gov.uk/id/local-authority/00FC),Chief Executive,Director Of Economy & Growth,Community Investment Team,Other Agencies,Grants Pd Over To Third Party,PJ138,11/07/2016,419021,21358.1,REVENUE,DEARING PLASTICS LIMITED,134375
North East Lincolnshire Council,http://statistics.data.gov.uk/id/local-authority/00FC),Chief Executive,Director Of Economy & Growth,Community Investment Team,Other Agencies,Grants Pd Over To Third Party,PJ138,21/07/2016,420968,1129,REVENUE,DEARING PLASTICS LIMITED,134375
North East Lincolnshire Council,http://statistics.data.gov.uk/id/local-authority/00FC),Chief Executive,Director Of Economy & Growth,Community Investment Team,Other Agencies,Grants Pd Over To Third Party,PJ138,25/07/2016,421487,7200,REVENUE,AGENDA RESOURCE MANAGEMENT LTD,127298
North East Lincolnshire Council,http://statistics.data.gov.uk/id/local-authority/00FC),Chief Executive,Director Of Economy & Growth,Community Investment Team,Other Agencies,Grants Pd Over To Third Party,PJ138,28/07/2016,422813,30100,REVENUE,G F SMITH & SON (LONDON) LTD,100562
North East Lincolnshire Council,http://statistics.data.gov.uk/id/local-authority/00FC),Chief Executive,Director Of Economy & Growth,Retained Function,Private Contractors,Third Party Prov - Private,PH101,04/07/2016,417910,2790,REVENUE,ADVANTAGE TSC & D LTD,109136
North East Lincolnshire Council,http://statistics.data.gov.uk/id/local-authority/00FC),Chief Executive,Director Of Economy & Growth,Retained Function,Private Contractors,Third Party Prov - Private,PH101,18/07/2016,405395,25000,REVENUE,ENGIE SERVICES LTD,133267
North East Lincolnshire Council,http://statistics.data.gov.uk/id/local-authority/00FC),Chief Executive,Director Of Economy & Growth,Retained Function,Consultancy,Consultancy,PL101,26/07/2016,421607,1009.45,REVENUE,HENRY CLEARY,124266
North East Lincolnshire Council,http://statistics.data.gov.uk/id/local-authority/00FC),Chief Executive,Director Of Economy & Growth,Retained Function,Consultancy,Consultancy,PL101,28/07/2016,421606,1373.3,REVENUE,HENRY CLEARY,124266
North East Lincolnshire Council,http://statistics.data.gov.uk/id/local-authority/00FC),Chief Executive,Director Of Economy & Growth,Retained Function,Consultancy,Consultancy,PL101,28/07/2016,421608,1200,REVENUE,HENRY CLEARY,124266
North East Lincolnshire Council,http://statistics.data.gov.uk/id/local-authority/00FC),Chief Executive,Director Of Economy & Growth,Retained Function,Expenses,Course/Conf Accom - Employees,LH102,25/07/2016,421746,444.17,REVENUE,CLICK TRAVEL,127476
North East Lincolnshire Council,http://statistics.data.gov.uk/id/local-authority/00FC),Chief Executive,Director Of Economy & Growth,Retained Function,Consultancy,Consultancy,PL101,14/07/2016,418434,9791.95,REVENUE,PARSONS BRINCKERHOFF,122408
North East Lincolnshire Council,http://statistics.data.gov.uk/id/local-authority/00FC),Chief Executive,Director Of Economy & Growth,Retained Function,Miscellaneous Expenses,Legal Fees - General,LL103,19/07/2016,420893,1750,REVENUE,LANDMARK CHAMBERS,102475
North East Lincolnshire Council,http://statistics.data.gov.uk/id/local-authority/00FC),Chief Executive,Director Of Economy & Growth,Retained Function,Miscellaneous Expenses,Legal Fees - General,LL103,14/07/2016,420254,1250,REVENUE,MR N A CAMERON,107309
North East Lincolnshire Council,http://statistics.data.gov.uk/id/local-authority/00FC),Chief Executive,Director Of Economy & Growth,Retained Function,Miscellaneous Expenses,Legal Fees - General,LL103,14/07/2016,420255,2852,REVENUE,MR N A CAMERON,107309
North East Lincolnshire Council,http://statistics.data.gov.uk/id/local-authority/00FC),Chief Executive,Director Of Economy & Growth,Retained Function,Private Contractors,Third Party Prov - Private,PH101,18/07/2016,419389,1000,REVENUE,COFELY WORKPLACE LIMITED,123983
North East Lincolnshire Council,http://statistics.data.gov.uk/id/local-authority/00FC),Chief Executive,Director Of Economy & Growth,Retained Function,Private Contractors,Third Party Prov - Private,PH101,18/07/2016,420166,-1000,REVENUE,COFELY WORKPLACE LIMITED,123983
North East Lincolnshire Council,http://statistics.data.gov.uk/id/local-authority/00FC),Chief Executive,Director Of Economy & Growth,Retained Function,Private Contractors,Third Party Prov - Private,PH101,05/07/2016,417968,23820,REVENUE,ENGIE SERVICES LTD,133267
North East Lincolnshire Council,http://statistics.data.gov.uk/id/local-authority/00FC),Chief Executive,Director Of Economy & Growth,Retained Function,Private Contractors,Third Party Prov - Private,PH101,05/07/2016,417963,50000,REVENUE,ENGIE SERVICES LTD,133267
North East Lincolnshire Council,http://statistics.data.gov.uk/id/local-authority/00FC),Chief Executive,Director Of Economy & Growth,Retained Function,Private Contractors,Third Party Prov - Private,PH101,05/07/2016,417962,13000,REVENUE,ENGIE SERVICES LTD,133267
North East Lincolnshire Council,http://statistics.data.gov.uk/id/local-authority/00FC),Chief Executive,Director Of Economy & Growth,Retained Function,Private Contractors,Third Party Prov - Private,PH101,11/07/2016,418972,28037,REVENUE,P H CONSTRUCTION SERVICES LTD,102107
North East Lincolnshire Council,http://statistics.data.gov.uk/id/local-authority/00FC),Chief Executive,Director Of Economy & Growth,Retained Function,Private Contractors,Third Party Prov - Private,PH101,14/07/2016,419584,6185,REVENUE,ONEWAY TM LIMITED,128602
North East Lincolnshire Council,http://statistics.data.gov.uk/id/local-authority/00FC),Chief Executive,Director Of Economy & Growth,Retained Function,Miscellaneous Expenses,Hospitality,LL112,11/07/2016,418706,422.5,REVENUE,CLEETHORPES PIER AND PAVILLION LIMITED,129600
North East Lincolnshire Council,http://statistics.data.gov.uk/id/local-authority/00FC),Chief Executive,Director Of Economy & Growth,In Scope Contract,Private Contractors,Contract Payments,PH105,21/07/2016,420740,18125.27,REVENUE,ENGIE SERVICES LTD,133267
North East Lincolnshire Council,http://statistics.data.gov.uk/id/local-authority/00FC),Chief Executive,Director Of Economy & Growth,In Scope Contract,Private Contractors,Contract Payments,PH105,21/07/2016,420743,8369.82,REVENUE,ENGIE SERVICES LTD,133267
North East Lincolnshire Council,http://statistics.data.gov.uk/id/local-authority/00FC),Chief Executive,Director Of Economy & Growth,In Scope Contract,Private Contractors,Contract Payments,PH105,25/07/2016,421980,89717.43,REVENUE,ENGIE SERVICES LTD,133267
North East Lincolnshire Council,http://statistics.data.gov.uk/id/local-authority/00FC),Chief Executive,Director Of Economy & Growth,In Scope Contract,Private Contractors,Contract Payments,PH105,21/07/2016,420740,60145.45,REVENUE,ENGIE SERVICES LTD,133267
North East Lincolnshire Council,http://statistics.data.gov.uk/id/local-authority/00FC),Chief Executive,Director Of Economy & Growth,In Scope Contract,Private Contractors,Contract Payments,PH105,21/07/2016,420743,27773.72,REVENUE,ENGIE SERVICES LTD,133267
North East Lincolnshire Council,http://statistics.data.gov.uk/id/local-authority/00FC),Chief Executive,Director Of Economy & Growth,In Scope Contract,Private Contractors,Contract Payments,PH105,25/07/2016,421980,297711.24,REVENUE,ENGIE SERVICES LTD,133267
North East Lincolnshire Council,http://statistics.data.gov.uk/id/local-authority/00FC),Chief Executive,Director Of Economy & Growth,In Scope Contract,Private Contractors,Contract Payments,PH105,21/07/2016,420740,2840.77,REVENUE,ENGIE SERVICES LTD,133267
North East Lincolnshire Council,http://statistics.data.gov.uk/id/local-authority/00FC),Chief Executive,Director Of Economy & Growth,In Scope Contract,Private Contractors,Contract Payments,PH105,21/07/2016,420743,1311.8,REVENUE,ENGIE SERVICES LTD,133267
North East Lincolnshire Council,http://statistics.data.gov.uk/id/local-authority/00FC),Chief Executive,Director Of Economy & Growth,In Scope Contract,Private Contractors,Contract Payments,PH105,25/07/2016,421980,14061.44,REVENUE,ENGIE SERVICES LTD,133267
North East Lincolnshire Council,http://statistics.data.gov.uk/id/local-authority/00FC),Chief Executive,Director Of Economy & Growth,In Scope Contract,Private Contractors,Contract Payments,PH105,21/07/2016,420740,95770.8,REVENUE,ENGIE SERVICES LTD,133267
North East Lincolnshire Council,http://statistics.data.gov.uk/id/local-authority/00FC),Chief Executive,Director Of Economy & Growth,In Scope Contract,Private Contractors,Contract Payments,PH105,21/07/2016,420743,44224.66,REVENUE,ENGIE SERVICES LTD,133267
North East Lincolnshire Council,http://statistics.data.gov.uk/id/local-authority/00FC),Chief Executive,Director Of Economy & Growth,In Scope Contract,Private Contractors,Contract Payments,PH105,25/07/2016,421980,474051.55,REVENUE,ENGIE SERVICES LTD,133267
North East Lincolnshire Council,http://statistics.data.gov.uk/id/local-authority/00FC),Chief Executive,Director Of Economy & Growth,In Scope Contract,Private Contractors,Contract Payments,PH105,21/07/2016,420740,1110.32,REVENUE,ENGIE SERVICES LTD,133267
North East Lincolnshire Council,http://statistics.data.gov.uk/id/local-authority/00FC),Chief Executive,Director Of Economy & Growth,In Scope Contract,Private Contractors,Contract Payments,PH105,21/07/2016,420743,512.72,REVENUE,ENGIE SERVICES LTD,133267
North East Lincolnshire Council,http://statistics.data.gov.uk/id/local-authority/00FC),Chief Executive,Director Of Economy & Growth,In Scope Contract,Private Contractors,Contract Payments,PH105,25/07/2016,421980,5495.91,REVENUE,ENGIE SERVICES LTD,133267
North East Lincolnshire Council,http://statistics.data.gov.uk/id/local-authority/00FC),Chief Executive,Director Of Economy & Growth,In Scope Contract,Private Contractors,Contract Payments,PH105,21/07/2016,420740,14574.07,REVENUE,ENGIE SERVICES LTD,133267
North East Lincolnshire Council,http://statistics.data.gov.uk/id/local-authority/00FC),Chief Executive,Director Of Economy & Growth,In Scope Contract,Private Contractors,Contract Payments,PH105,21/07/2016,420743,6729.96,REVENUE,ENGIE SERVICES LTD,133267
North East Lincolnshire Council,http://statistics.data.gov.uk/id/local-authority/00FC),Chief Executive,Director Of Economy & Growth,In Scope Contract,Private Contractors,Contract Payments,PH105,25/07/2016,421980,72139.57,REVENUE,ENGIE SERVICES LTD,133267
North East Lincolnshire Council,http://statistics.data.gov.uk/id/local-authority/00FC),Chief Executive,Director Of Economy & Growth,In Scope Contract,Private Contractors,Contract Payments,PH105,21/07/2016,420740,7174.32,REVENUE,ENGIE SERVICES LTD,133267
North East Lincolnshire Council,http://statistics.data.gov.uk/id/local-authority/00FC),Chief Executive,Director Of Economy & Growth,In Scope Contract,Private Contractors,Contract Payments,PH105,21/07/2016,420743,3312.92,REVENUE,ENGIE SERVICES LTD,133267
North East Lincolnshire Council,http://statistics.data.gov.uk/id/local-authority/00FC),Chief Executive,Director Of Economy & Growth,In Scope Contract,Private Contractors,Contract Payments,PH105,25/07/2016,421980,35511.81,REVENUE,ENGIE SERVICES LTD,133267
North East Lincolnshire Council,http://statistics.data.gov.uk/id/local-authority/00FC),Chief Executive,Director Of Economy & Growth,Planning,Customer And Client Receipts,Fees/Chrgs-O/Side Scope Vat 4,VC125,26/07/2016,427719,385,REVENUE,REDACTED PERSONAL INFORMATION,REDACTED PERSONAL INFORMATION
North East Lincolnshire Council,http://statistics.data.gov.uk/id/local-authority/00FC),Chief Executive,Director Of Economy & Growth,Drainage & Coastal Defence,Private Contractors,Third Party Prov - Private,PH101,29/07/2016,422710,2340.76,REVENUE,PBS CONSTRUCTION (NORTH EAST) LTD,127459
North East Lincolnshire Council,http://statistics.data.gov.uk/id/local-authority/00FC),Chief Executive,Director Of Economy & Growth,Highways Dso,Dlo Holding,Depot Fuel Holding Account,LM101,11/07/2016,418525,1035.75,REVENUE,CERTAS ENERGY,124794
North East Lincolnshire Council,http://statistics.data.gov.uk/id/local-authority/00FC),Chief Executive,Director Of Economy & Growth,Highways Dso,Dlo Holding,Depot Fuel Holding Account,LM101,11/07/2016,418524,15701.4,REVENUE,CERTAS ENERGY,124794
North East Lincolnshire Council,http://statistics.data.gov.uk/id/local-authority/00FC),Chief Executive,Director Of Economy & Growth,Highways Dso,Dlo Holding,Depot Fuel Holding Account,LM101,07/07/2016,418858,15060.53,REVENUE,CERTAS ENERGY,124794
North East Lincolnshire Council,http://statistics.data.gov.uk/id/local-authority/00FC),Chief Executive,Director Of Economy & Growth,Highways Dso,Dlo Holding,Depot Fuel Holding Account,LM101,14/07/2016,419874,1061.25,REVENUE,CERTAS ENERGY,124794
North East Lincolnshire Council,http://statistics.data.gov.uk/id/local-authority/00FC),Chief Executive,Director Of Economy & Growth,Highways Dso,Dlo Holding,Depot Fuel Holding Account,LM101,28/07/2016,422251,15921.12,REVENUE,CERTAS ENERGY,124794
North East Lincolnshire Council,http://statistics.data.gov.uk/id/local-authority/00FC),Chief Executive,Director Of Economy & Growth,Highways Management,Rep Alterations Maint Building,Road Path Drain - Maintenance,GA116,14/07/2016,419928,2640.92,REVENUE,SPECIALIST SURFACING LIMITED,100579
North East Lincolnshire Council,http://statistics.data.gov.uk/id/local-authority/00FC),Chief Executive,Director Of Economy & Growth,Highways Structures,Energy Costs,Electricity,GB102,04/07/2016,418163,-51.7,REVENUE,NPOWER YORKSHIRE LTD,101525
North East Lincolnshire Council,http://statistics.data.gov.uk/id/local-authority/00FC),Chief Executive,Director Of Economy & Growth,Operational Management,Equip / Furniture / Materials,Equipment - Maintenance,LA104,21/07/2016,420275,806,REVENUE,MAIN STREET SIGNS LTD,105041
North East Lincolnshire Council,http://statistics.data.gov.uk/id/local-authority/00FC),Chief Executive,Director Of Economy & Growth,Street Lighting,Rep Alterations Maint Building,Street Lighting-General Maint,GA111,11/07/2016,418837,389.99,REVENUE,NORTHERN POWERGRID (YORKSHIRE) PLC,108328
North East Lincolnshire Council,http://statistics.data.gov.uk/id/local-authority/00FC),Chief Executive,Director Of Economy & Growth,Street Lighting,Energy Costs,Electricity,GB102,04/07/2016,418001,2526.92,REVENUE,NPOWER LIMITED,101414
North East Lincolnshire Council,http://statistics.data.gov.uk/id/local-authority/00FC),Chief Executive,Director Of Economy & Growth,Street Lighting,Rep Alterations Maint Building,Street Lighting - Energy,GA110,04/07/2016,418001,7264.9,REVENUE,NPOWER LIMITED,101414
North East Lincolnshire Council,http://statistics.data.gov.uk/id/local-authority/00FC),Chief Executive,Director Of Economy & Growth,Street Lighting,Rep Alterations Maint Building,Street Lighting - Energy,GA110,04/07/2016,418000,427.12,REVENUE,NPOWER LIMITED,101414
North East Lincolnshire Council,http://statistics.data.gov.uk/id/local-authority/00FC),Chief Executive,Director Of Economy & Growth,Street Lighting,Rep Alterations Maint Building,Street Lighting - Energy,GA110,04/07/2016,417999,438.49,REVENUE,NPOWER LIMITED,101414
North East Lincolnshire Council,http://statistics.data.gov.uk/id/local-authority/00FC),Chief Executive,Director Of Economy & Growth,Street Lighting,Rep Alterations Maint Building,Street Lighting - Energy,GA110,04/07/2016,418000,1281.37,REVENUE,NPOWER LIMITED,101414
North East Lincolnshire Council,http://statistics.data.gov.uk/id/local-authority/00FC),Chief Executive,Director Of Economy & Growth,Street Lighting,Rep Alterations Maint Building,Street Lighting - Energy,GA110,04/07/2016,417999,1315.46,REVENUE,NPOWER LIMITED,101414
North East Lincolnshire Council,http://statistics.data.gov.uk/id/local-authority/00FC),Chief Executive,Director Of Economy & Growth,Street Lighting,Rep Alterations Maint Building,Street Lighting - Energy,GA110,04/07/2016,418001,21794.72,REVENUE,NPOWER LIMITED,101414
North East Lincolnshire Council,http://statistics.data.gov.uk/id/local-authority/00FC),Chief Executive,Director Of Economy & Growth,Street Lighting,Rep Alterations Maint Building,Street Lighting-General Maint,GA111,11/07/2016,418839,592.59,REVENUE,NORTHERN POWERGRID (YORKSHIRE) PLC,108328
North East Lincolnshire Council,http://statistics.data.gov.uk/id/local-authority/00FC),Chief Executive,Director Of Economy & Growth,Street Lighting,Rep Alterations Maint Building,Street Lighting-General Maint,GA111,11/07/2016,418838,389.99,REVENUE,NORTHERN POWERGRID (YORKSHIRE) PLC,108328
North East Lincolnshire Council,http://statistics.data.gov.uk/id/local-authority/00FC),Chief Executive,Director Of Economy & Growth,Transport Policy,Private Contractors,Concessionary Fares,PH104,26/07/2016,420464,1824,REVENUE,ESP SYSTEX LTD,102062
North East Lincolnshire Council,http://statistics.data.gov.uk/id/local-authority/00FC),Chief Executive,Director Of Economy & Growth,Transport Policy,Private Contractors,Concessionary Fares,PH104,14/07/2016,419679,REDACTED COMMERCIALLY SENSITIVE ,REVENUE,AMVALE LIMITED,101030
North East Lincolnshire Council,http://statistics.data.gov.uk/id/local-authority/00FC),Chief Executive,Director Of Economy & Growth,Transport Policy,Private Contractors,Concessionary Fares,PH104,11/07/2016,418212,REDACTED COMMERCIALLY SENSITIVE ,REVENUE,STAGECOACH SERVICES,101404
North East Lincolnshire Council,http://statistics.data.gov.uk/id/local-authority/00FC),Chief Executive,Director Of Economy & Growth,Transport Policy,Private Contractors,Concessionary Fares,PH104,12/07/2016,419327,REDACTED COMMERCIALLY SENSITIVE ,REVENUE,ARRIVA RAIL NORTH LTD,134093
North East Lincolnshire Council,http://statistics.data.gov.uk/id/local-authority/00FC),Chief Executive,Director Of Economy & Growth,Transport Policy,Private Contractors,Concessionary Fares,PH104,12/07/2016,419328,REDACTED COMMERCIALLY SENSITIVE ,REVENUE,ARRIVA RAIL NORTH LTD,134093
North East Lincolnshire Council,http://statistics.data.gov.uk/id/local-authority/00FC),Chief Executive,Director Of Economy & Growth,Transport Policy,Private Contractors,Subsidies,PH102,11/07/2016,418218,REDACTED COMMERCIALLY SENSITIVE ,REVENUE,STAGECOACH SERVICES,101404
North East Lincolnshire Council,http://statistics.data.gov.uk/id/local-authority/00FC),Chief Executive,Director Of Economy & Growth,Transport Policy,Private Contractors,Subsidies,PH102,11/07/2016,418213,REDACTED COMMERCIALLY SENSITIVE ,REVENUE,STAGECOACH SERVICES,101404
North East Lincolnshire Council,http://statistics.data.gov.uk/id/local-authority/00FC),Chief Executive,Director Of Economy & Growth,Transport Policy,Private Contractors,Contract Payments,PH105,14/07/2016,420094,26865.28,REVENUE,ESSENTIAL FLEET SERVICES LTD,101159
North East Lincolnshire Council,http://statistics.data.gov.uk/id/local-authority/00FC),Chief Executive,Director Of Economy & Growth,Transport Policy,Consultancy,Consultancy,PL101,18/07/2016,419345,4886.85,REVENUE,THE TAS PARTNERSHIP LIMITED,128717
North East Lincolnshire Council,http://statistics.data.gov.uk/id/local-authority/00FC),Chief Executive,Director Of Economy & Growth,Transport Policy,Private Contractors,Contract Payments,PH105,28/07/2016,422133,4926,REVENUE,LOVE TO RIDE LTD,119407
North East Lincolnshire Council,http://statistics.data.gov.uk/id/local-authority/00FC),Chief Executive,Director Of Economy & Growth,Transport Policy,Private Contractors,Contract Payments,PH105,28/07/2016,422134,17810,REVENUE,LOVE TO RIDE LTD,119407
North East Lincolnshire Council,http://statistics.data.gov.uk/id/local-authority/00FC),Chief Executive,Director Of Public Health,Community Support Mgmt A/C,Direct Employee Expenses,Agency Staff,EA105,07/07/2016,416820,23493,REVENUE,LINCS INSPIRE LTD,120610
North East Lincolnshire Council,http://statistics.data.gov.uk/id/local-authority/00FC),Chief Executive,Director Of Public Health,Leisure Contracts,Rep Alterations Maint Building,Buildings - Repairs And Maint,GA102,12/07/2016,419602,1515,REVENUE,ICE TECH UK,121107
North East Lincolnshire Council,http://statistics.data.gov.uk/id/local-authority/00FC),Chief Executive,Director Of Public Health,Leisure Contracts,Rep Alterations Maint Building,Buildings - Repairs And Maint,GA102,18/07/2016,419367,2919.58,REVENUE,LEGEND CLUB MANAGMENT SYSTEMS (UK) LTD,119144
North East Lincolnshire Council,http://statistics.data.gov.uk/id/local-authority/00FC),Chief Executive,Director Of Public Health,Leisure Contracts,Rep Alterations Maint Building,Buildings - Repairs And Maint,GA102,26/07/2016,421589,20005.85,REVENUE,ENGIE SERVICES LTD,133267
North East Lincolnshire Council,http://statistics.data.gov.uk/id/local-authority/00FC),Chief Executive,Director Of Public Health,Leisure Contracts,Rep Alterations Maint Building,Buildings - Repairs And Maint,GA102,25/07/2016,421963,630,REVENUE,FREDSHAW & CO LTD,134567
North East Lincolnshire Council,http://statistics.data.gov.uk/id/local-authority/00FC),Chief Executive,Director Of Public Health,Leisure Contracts,Water Services,Water,GE101,28/07/2016,422153,8455.82,REVENUE,ANGLIAN WATER,100508
North East Lincolnshire Council,http://statistics.data.gov.uk/id/local-authority/00FC),Chief Executive,Director Of Public Health,Leisure Contracts,Water Services,Water,GE101,28/07/2016,422152,1286.67,REVENUE,ANGLIAN WATER,100508
North East Lincolnshire Council,http://statistics.data.gov.uk/id/local-authority/00FC),Chief Executive,Director Of Public Health,Library Service,Direct Employee Expenses,Agency Staff,EA105,28/07/2016,421701,9600,REVENUE,CULLETON BROWN LTD,134507
North East Lincolnshire Council,http://statistics.data.gov.uk/id/local-authority/00FC),Chief Executive,Director Of Public Health,Director Public Health,Equip / Furniture / Materials,Newspapers/Periodicals,LA122,29/07/2016,421278,1950,REVENUE,ASSOCIATION OF DIRECTORS OF PUBLIC HEALTH (UK,134547
North East Lincolnshire Council,http://statistics.data.gov.uk/id/local-authority/00FC),Chief Executive,Director Of Public Health,Director Public Health,Expenses,Course/Conf Accom - Employees,LH102,14/07/2016,419340,366.67,REVENUE,FRESCO CAFE,121977
North East Lincolnshire Council,http://statistics.data.gov.uk/id/local-authority/00FC),Chief Executive,Director Of Public Health,Director Public Health,Private Contractors,Third Party Prov - Private,PH101,26/07/2016,420782,325,REVENUE,STUART PHILLIPS T/A B W Y CANINE,127246
North East Lincolnshire Council,http://statistics.data.gov.uk/id/local-authority/00FC),Chief Executive,Director Of Public Health,Director Public Health,Consultancy,Consultancy,PL101,11/07/2016,418180,1665.5,REVENUE,MR WILLIAM GEER,134297
North East Lincolnshire Council,http://statistics.data.gov.uk/id/local-authority/00FC),Chief Executive,Director Of Public Health,Director Public Health,Consultancy,Consultancy,PL101,11/07/2016,418179,1600,REVENUE,MR WILLIAM GEER,134297
North East Lincolnshire Council,http://statistics.data.gov.uk/id/local-authority/00FC),Chief Executive,Director Of Public Health,Drug / Alcohol Action Service,Private Contractors,Contract Payments,PH105,04/07/2016,417423,118583.33,REVENUE,CARE PLUS GROUP,106467
North East Lincolnshire Council,http://statistics.data.gov.uk/id/local-authority/00FC),Chief Executive,Director Of Public Health,Drug / Alcohol Action Service,Private Contractors,Contract Payments,PH105,28/07/2016,421191,118583.33,REVENUE,CARE PLUS GROUP,106467
North East Lincolnshire Council,http://statistics.data.gov.uk/id/local-authority/00FC),Chief Executive,Director Of Public Health,Drug / Alcohol Action Service,Private Contractors,Contract Payments,PH105,12/07/2016,419588,15833.33,REVENUE,FREELANCE NEEDLE EXCHANGE LIMITED,119999
North East Lincolnshire Council,http://statistics.data.gov.uk/id/local-authority/00FC),Chief Executive,Director Of Public Health,Drug / Alcohol Action Service,Private Contractors,Third Party Prov - Private,PH101,12/07/2016,419586,12500,REVENUE,FREELANCE NEEDLE EXCHANGE LIMITED,119999
North East Lincolnshire Council,http://statistics.data.gov.uk/id/local-authority/00FC),Chief Executive,Director Of Public Health,Lifestyle Services,Car Allowances,Travel - Employees,JF101,25/07/2016,421959,-148.5,REVENUE,CLICK TRAVEL,127476
North East Lincolnshire Council,http://statistics.data.gov.uk/id/local-authority/00FC),Chief Executive,Director Of Public Health,Lifestyle Services,Car Allowances,Travel - Employees,JF101,25/07/2016,421960,-148.5,REVENUE,CLICK TRAVEL,127476
North East Lincolnshire Council,http://statistics.data.gov.uk/id/local-authority/00FC),Chief Executive,Director Of Public Health,Lifestyle Services,Equip / Furniture / Materials,Equipment - Purchase,LA101,26/07/2016,421729,450,REVENUE,MHFA ENGLAND CIC,108265
North East Lincolnshire Council,http://statistics.data.gov.uk/id/local-authority/00FC),Chief Executive,Director Of Public Health,Lifestyle Services,Contributions To Provisions,Contributions - Other,LK103,28/07/2016,421171,989.5,REVENUE,MARY ANNE CROOK,132802
North East Lincolnshire Council,http://statistics.data.gov.uk/id/local-authority/00FC),Chief Executive,Director Of Public Health,Lifestyle Services,Contributions To Provisions,Contributions - Other,LK103,28/07/2016,421172,997.15,REVENUE,MARION WILLERS,132800
North East Lincolnshire Council,http://statistics.data.gov.uk/id/local-authority/00FC),Chief Executive,Director Of Public Health,Lifestyle Services,Private Contractors,Third Party Prov - Private,PH101,28/07/2016,422651,315,REVENUE,DR E AMIN,104099
North East Lincolnshire Council,http://statistics.data.gov.uk/id/local-authority/00FC),Chief Executive,Director Of Public Health,Lifestyle Services,Private Contractors,Third Party Prov - Private,PH101,28/07/2016,422691,255,REVENUE,DR I D S CHALMERS & DR V O MEIER,104521
North East Lincolnshire Council,http://statistics.data.gov.uk/id/local-authority/00FC),Chief Executive,Director Of Public Health,Lifestyle Services,Private Contractors,Third Party Prov - Private,PH101,28/07/2016,422693,615,REVENUE,CLEE MEDICAL CENTRE,105319
North East Lincolnshire Council,http://statistics.data.gov.uk/id/local-authority/00FC),Chief Executive,Director Of Public Health,Lifestyle Services,Private Contractors,Third Party Prov - Private,PH101,28/07/2016,422648,390,REVENUE,SCARTHO MEDICAL CENTRE,107570
North East Lincolnshire Council,http://statistics.data.gov.uk/id/local-authority/00FC),Chief Executive,Director Of Public Health,Lifestyle Services,Rents,Room Hire,GC103,11/07/2016,418433,344.9,REVENUE,ST JAMES CHURCHWARDENS MAIN ACCOUNT,106502
North East Lincolnshire Council,http://statistics.data.gov.uk/id/local-authority/00FC),Chief Executive,Director Of Public Health,Lifestyle Services,Communications And Computing,Computer S/Ware - Licences,LF103,19/07/2016,420178,3866.66,REVENUE,NORTH 51 LIMITED,102609
North East Lincolnshire Council,http://statistics.data.gov.uk/id/local-authority/00FC),Chief Executive,Director Of Public Health,Lifestyle Services,Miscellaneous Expenses,Legal Fees - General,LL103,12/07/2016,419061,350,REVENUE,THOMPSONS SOLICITORS,101854
North East Lincolnshire Council,http://statistics.data.gov.uk/id/local-authority/00FC),Chief Executive,Director Of Public Health,Sexual Health,Contributions To Provisions,Contributions - Communities,LK101,28/07/2016,422755,3784.4,REVENUE,VIRGIN CARE SERVICES LTD,120538
North East Lincolnshire Council,http://statistics.data.gov.uk/id/local-authority/00FC),Chief Executive,Director Of Public Health,Sexual Health,Voluntary Associations,Third Pp - Third Sector,PF101,14/07/2016,419980,2331.69,REVENUE,POSITIVE HEALTH,125235
North East Lincolnshire Council,http://statistics.data.gov.uk/id/local-authority/00FC),Chief Executive,Director Of Public Health,Sexual Health,Private Contractors,Contract Payments,PH105,21/07/2016,420867,55401,REVENUE,VIRGIN CARE SERVICES LTD,120538
North East Lincolnshire Council,http://statistics.data.gov.uk/id/local-authority/00FC),Chief Executive,Director Of Public Health,Sexual Health,Private Contractors,Third Party Prov - Private,PH101,21/07/2016,420857,375,REVENUE,ASDA PHARMACY,104011
North East Lincolnshire Council,http://statistics.data.gov.uk/id/local-authority/00FC),Chief Executive,Director Of Public Health,Sexual Health,Other Agencies,Contract Plus,PJ135,28/07/2016,422756,348.8,REVENUE,PASANTE HEALTHCARE LTD,103011
North East Lincolnshire Council,http://statistics.data.gov.uk/id/local-authority/00FC),Chief Executive,Director Of Public Health,Sexual Health,Other Agencies,Health Charges,PJ131,14/07/2016,419662,268,REVENUE,LEEDS CITY COUNCIL,100545
North East Lincolnshire Council,http://statistics.data.gov.uk/id/local-authority/00FC),Chief Executive,Director Of Public Health,Sexual Health,Other Agencies,Health Charges,PJ131,18/07/2016,420537,292.84,REVENUE,CAMBRIDGE COMMUNITY SERVICES,129561
North East Lincolnshire Council,http://statistics.data.gov.uk/id/local-authority/00FC),Chief Executive,Director Of Public Health,Sexual Health,Other Agencies,Health Charges,PJ131,28/07/2016,422757,337,REVENUE,VIRGIN CARE SERVICES LTD,120538
North East Lincolnshire Council,http://statistics.data.gov.uk/id/local-authority/00FC),Chief Executive,Director Of Public Health,Sexual Health,Other Agencies,Health Charges,PJ131,28/07/2016,422754,917,REVENUE,VIRGIN CARE SERVICES LTD,120538
North East Lincolnshire Council,http://statistics.data.gov.uk/id/local-authority/00FC),Chief Executive,Director Of Public Health,Sexual Health,Other Agencies,Health Charges,PJ131,28/07/2016,422702,268,REVENUE,BARTS HEALTH NHS TRUST,123120
North East Lincolnshire Council,http://statistics.data.gov.uk/id/local-authority/00FC),Chief Executive,Director Of Public Health,Sexual Health,Other Agencies,Other,PJ121,21/07/2016,421073,2280,REVENUE,THE ROXTON PRACTICE,104395
North East Lincolnshire Council,http://statistics.data.gov.uk/id/local-authority/00FC),Chief Executive,Director Of Public Health,Sexual Health,Other Agencies,Other,PJ121,14/07/2016,419978,440,REVENUE,SCARTHO MEDICAL CENTRE,107570
North East Lincolnshire Council,http://statistics.data.gov.uk/id/local-authority/00FC),Chief Executive,Director Of Public Health,Sexual Health,Other Agencies,Other,PJ121,14/07/2016,419978,400,REVENUE,SCARTHO MEDICAL CENTRE,107570
North East Lincolnshire Council,http://statistics.data.gov.uk/id/local-authority/00FC),Chief Executive,Director Of Public Health,Sexual Health,Other Agencies,Other,PJ121,14/07/2016,419976,440,REVENUE,DR HOPPER & PARTNERS,103900
North East Lincolnshire Council,http://statistics.data.gov.uk/id/local-authority/00FC),Chief Executive,Director Of Public Health,Sexual Health,Other Agencies,Other,PJ121,14/07/2016,419976,280,REVENUE,DR HOPPER & PARTNERS,103900
North East Lincolnshire Council,http://statistics.data.gov.uk/id/local-authority/00FC),Chief Executive,Director Of Public Health,Sexual Health,Other Agencies,Other,PJ121,28/07/2016,422703,2800,REVENUE,BEACON MEDICAL CENTRE,109525
North East Lincolnshire Council,http://statistics.data.gov.uk/id/local-authority/00FC),Chief Executive,Shared Services,Accountancy,Indirect Employee Expenses,Emp Relate Ins General,EB116,28/07/2016,422786,1095,REVENUE,AON UK LIMITED,101519
North East Lincolnshire Council,http://statistics.data.gov.uk/id/local-authority/00FC),Chief Executive,Shared Services,Accountancy,Government Departments,Third Party Prov - Govt Depts,PE101,14/07/2016,419618,32629.62,REVENUE,KPMG FEES ACCOUNT,101071
North East Lincolnshire Council,http://statistics.data.gov.uk/id/local-authority/00FC),Chief Executive,Shared Services,Benefit Payments & Subsidy,Housing Benefit,Rent Allow General,QC101,07/07/2016,418942,273.75,REVENUE,HUNTINGDONSHIRE DISTRICT COUNCIL,127919
North East Lincolnshire Council,http://statistics.data.gov.uk/id/local-authority/00FC),Chief Executive,Shared Services,Benefit Payments & Subsidy,Miscellaneous Income,Exp Recov - O/Side Scope Vat 4,VG107,28/07/2016,422227,400,REVENUE,JACOBS CERTIFIED BAILIFFS,101788
North East Lincolnshire Council,http://statistics.data.gov.uk/id/local-authority/00FC),Chief Executive,Shared Services,Local Taxation & Benefits,Communications And Computing,Computer H/Ware - Purchases,LF105,14/07/2016,419402,-72,REVENUE,XMA LIMITED,100699
North East Lincolnshire Council,http://statistics.data.gov.uk/id/local-authority/00FC),Chief Executive,Shared Services,Local Taxation & Benefits,Communications And Computing,Postage,LF111,18/07/2016,420551,2263.94,REVENUE,CAPITA BUSINESS SERVICES LTD,102314
North East Lincolnshire Council,http://statistics.data.gov.uk/id/local-authority/00FC),Chief Executive,Shared Services,Local Taxation & Benefits,Communications And Computing,Postage,LF111,18/07/2016,420552,23197.21,REVENUE,CAPITA BUSINESS SERVICES LTD,102314
North East Lincolnshire Council,http://statistics.data.gov.uk/id/local-authority/00FC),Chief Executive,Shared Services,Local Taxation & Benefits,Miscellaneous Expenses,Other Expenses General,LL119,11/07/2016,419263,733.5,REVENUE,IMMINGHAM TOWN COUNCIL,101597
North East Lincolnshire Council,http://statistics.data.gov.uk/id/local-authority/00FC),Chief Executive,Shared Services,Local Taxation & Benefits,Indirect Employee Expenses,Staff Training,EB122,14/07/2016,419350,1785,REVENUE,BROOKS JORDAN TRAINING SERVICES LTD,134490
North East Lincolnshire Council,http://statistics.data.gov.uk/id/local-authority/00FC),Chief Executive,Shared Services,Local Taxation & Benefits,Miscellaneous Expenses,Other Supplies & Services,LL110,28/07/2016,422225,250,REVENUE,INFORM CPI,124803
North East Lincolnshire Council,http://statistics.data.gov.uk/id/local-authority/00FC),Chief Executive,Shared Services,Shared Services Lead,Miscellaneous Expenses,Legal Fees - General,LL103,14/07/2016,419445,2000,REVENUE,WILKIN CHAPMAN LLP,110675
North East Lincolnshire Council,http://statistics.data.gov.uk/id/local-authority/00FC),Chief Executive,Shared Services,I.T Shared Service,Communications And Computing,Telephones,LF112,14/07/2016,419578,5561.11,REVENUE,VIRGIN MEDIA,107612
North East Lincolnshire Council,http://statistics.data.gov.uk/id/local-authority/00FC),Chief Executive,Shared Services,I.T Shared Service,Communications And Computing,Telephones,LF112,14/07/2016,419578,319.6,REVENUE,VIRGIN MEDIA,107612
North East Lincolnshire Council,http://statistics.data.gov.uk/id/local-authority/00FC),Chief Executive,Shared Services,I.T Shared Service,Communications And Computing,Telephones,LF112,14/07/2016,419578,853.66,REVENUE,VIRGIN MEDIA,107612
North East Lincolnshire Council,http://statistics.data.gov.uk/id/local-authority/00FC),Chief Executive,Shared Services,I.T Shared Service,Communications And Computing,Telephones,LF112,28/07/2016,422807,257.54,REVENUE,BRITISH TELECOMMUNICATIONS PLC,100974
North East Lincolnshire Council,http://statistics.data.gov.uk/id/local-authority/00FC),Chief Executive,Shared Services,I.T Shared Service,Communications And Computing,Computer H/Ware - Maintenance,LF106,29/07/2016,421557,1140,REVENUE,ASSURED FIRE & SECURITY,102014
North East Lincolnshire Council,http://statistics.data.gov.uk/id/local-authority/00FC),Chief Executive,Shared Services,I.T Shared Service,Communications And Computing,Computer H/Ware - Purchases,LF105,05/07/2016,417881,550,REVENUE,ESP SYSTEX LTD,102062
North East Lincolnshire Council,http://statistics.data.gov.uk/id/local-authority/00FC),Chief Executive,Shared Services,I.T Shared Service,Communications And Computing,Computer H/Ware - Purchases,LF105,05/07/2016,417881,550,REVENUE,ESP SYSTEX LTD,102062
North East Lincolnshire Council,http://statistics.data.gov.uk/id/local-authority/00FC),Chief Executive,Shared Services,I.T Shared Service,Communications And Computing,Computer H/Ware - Purchases,LF105,14/07/2016,419578,250,REVENUE,VIRGIN MEDIA,107612
North East Lincolnshire Council,http://statistics.data.gov.uk/id/local-authority/00FC),Chief Executive,Shared Services,I.T Shared Service,Communications And Computing,Computer H/Ware - Purchases,LF105,14/07/2016,419578,397.2,REVENUE,VIRGIN MEDIA,107612
North East Lincolnshire Council,http://statistics.data.gov.uk/id/local-authority/00FC),Chief Executive,Shared Services,I.T Shared Service,Communications And Computing,Computer H/Ware - Purchases,LF105,07/07/2016,418884,1879,REVENUE,PRIME LIGHT ELECTRICAL LTD,128586
North East Lincolnshire Council,http://statistics.data.gov.uk/id/local-authority/00FC),Chief Executive,Shared Services,I.T Shared Service,Communications And Computing,Computer H/Ware - Purchases,LF105,19/07/2016,420465,639.34,REVENUE,TRUSTMARQUE SOLUTIONS LTD,101275
North East Lincolnshire Council,http://statistics.data.gov.uk/id/local-authority/00FC),Chief Executive,Shared Services,I.T Shared Service,Communications And Computing,Computer S/Ware - Maintenance,LF102,28/07/2016,422784,-3183.48,REVENUE,MIDLAND SOFTWARE LTD,102633
North East Lincolnshire Council,http://statistics.data.gov.uk/id/local-authority/00FC),Chief Executive,Shared Services,I.T Shared Service,Communications And Computing,Computer S/Ware - Maintenance,LF102,26/07/2016,407826,2818.27,REVENUE,VIRGIN MEDIA,107612
North East Lincolnshire Council,http://statistics.data.gov.uk/id/local-authority/00FC),Chief Executive,Shared Services,I.T Shared Service,Communications And Computing,Computer S/Ware - Maintenance,LF102,05/07/2016,417977,1052,REVENUE,SERVELEC SYNERGY LTD,134371
North East Lincolnshire Council,http://statistics.data.gov.uk/id/local-authority/00FC),Chief Executive,Shared Services,I.T Shared Service,Communications And Computing,Computer S/Ware - Maintenance,LF102,05/07/2016,417977,1052,REVENUE,SERVELEC SYNERGY LTD,134371
North East Lincolnshire Council,http://statistics.data.gov.uk/id/local-authority/00FC),Chief Executive,Shared Services,I.T Shared Service,Communications And Computing,Computer S/Ware - Maintenance,LF102,05/07/2016,417977,1055,REVENUE,SERVELEC SYNERGY LTD,134371
North East Lincolnshire Council,http://statistics.data.gov.uk/id/local-authority/00FC),Chief Executive,Shared Services,I.T Shared Service,Communications And Computing,Computer S/Ware - Maintenance,LF102,28/07/2016,422782,16713.21,REVENUE,MIDLAND SOFTWARE LTD,102633
North East Lincolnshire Council,http://statistics.data.gov.uk/id/local-authority/00FC),Chief Executive,Shared Services,I.T Shared Service,Communications And Computing,Computer S/Ware - Maintenance,LF102,28/07/2016,422783,16713.21,REVENUE,MIDLAND SOFTWARE LTD,102633
North East Lincolnshire Council,http://statistics.data.gov.uk/id/local-authority/00FC),Chief Executive,Shared Services,I.T Shared Service,Communications And Computing,Computer H/Ware - Purchases,LF105,29/07/2016,412147,3600,REVENUE,VIRGIN MEDIA LTD,101831
North East Lincolnshire Council,http://statistics.data.gov.uk/id/local-authority/00FC),Chief Executive,Shared Services,Director And Support,Miscellaneous Expenses,Other Expenses General,LL119,14/07/2016,420095,2923.97,REVENUE,WELLBEING SOLUTIONS MANAGEMENT,132439
North East Lincolnshire Council,http://statistics.data.gov.uk/id/local-authority/00FC),Chief Executive,Shared Services,Human Resources,Indirect Employee Expenses,Disclosure Checks,EB124,14/07/2016,419672,6517,REVENUE,DISCLOSURE & BARRING SERVICE,119180
North East Lincolnshire Council,http://statistics.data.gov.uk/id/local-authority/00FC),Chief Executive,Shared Services,Human Resources,Indirect Employee Expenses,Staff Training,EB122,28/07/2016,421167,5920,REVENUE,PAUL CARLILE,119569
North East Lincolnshire Council,http://statistics.data.gov.uk/id/local-authority/00FC),Chief Executive,Shared Services,Human Resources,Indirect Employee Expenses,Staff Training,EB122,12/07/2016,419591,1259,REVENUE,ITS TRAINING (UK) LTD,108452
North East Lincolnshire Council,http://statistics.data.gov.uk/id/local-authority/00FC),Chief Executive,Shared Services,Human Resources,Indirect Employee Expenses,Staff Training,EB122,14/07/2016,406323,800,REVENUE,INSTITUTE OF CEMETERY & CREMATORIUM,101460
North East Lincolnshire Council,http://statistics.data.gov.uk/id/local-authority/00FC),Chief Executive,Shared Services,Human Resources,Indirect Employee Expenses,Staff Training,EB122,14/07/2016,406323,2440,REVENUE,INSTITUTE OF CEMETERY & CREMATORIUM,101460
North East Lincolnshire Council,http://statistics.data.gov.uk/id/local-authority/00FC),Chief Executive,Shared Services,Human Resources,Indirect Employee Expenses,Staff Training,EB122,14/07/2016,416732,495,REVENUE,MRS S BARNSLEY,101143
North East Lincolnshire Council,http://statistics.data.gov.uk/id/local-authority/00FC),Chief Executive,Shared Services,Human Resources,Indirect Employee Expenses,Staff Training,EB122,21/07/2016,421183,1322.2,REVENUE,GARY STORR,132875
North East Lincolnshire Council,http://statistics.data.gov.uk/id/local-authority/00FC),Chief Executive,Shared Services,Human Resources,Indirect Employee Expenses,Staff Training,EB122,21/07/2016,421184,1322.2,REVENUE,JOANNE WAGSTAFF,132877
North East Lincolnshire Council,http://statistics.data.gov.uk/id/local-authority/00FC),Chief Executive,Shared Services,Human Resources,Indirect Employee Expenses,Staff Training,EB122,21/07/2016,421186,1322.2,REVENUE,RICHARD BOYTON,132876
North East Lincolnshire Council,http://statistics.data.gov.uk/id/local-authority/00FC),Chief Executive,Shared Services,Human Resources,Indirect Employee Expenses,Staff Training,EB122,05/07/2016,417695,336.99,REVENUE,STEAMING LTD,101698
North East Lincolnshire Council,http://statistics.data.gov.uk/id/local-authority/00FC),Chief Executive,Shared Services,Human Resources,Indirect Employee Expenses,Staff Training,EB122,21/07/2016,420895,600,REVENUE,WOMENS AID,100326
North East Lincolnshire Council,http://statistics.data.gov.uk/id/local-authority/00FC),Chief Executive,Shared Services,Human Resources,Indirect Employee Expenses,Staff Training,EB122,21/07/2016,420966,300,REVENUE,WOMENS AID,100326
North East Lincolnshire Council,http://statistics.data.gov.uk/id/local-authority/00FC),Chief Executive,Shared Services,Human Resources,Indirect Employee Expenses,Staff Training,EB122,11/07/2016,418599,275,REVENUE,FOREFRONT TRAINING LTD,105501
North East Lincolnshire Council,http://statistics.data.gov.uk/id/local-authority/00FC),Chief Executive,Shared Services,Human Resources,Indirect Employee Expenses,Staff Training,EB122,05/07/2016,418562,400,REVENUE,FOCUS INDEPENDENT ADULT SOCIAL WORK,122340
North East Lincolnshire Council,http://statistics.data.gov.uk/id/local-authority/00FC),Chief Executive,Shared Services,Human Resources,Indirect Employee Expenses,Medical Expenses - Employees,EB112,21/07/2016,420858,1250,REVENUE,OCCUPATIONAL HEALTH SERVICES LTD,112584
North East Lincolnshire Council,http://statistics.data.gov.uk/id/local-authority/00FC),Chief Executive,Shared Services,Human Resources,Indirect Employee Expenses,Medical Expenses - Employees,EB112,28/07/2016,421187,643.5,REVENUE,EA BROADBURN DISPENSING CHEMIST,101135
North East Lincolnshire Council,http://statistics.data.gov.uk/id/local-authority/00FC),Chief Executive,Shared Services,Human Resources,Indirect Employee Expenses,Medical Expenses - Employees,EB112,21/07/2016,420859,255,REVENUE,NORTH LINCOLNSHIRE COUNCIL,101186
North East Lincolnshire Council,http://statistics.data.gov.uk/id/local-authority/00FC),Chief Executive,Shared Services,Human Resources,Indirect Employee Expenses,Medical Expenses - Employees,EB112,21/07/2016,420860,2800,REVENUE,DR M R EAST,109880
North East Lincolnshire Council,http://statistics.data.gov.uk/id/local-authority/00FC),Chief Executive,Shared Services,Human Resources,Indirect Employee Expenses,Medical Expenses - Employees,EB112,29/07/2016,422259,555.2,REVENUE,EA BROADBURN DISPENSING CHEMIST,101135
North East Lincolnshire Council,http://statistics.data.gov.uk/id/local-authority/00FC),Chief Executive,Shared Services,Audit Shared Service,Other Local Authorities,Third Pp - Other Local Auth,PC101,12/07/2016,407184,1478,REVENUE,EAST RIDING OF YORKSHIRE,100377
North East Lincolnshire Council,http://statistics.data.gov.uk/id/local-authority/00FC),Chief Executive,Shared Services,Audit Shared Service,Other Local Authorities,Third Pp - Other Local Auth,PC101,12/07/2016,407184,15000,REVENUE,EAST RIDING OF YORKSHIRE,100377
North East Lincolnshire Council,http://statistics.data.gov.uk/id/local-authority/00FC),Chief Executive,Shared Services,Central Commissioning & Delive,Catering,Provisions,LB101,18/07/2016,420573,8892.41,REVENUE,DAIRY CREST LTD,101743
North East Lincolnshire Council,http://statistics.data.gov.uk/id/local-authority/00FC),Chief Executive,Shared Services,Central Commissioning & Delive,Catering,Purchase School Meals,LB103,19/07/2016,420725,27134.1,REVENUE,CYGNET CATERING,108880
North East Lincolnshire Council,http://statistics.data.gov.uk/id/local-authority/00FC),Chief Executive,Shared Services,Central Commissioning & Delive,Catering,Purchase School Meals,LB103,19/07/2016,420726,144806.9,REVENUE,CYGNET CATERING,108880
North East Lincolnshire Council,http://statistics.data.gov.uk/id/local-authority/00FC),Chief Executive,Shared Services,Central Commissioning & Delive,Catering,Purchase School Meals,LB103,19/07/2016,420733,-684,REVENUE,CYGNET CATERING,108880
North East Lincolnshire Council,http://statistics.data.gov.uk/id/local-authority/00FC),Chief Executive,Shared Services,Central Commissioning & Delive,Private Contractors,Contract Payments,PH105,14/07/2016,418609,9675.11,REVENUE,MATRIX SCM LTD,108117
North East Lincolnshire Council,http://statistics.data.gov.uk/id/local-authority/00FC),Chief Executive,Shared Services,Central Commissioning & Delive,Private Contractors,Contract Payments,PH105,18/07/2016,420528,7073.53,REVENUE,MATRIX SCM LTD,108117
North East Lincolnshire Council,http://statistics.data.gov.uk/id/local-authority/00FC),Chief Executive,Shared Services,Central Commissioning & Delive,Private Contractors,Contract Payments,PH105,18/07/2016,420529,7217.37,REVENUE,MATRIX SCM LTD,108117
North East Lincolnshire Council,http://statistics.data.gov.uk/id/local-authority/00FC),Chief Executive,Shared Services,Central Commissioning & Delive,Private Contractors,Contract Payments,PH105,18/07/2016,420530,9127.26,REVENUE,MATRIX SCM LTD,108117
North East Lincolnshire Council,http://statistics.data.gov.uk/id/local-authority/00FC),Chief Executive,Shared Services,Shared Print Hub,Equip / Furniture / Materials,Equipment - Purchase,LA101,21/07/2016,417927,604,REVENUE,ANTALIS LTD,124930
North East Lincolnshire Council,http://statistics.data.gov.uk/id/local-authority/00FC),Chief Executive,Shared Services,Shared Print Hub,Equip / Furniture / Materials,Equipment - Purchase,LA101,21/07/2016,419898,302,REVENUE,ANTALIS LTD,124930
North East Lincolnshire Council,http://statistics.data.gov.uk/id/local-authority/00FC),Chief Executive,Shared Services,Shared Print Hub,Print Stationery / Gen Off Exp,Photocopier - Running Costs,LD102,04/07/2016,417462,4370.52,REVENUE,XEROX (UK) LIMITED,100953
North East Lincolnshire Council,http://statistics.data.gov.uk/id/local-authority/00FC),Chief Executive,Shared Services,Shared Print Hub,Print Stationery / Gen Off Exp,Photocopier - Running Costs,LD102,04/07/2016,417458,1714.93,REVENUE,UNITED CARLTON OFFICE SYSTEMS LTD,101652
North East Lincolnshire Council,http://statistics.data.gov.uk/id/local-authority/00FC),Chief Executive,Shared Services,Shared Print Hub,Private Contractors,Third Party Prov - Private,PH101,04/07/2016,417108,410,REVENUE,SYSTEMATIC PRINT MANAGEMENT LTD,101147
North East Lincolnshire Council,http://statistics.data.gov.uk/id/local-authority/00FC),Chief Executive,Shared Services,Shared Print Hub,Private Contractors,Third Party Prov - Private,PH101,14/07/2016,419342,7800,REVENUE,SYSTEMATIC PRINT MANAGEMENT LTD,101147
North East Lincolnshire Council,http://statistics.data.gov.uk/id/local-authority/00FC),Chief Executive,Shared Services,Shared Print Hub,Private Contractors,Third Party Prov - Private,PH101,04/07/2016,417408,969.69,REVENUE,TOTAL SIGNS AND GRAPHICS LTD,104775
North East Lincolnshire Council,http://statistics.data.gov.uk/id/local-authority/00FC),Chief Executive,Shared Services,Shared Print Hub,Private Contractors,Third Party Prov - Private,PH101,14/07/2016,417441,360,REVENUE,GSB PRINT & DESIGN LTD,101553
North East Lincolnshire Council,http://statistics.data.gov.uk/id/local-authority/00FC),Chief Executive,Shared Services,Shared Print Hub,Private Contractors,Third Party Prov - Private,PH101,04/07/2016,417443,528,REVENUE,GSB PRINT & DESIGN LTD,101553
North East Lincolnshire Council,http://statistics.data.gov.uk/id/local-authority/00FC),Chief Executive,Shared Services,Shared Print Hub,Private Contractors,Third Party Prov - Private,PH101,28/07/2016,422311,4911.02,REVENUE,NORTH LINCOLNSHIRE COUNCIL,101186
North East Lincolnshire Council,http://statistics.data.gov.uk/id/local-authority/00FC),Chief Executive,Shared Services,Shared Print Hub,Private Contractors,Third Party Prov - Private,PH101,21/07/2016,418553,1120,REVENUE,AR PRINTING LTD,100596
North East Lincolnshire Council,http://statistics.data.gov.uk/id/local-authority/00FC),Chief Executive,Shared Services,Shared Print Hub,Private Contractors,Third Party Prov - Private,PH101,26/07/2016,421621,569,REVENUE,DONCASTER METROPOLITAN BOROUGH COUNCIL,103098
North East Lincolnshire Council,http://statistics.data.gov.uk/id/local-authority/00FC),Chief Executive,Shared Services,Shared Print Hub,Private Contractors,Third Party Prov - Private,PH101,21/07/2016,418551,405,REVENUE,AR PRINTING LTD,100596
North East Lincolnshire Council,http://statistics.data.gov.uk/id/local-authority/00FC),Chief Executive,Shared Services,Shared Print Hub,Private Contractors,Third Party Prov - Private,PH101,29/07/2016,421622,445,REVENUE,AR PRINTING LTD,100596
North East Lincolnshire Council,http://statistics.data.gov.uk/id/local-authority/00FC),Chief Executive,Shared Services,Shared Print Hub,Print Stationery / Gen Off Exp,Photocopier - Running Costs,LD102,18/07/2016,419977,300.47,REVENUE,UNITED CARLTON OFFICE SYSTEMS LTD,101652
North East Lincolnshire Council,http://statistics.data.gov.uk/id/local-authority/00FC),Chief Executive,Shared Services,Shared Print Hub,Print Stationery / Gen Off Exp,Photocopier - Running Costs,LD102,29/07/2016,421277,360.23,REVENUE,UNITED CARLTON OFFICE SYSTEMS LTD,101652
North East Lincolnshire Council,http://statistics.data.gov.uk/id/local-authority/00FC),Chief Executive,Shared Services,Shared Print Hub,Print Stationery / Gen Off Exp,Photocopier - Running Costs,LD102,28/07/2016,422235,276.35,REVENUE,UNITED CARLTON OFFICE SYSTEMS LTD,101652
North East Lincolnshire Council,http://statistics.data.gov.uk/id/local-authority/00FC),Chief Executive,Shared Services,Shared Print Hub,Print Stationery / Gen Off Exp,Photocopier - Running Costs,LD102,28/07/2016,422643,453.37,REVENUE,UNITED CARLTON OFFICE SYSTEMS LTD,101652
North East Lincolnshire Council,http://statistics.data.gov.uk/id/local-authority/00FC),Chief Executive,Shared Services,Shared Print Hub,Print Stationery / Gen Off Exp,Photocopier - Running Costs,LD102,28/07/2016,422652,286.24,REVENUE,UNITED CARLTON OFFICE SYSTEMS LTD,101652
North East Lincolnshire Council,http://statistics.data.gov.uk/id/local-authority/00FC),Chief Executive,Shared Services,Shared Print Hub,Print Stationery / Gen Off Exp,Photocopier - Running Costs,LD102,28/07/2016,422694,274.69,REVENUE,UNITED CARLTON OFFICE SYSTEMS LTD,101652
North East Lincolnshire Council,http://statistics.data.gov.uk/id/local-authority/00FC),Chief Executive,Shared Services,Shared Print Hub,Print Stationery / Gen Off Exp,Printing And Stationery,LD103,18/07/2016,419977,698.84,REVENUE,UNITED CARLTON OFFICE SYSTEMS LTD,101652
North East Lincolnshire Council,http://statistics.data.gov.uk/id/local-authority/00FC),Chief Executive,Shared Services,Shared Print Hub,Print Stationery / Gen Off Exp,Printing And Stationery,LD103,28/07/2016,421291,366.1,REVENUE,UNITED CARLTON OFFICE SYSTEMS LTD,101652
North East Lincolnshire Council,http://statistics.data.gov.uk/id/local-authority/00FC),Chief Executive,Shared Services,Shared Print Hub,Print Stationery / Gen Off Exp,Printing And Stationery,LD103,29/07/2016,421288,318.54,REVENUE,UNITED CARLTON OFFICE SYSTEMS LTD,101652
North East Lincolnshire Council,http://statistics.data.gov.uk/id/local-authority/00FC),Chief Executive,Shared Services,Shared Print Hub,Print Stationery / Gen Off Exp,Printing And Stationery,LD103,29/07/2016,421266,875.77,REVENUE,UNITED CARLTON OFFICE SYSTEMS LTD,101652
North East Lincolnshire Council,http://statistics.data.gov.uk/id/local-authority/00FC),Chief Executive,Shared Services,Shared Print Hub,Print Stationery / Gen Off Exp,Printing And Stationery,LD103,26/07/2016,421594,565.54,REVENUE,UNITED CARLTON OFFICE SYSTEMS LTD,101652
North East Lincolnshire Council,http://statistics.data.gov.uk/id/local-authority/00FC),Chief Executive,Shared Services,Shared Print Hub,Print Stationery / Gen Off Exp,Printing And Stationery,LD103,26/07/2016,421587,1305.84,REVENUE,UNITED CARLTON OFFICE SYSTEMS LTD,101652
North East Lincolnshire Council,http://statistics.data.gov.uk/id/local-authority/00FC),Chief Executive,Shared Services,Shared Print Hub,Print Stationery / Gen Off Exp,Printing And Stationery,LD103,28/07/2016,422652,892.63,REVENUE,UNITED CARLTON OFFICE SYSTEMS LTD,101652
North East Lincolnshire Council,http://statistics.data.gov.uk/id/local-authority/00FC),Chief Executive,Shared Services,Shared Print Hub,Print Stationery / Gen Off Exp,Printing And Stationery,LD103,28/07/2016,422694,427.54,REVENUE,UNITED CARLTON OFFICE SYSTEMS LTD,101652
North East Lincolnshire Council,http://statistics.data.gov.uk/id/local-authority/00FC),Chief Executive,Ad Governance And Democracy,Registrars & Civic Services,Direct Transport Costs,Hired Transport - Employees,JA101,29/07/2016,422323,813,REVENUE,APEX CARS,102226
North East Lincolnshire Council,http://statistics.data.gov.uk/id/local-authority/00FC),Chief Executive,Ad Governance And Democracy,Registrars & Civic Services,Miscellaneous Expenses,Civic Regalia And Events,LL117,25/07/2016,421300,750,REVENUE,ROYAL BRITISH LEGION POPPY APPEAL,111623
North East Lincolnshire Council,http://statistics.data.gov.uk/id/local-authority/00FC),Chief Executive,Ad Governance And Democracy,Registrars & Civic Services,Miscellaneous Expenses,Civic Regalia And Events,LL117,07/07/2016,418874,325.2,REVENUE,HAMPSHIRE FLAG COMPANY,106041
North East Lincolnshire Council,http://statistics.data.gov.uk/id/local-authority/00FC),Chief Executive,Ad Governance And Democracy,Communications And Marketing,Rep Alterations Maint Building,Sponsorship - Roundabouts,GA114,04/07/2016,417101,440,REVENUE,J MCCANN & CO LTD,100841
North East Lincolnshire Council,http://statistics.data.gov.uk/id/local-authority/00FC),Chief Executive,Ad Governance And Democracy,Communications And Marketing,Rep Alterations Maint Building,Sponsorship - Roundabouts,GA114,12/07/2016,417955,770,REVENUE,J MCCANN & CO LTD,100841
North East Lincolnshire Council,http://statistics.data.gov.uk/id/local-authority/00FC),Chief Executive,Ad Governance And Democracy,Communications And Marketing,Rep Alterations Maint Building,Sponsorship - Roundabouts,GA114,28/07/2016,420762,330,REVENUE,J MCCANN & CO LTD,100841
North East Lincolnshire Council,http://statistics.data.gov.uk/id/local-authority/00FC),Chief Executive,Ad Governance And Democracy,Communications And Marketing,Direct Employee Expenses,Agency Staff,EA105,14/07/2016,419966,3360,REVENUE,WALTON MEDIA LTD,126989
North East Lincolnshire Council,http://statistics.data.gov.uk/id/local-authority/00FC),Chief Executive,Ad Governance And Democracy,Communications And Marketing,Print Stationery / Gen Off Exp,Printing And Stationery,LD103,12/07/2016,418904,2500,REVENUE,LOCAL WORLD LIMITED,118774
North East Lincolnshire Council,http://statistics.data.gov.uk/id/local-authority/00FC),Chief Executive,Ad Governance And Democracy,Elections & Complaints,Indirect Employee Expenses,Staff Training,EB122,14/07/2016,419904,966.5,REVENUE,THE ASSOCIATION OF ELECTORAL ADMINISTRATORS,107770
North East Lincolnshire Council,http://statistics.data.gov.uk/id/local-authority/00FC),Chief Executive,Ad Governance And Democracy,Elections & Complaints,Indirect Employee Expenses,Staff Training,EB122,14/07/2016,419884,1660,REVENUE,HALAROSE LIMITED,101974
North East Lincolnshire Council,http://statistics.data.gov.uk/id/local-authority/00FC),Chief Executive,Ad Governance And Democracy,Elections & Complaints,Communications And Computing,Computer H/Ware - Purchases,LF105,14/07/2016,419878,593.5,REVENUE,HALAROSE LIMITED,101974
North East Lincolnshire Council,http://statistics.data.gov.uk/id/local-authority/00FC),Chief Executive,Ad Governance And Democracy,Elections & Complaints,Communications And Computing,Postage,LF111,29/07/2016,422815,18047,REVENUE,PRINT IMAGE FACILITIES LLP,125574
North East Lincolnshire Council,http://statistics.data.gov.uk/id/local-authority/00FC),Chief Executive,Ad Governance And Democracy,Elections & Complaints,Indirect Employee Expenses,Allowances - Employees,EB110,14/07/2016,419881,658.1,REVENUE,LINCS INSPIRE LTD GLC,120520
North East Lincolnshire Council,http://statistics.data.gov.uk/id/local-authority/00FC),Chief Executive,Ad Governance And Democracy,Elections & Complaints,Rents,Rent,GC101,14/07/2016,419881,1000,REVENUE,LINCS INSPIRE LTD GLC,120520
North East Lincolnshire Council,http://statistics.data.gov.uk/id/local-authority/00FC),Chief Executive,Ad Governance And Democracy,Elections & Complaints,Print Stationery / Gen Off Exp,Printing And Stationery,LD103,18/07/2016,419895,1472.07,REVENUE,PRINT IMAGE NETWORK LTD,103724
North East Lincolnshire Council,http://statistics.data.gov.uk/id/local-authority/00FC),Chief Executive,Ad Governance And Democracy,Elections & Complaints,Print Stationery / Gen Off Exp,Printing And Stationery,LD103,14/07/2016,419860,5693.42,REVENUE,PRINT IMAGE NETWORK LTD,103724
North East Lincolnshire Council,http://statistics.data.gov.uk/id/local-authority/00FC),Chief Executive,Ad Governance And Democracy,Elections & Complaints,Print Stationery / Gen Off Exp,Printing And Stationery,LD103,14/07/2016,419896,11836.65,REVENUE,PRINT IMAGE NETWORK LTD,103724
North East Lincolnshire Council,http://statistics.data.gov.uk/id/local-authority/00FC),Chief Executive,Ad Governance And Democracy,Elections & Complaints,Print Stationery / Gen Off Exp,Printing And Stationery,LD103,18/07/2016,419901,1852.5,REVENUE,PRINT IMAGE NETWORK LTD,103724
North East Lincolnshire Council,http://statistics.data.gov.uk/id/local-authority/00FC),Chief Executive,Ad Governance And Democracy,Elections & Complaints,Print Stationery / Gen Off Exp,Printing And Stationery,LD103,14/07/2016,419886,1763.6,REVENUE,PRINT IMAGE NETWORK LTD,103724
North East Lincolnshire Council,http://statistics.data.gov.uk/id/local-authority/00FC),Chief Executive,Ad Governance And Democracy,Elections & Complaints,Communications And Computing,Postage,LF111,19/07/2016,419986,1404.4,REVENUE,ROYAL MAIL GROUP PLC,101082
North East Lincolnshire Council,http://statistics.data.gov.uk/id/local-authority/00FC),Chief Executive,Ad Governance And Democracy,Elections & Complaints,Communications And Computing,Postage,LF111,19/07/2016,419987,1890.45,REVENUE,ROYAL MAIL GROUP PLC,101082
North East Lincolnshire Council,http://statistics.data.gov.uk/id/local-authority/00FC),Chief Executive,Ad Governance And Democracy,Elections & Complaints,Communications And Computing,Postage,LF111,19/07/2016,419985,2495.57,REVENUE,ROYAL MAIL GROUP PLC,101082
North East Lincolnshire Council,http://statistics.data.gov.uk/id/local-authority/00FC),Chief Executive,Ad Governance And Democracy,Elections & Complaints,Communications And Computing,Postage,LF111,19/07/2016,419988,394.75,REVENUE,ROYAL MAIL GROUP PLC,101082
North East Lincolnshire Council,http://statistics.data.gov.uk/id/local-authority/00FC),Chief Executive,Ad Governance And Democracy,Elections & Complaints,Miscellaneous Expenses,Other Expenses General,LL119,19/07/2016,419883,11996.64,REVENUE,W R CULLUM,100811
North East Lincolnshire Council,http://statistics.data.gov.uk/id/local-authority/00FC),Chief Executive,Ad Law,Coroners,Rents,Room Hire,GC103,18/07/2016,420579,380,REVENUE,NORTH LINCOLNSHIRE COUNCIL,101186
North East Lincolnshire Council,http://statistics.data.gov.uk/id/local-authority/00FC),Chief Executive,Ad Law,Coroners,Miscellaneous Expenses,Other Expenses General,LL119,11/07/2016,419057,526.55,REVENUE,REDACTED PERSONAL INFORMATION,REDACTED PERSONAL INFORMATION
North East Lincolnshire Council,http://statistics.data.gov.uk/id/local-authority/00FC),Chief Executive,Ad Law,Coroners,Miscellaneous Expenses,Other Expenses General,LL119,11/07/2016,419058,276.55,REVENUE,REDACTED PERSONAL INFORMATION,REDACTED PERSONAL INFORMATION
North East Lincolnshire Council,http://statistics.data.gov.uk/id/local-authority/00FC),Chief Executive,Ad Law,Coroners,Other Agencies,Mortuary Storage Charges,PJ156,26/07/2016,422271,250,REVENUE,HEY NHS TRUST,102955
North East Lincolnshire Council,http://statistics.data.gov.uk/id/local-authority/00FC),Chief Executive,Ad Law,Coroners,Other Agencies,Mortuary Storage Charges,PJ156,11/07/2016,419030,4786,REVENUE,N LINCS & GOOLE HOSPITALS NHS,111074
North East Lincolnshire Council,http://statistics.data.gov.uk/id/local-authority/00FC),Chief Executive,Ad Law,Coroners,Other Agencies,Mortuary Storage Charges,PJ156,11/07/2016,419025,2808,REVENUE,N LINCS & GOOLE HOSPITALS NHS,111074
North East Lincolnshire Council,http://statistics.data.gov.uk/id/local-authority/00FC),Chief Executive,Ad Law,Coroners,Other Agencies,Mortuary Storage Charges,PJ156,21/07/2016,420913,2457,REVENUE,N LINCS & GOOLE HOSPITALS NHS,111074
North East Lincolnshire Council,http://statistics.data.gov.uk/id/local-authority/00FC),Chief Executive,Ad Law,Coroners,Other Agencies,Post Mortems,PJ148,11/07/2016,419039,892.67,REVENUE,UNIVERSITY HOSPITALS OF LEICESTER NHS TRUST,107238
North East Lincolnshire Council,http://statistics.data.gov.uk/id/local-authority/00FC),Chief Executive,Ad Law,Coroners,Other Agencies,Post Mortems,PJ148,21/07/2016,420903,2135.6,REVENUE,REDACTED PERSONAL INFORMATION,REDACTED PERSONAL INFORMATION
North East Lincolnshire Council,http://statistics.data.gov.uk/id/local-authority/00FC),Chief Executive,Ad Law,Coroners,Other Agencies,Post Mortems,PJ148,11/07/2016,419022,290.4,REVENUE,REDACTED PERSONAL INFORMATION,REDACTED PERSONAL INFORMATION
North East Lincolnshire Council,http://statistics.data.gov.uk/id/local-authority/00FC),Chief Executive,Ad Law,Coroners,Other Agencies,Post Mortems,PJ148,11/07/2016,419040,746.61,REVENUE,4ENSICMED LTD,134326
North East Lincolnshire Council,http://statistics.data.gov.uk/id/local-authority/00FC),Chief Executive,Ad Law,Coroners,Other Agencies,Post Mortems,PJ148,11/07/2016,419056,382.3,REVENUE,DFT MARINE ACCIDENT INVESTIGATION BRANCH,134358
North East Lincolnshire Council,http://statistics.data.gov.uk/id/local-authority/00FC),Chief Executive,Ad Law,Legal Services,Grants And Subscriptions,Subscriptions,LJ101,29/07/2016,423167,-17.7,REVENUE,LEXISNEXIS UK,101447
North East Lincolnshire Council,http://statistics.data.gov.uk/id/local-authority/00FC),Chief Executive,Ad Law,Legal Services,Grants And Subscriptions,Subscriptions,LJ101,29/07/2016,423167,-18.8,REVENUE,LEXISNEXIS UK,101447
North East Lincolnshire Council,http://statistics.data.gov.uk/id/local-authority/00FC),Chief Executive,Ad Law,Legal Services,Grants And Subscriptions,Subscriptions,LJ101,29/07/2016,422261,4784.4,REVENUE,IKEN BUSINESS LTD,127770
North East Lincolnshire Council,http://statistics.data.gov.uk/id/local-authority/00FC),Chief Executive,Ad Law,Legal Services,Grants And Subscriptions,Subscriptions,LJ101,28/07/2016,422781,359.5,REVENUE,LEXISNEXIS UK,101447
North East Lincolnshire Council,http://statistics.data.gov.uk/id/local-authority/00FC),Chief Executive,Ad Law,Legal Services,Grants And Subscriptions,Subscriptions,LJ101,28/07/2016,422781,375.95,REVENUE,LEXISNEXIS UK,101447
North East Lincolnshire Council,http://statistics.data.gov.uk/id/local-authority/00FC),Chief Executive,Ad Law,Legal Services,Miscellaneous Expenses,Legal Fees - General,LL103,25/07/2016,421314,625.46,REVENUE,LOCAL GOVERNMENT ASSOCIATION,101113
North East Lincolnshire Council,http://statistics.data.gov.uk/id/local-authority/00FC),Chief Executive,Ad Law,Legal Services,Miscellaneous Expenses,Other Expenses General,LL119,26/07/2016,421969,500,REVENUE,LAWYERS IN LOCAL GOVERNMENT,104903
North East Lincolnshire Council,http://statistics.data.gov.uk/id/local-authority/00FC),Chief Executive,Ad Law,Legal Services,Consultancy,Consultancy,PL101,05/07/2016,417892,3573,REVENUE,BOND DICKINSON LLP,121775
North East Lincolnshire Council,http://statistics.data.gov.uk/id/local-authority/00FC),Chief Executive,Ad Law,Legal Services,Miscellaneous Expenses,Legal Fees - General,LL103,11/07/2016,418313,740,REVENUE,MR DARREN HOWE QC,130272
North East Lincolnshire Council,http://statistics.data.gov.uk/id/local-authority/00FC),Chief Executive,Ad Law,Legal Services,Miscellaneous Expenses,Legal Fees - General,LL103,11/07/2016,418310,520,REVENUE,MR MARK WATTERSON,109973
North East Lincolnshire Council,http://statistics.data.gov.uk/id/local-authority/00FC),Chief Executive,Ad Law,Legal Services,Miscellaneous Expenses,Legal Fees - General,LL103,11/07/2016,418309,545,REVENUE,MR MARK WATTERSON,109973
North East Lincolnshire Council,http://statistics.data.gov.uk/id/local-authority/00FC),Chief Executive,Ad Law,Legal Services,Miscellaneous Expenses,Legal Fees - General,LL103,11/07/2016,418308,478,REVENUE,MR MARK WATTERSON,109973
North East Lincolnshire Council,http://statistics.data.gov.uk/id/local-authority/00FC),Chief Executive,Ad Law,Legal Services,Miscellaneous Expenses,Legal Fees - General,LL103,11/07/2016,418307,478,REVENUE,MR MARK WATTERSON,109973
North East Lincolnshire Council,http://statistics.data.gov.uk/id/local-authority/00FC),Chief Executive,Ad Law,Legal Services,Miscellaneous Expenses,Legal Fees - General,LL103,05/07/2016,417834,535,REVENUE,MISS SARAH BLACKMORE,102325
North East Lincolnshire Council,http://statistics.data.gov.uk/id/local-authority/00FC),Chief Executive,Ad Law,Legal Services,Miscellaneous Expenses,Legal Fees - General,LL103,05/07/2016,418301,2262.5,REVENUE,MR DARREN HOWE QC,130272
North East Lincolnshire Council,http://statistics.data.gov.uk/id/local-authority/00FC),Chief Executive,Ad Law,Legal Services,Miscellaneous Expenses,Legal Fees - General,LL103,11/07/2016,418295,300,REVENUE,MENDES INVESTIGATION SERVICES LIMITED,130979
North East Lincolnshire Council,http://statistics.data.gov.uk/id/local-authority/00FC),Chief Executive,Ad Law,Legal Services,Miscellaneous Expenses,Legal Fees - General,LL103,05/07/2016,418296,832.51,REVENUE,MISS TARYN LEE QC,127409
North East Lincolnshire Council,http://statistics.data.gov.uk/id/local-authority/00FC),Chief Executive,Ad Law,Legal Services,Miscellaneous Expenses,Legal Fees - General,LL103,11/07/2016,418174,595,REVENUE,MISS SARAH BLACKMORE,102325
North East Lincolnshire Council,http://statistics.data.gov.uk/id/local-authority/00FC),Chief Executive,Ad Law,Legal Services,Miscellaneous Expenses,Legal Fees - General,LL103,11/07/2016,418290,615,REVENUE,MR MARK GORE,103478
North East Lincolnshire Council,http://statistics.data.gov.uk/id/local-authority/00FC),Chief Executive,Ad Law,Legal Services,Miscellaneous Expenses,Legal Fees - General,LL103,05/07/2016,418286,460,REVENUE,DR ELLIS MOSLEY,104893
North East Lincolnshire Council,http://statistics.data.gov.uk/id/local-authority/00FC),Chief Executive,Ad Law,Legal Services,Miscellaneous Expenses,Legal Fees - General,LL103,05/07/2016,418284,400,REVENUE,MR MARK WATTERSON,109973
North East Lincolnshire Council,http://statistics.data.gov.uk/id/local-authority/00FC),Chief Executive,Ad Law,Legal Services,Miscellaneous Expenses,Legal Fees - General,LL103,11/07/2016,418289,2300,REVENUE,DR ELLIS MOSLEY,104893
North East Lincolnshire Council,http://statistics.data.gov.uk/id/local-authority/00FC),Chief Executive,Ad Law,Legal Services,Miscellaneous Expenses,Legal Fees - General,LL103,11/07/2016,418288,450,REVENUE,DAVID PHILLIPS,103505
North East Lincolnshire Council,http://statistics.data.gov.uk/id/local-authority/00FC),Chief Executive,Ad Law,Legal Services,Miscellaneous Expenses,Legal Fees - General,LL103,05/07/2016,418283,520,REVENUE,MR MARK WATTERSON,109973
North East Lincolnshire Council,http://statistics.data.gov.uk/id/local-authority/00FC),Chief Executive,Ad Law,Legal Services,Miscellaneous Expenses,Legal Fees - General,LL103,11/07/2016,418287,450,REVENUE,MR JAMES A GOODWIN,123497
North East Lincolnshire Council,http://statistics.data.gov.uk/id/local-authority/00FC),Chief Executive,Ad Law,Legal Services,Miscellaneous Expenses,Legal Fees - General,LL103,05/07/2016,418282,1565,REVENUE,PROFESSOR ANN M MORTIMER,111064
North East Lincolnshire Council,http://statistics.data.gov.uk/id/local-authority/00FC),Chief Executive,Ad Law,Legal Services,Miscellaneous Expenses,Legal Fees - General,LL103,07/07/2016,418280,251.6,REVENUE,GRIMSBY DETECTIVE AGENCY,104254
North East Lincolnshire Council,http://statistics.data.gov.uk/id/local-authority/00FC),Chief Executive,Ad Law,Legal Services,Miscellaneous Expenses,Legal Fees - General,LL103,28/07/2016,422731,271.05,REVENUE,DAVID BRIGGS ASSOCIATES LTD,108259
North East Lincolnshire Council,http://statistics.data.gov.uk/id/local-authority/00FC),Chief Executive,Ad Law,Legal Services,Miscellaneous Expenses,Legal Fees - General,LL103,28/07/2016,422730,258.57,REVENUE,DAVID BRIGGS ASSOCIATES LTD,108259
North East Lincolnshire Council,http://statistics.data.gov.uk/id/local-authority/00FC),Chief Executive,Ad Law,Legal Services,Miscellaneous Expenses,Legal Fees - General,LL103,28/07/2016,422725,595,REVENUE,MR PAUL EDWARDS,109086
North East Lincolnshire Council,http://statistics.data.gov.uk/id/local-authority/00FC),Chief Executive,Ad Law,Legal Services,Miscellaneous Expenses,Legal Fees - General,LL103,28/07/2016,422722,1295.95,REVENUE,JOHN BARKERS SOLICITORS,100928
North East Lincolnshire Council,http://statistics.data.gov.uk/id/local-authority/00FC),Chief Executive,Ad Law,Legal Services,Miscellaneous Expenses,Legal Fees - General,LL103,28/07/2016,422723,305.8,REVENUE,JOHN BARKERS SOLICITORS,100928
North East Lincolnshire Council,http://statistics.data.gov.uk/id/local-authority/00FC),Chief Executive,Ad Law,Legal Services,Miscellaneous Expenses,Legal Fees - General,LL103,28/07/2016,422738,620,REVENUE,JOHN BARKERS SOLICITORS,100928
North East Lincolnshire Council,http://statistics.data.gov.uk/id/local-authority/00FC),Chief Executive,Ad Law,Legal Services,Miscellaneous Expenses,Legal Fees - General,LL103,28/07/2016,422744,817.57,REVENUE,CARTER BROWN THE EXPERT SERVICE,106320
North East Lincolnshire Council,http://statistics.data.gov.uk/id/local-authority/00FC),Chief Executive,Ad Law,Legal Services,Miscellaneous Expenses,Legal Fees - General,LL103,28/07/2016,422750,2362.1,REVENUE,IFS ASSOCIATES LTD,133803
North East Lincolnshire Council,http://statistics.data.gov.uk/id/local-authority/00FC),Chief Executive,Ad Law,Legal Services,Miscellaneous Expenses,Legal Fees - General,LL103,28/07/2016,422753,962.77,REVENUE,KENNETH BUSH LTD,134416
North East Lincolnshire Council,http://statistics.data.gov.uk/id/local-authority/00FC),Chief Executive,Ad Law,Legal Services,Miscellaneous Expenses,Legal Fees - General,LL103,28/07/2016,422735,1563.12,REVENUE,J L HARPHAM LTD,112780
North East Lincolnshire Council,http://statistics.data.gov.uk/id/local-authority/00FC),Chief Executive,Ad Law,Legal Services,Miscellaneous Expenses,Legal Fees - General,LL103,28/07/2016,422732,525,REVENUE,MR MARK GORE,103478
North East Lincolnshire Council,http://statistics.data.gov.uk/id/local-authority/00FC),Chief Executive,Ad Law,Legal Services,Miscellaneous Expenses,Legal Fees - General,LL103,28/07/2016,422733,279,REVENUE,DR ANAND K SAGGAR,132758
North East Lincolnshire Council,http://statistics.data.gov.uk/id/local-authority/00FC),Deputy Chief Executive,Ad Environment,Cemeteries & Crematorium,Customer And Client Receipts,Fees/Chrgs-Std Vat 7,VC119,14/07/2016,419971,930,REVENUE,KETTLE FUNERAL DIRECTORS,108454
North East Lincolnshire Council,http://statistics.data.gov.uk/id/local-authority/00FC),Deputy Chief Executive,Ad Environment,Cemeteries & Crematorium,Grounds Maintenance Costs,Grounds Maintenance,GJ101,21/07/2016,419701,2709.3,REVENUE,JACKSON BUILDING CENTRES LTD,100817
North East Lincolnshire Council,http://statistics.data.gov.uk/id/local-authority/00FC),Deputy Chief Executive,Ad Environment,Cemeteries & Crematorium,Equip / Furniture / Materials,Equipment - Purchase,LA101,14/07/2016,419446,600,REVENUE,S P DAVIS MEMORIALS LIMITED,130000
North East Lincolnshire Council,http://statistics.data.gov.uk/id/local-authority/00FC),Deputy Chief Executive,Ad Environment,Cemeteries & Crematorium,Equip / Furniture / Materials,Equipment - Purchase,LA101,14/07/2016,419406,401.27,REVENUE,F G MARSHALL LTD,100549
North East Lincolnshire Council,http://statistics.data.gov.uk/id/local-authority/00FC),Deputy Chief Executive,Ad Environment,Cemeteries & Crematorium,Equip / Furniture / Materials,Equipment - Purchase,LA101,25/07/2016,421690,413.59,REVENUE,BRIDGE INSURANCE BROKERS LTD,128411
North East Lincolnshire Council,http://statistics.data.gov.uk/id/local-authority/00FC),Deputy Chief Executive,Ad Environment,Garage & Fleet Strategy,Direct Transport Costs,Vehicles - Repairs And Maint,JA105,07/07/2016,418544,1990.9,REVENUE,FLEET FACTORS LTD,100886
North East Lincolnshire Council,http://statistics.data.gov.uk/id/local-authority/00FC),Deputy Chief Executive,Ad Environment,Garage & Fleet Strategy,Direct Transport Costs,Vehicles - Repairs And Maint,JA105,07/07/2016,418545,467.12,REVENUE,FLEET FACTORS LTD,100886
North East Lincolnshire Council,http://statistics.data.gov.uk/id/local-authority/00FC),Deputy Chief Executive,Ad Environment,Garage & Fleet Strategy,Direct Transport Costs,Vehicles - Repairs And Maint,JA105,07/07/2016,418546,258.78,REVENUE,FLEET FACTORS LTD,100886
North East Lincolnshire Council,http://statistics.data.gov.uk/id/local-authority/00FC),Deputy Chief Executive,Ad Environment,Garage & Fleet Strategy,Direct Transport Costs,Vehicles - Repairs And Maint,JA105,11/07/2016,418592,2686.99,REVENUE,FLEET FACTORS LTD,100886
North East Lincolnshire Council,http://statistics.data.gov.uk/id/local-authority/00FC),Deputy Chief Executive,Ad Environment,Garage & Fleet Strategy,Direct Transport Costs,Vehicles - Repairs And Maint,JA105,11/07/2016,418594,263.52,REVENUE,FLEET FACTORS LTD,100886
North East Lincolnshire Council,http://statistics.data.gov.uk/id/local-authority/00FC),Deputy Chief Executive,Ad Environment,Garage & Fleet Strategy,Direct Transport Costs,Vehicles - Repairs And Maint,JA105,12/07/2016,418593,4656.3,REVENUE,FLEET FACTORS LTD,100886
North East Lincolnshire Council,http://statistics.data.gov.uk/id/local-authority/00FC),Deputy Chief Executive,Ad Environment,Garage & Fleet Strategy,Direct Transport Costs,Vehicles - Repairs And Maint,JA105,07/07/2016,418500,430,REVENUE,B A BUSH & SON LTD,101828
North East Lincolnshire Council,http://statistics.data.gov.uk/id/local-authority/00FC),Deputy Chief Executive,Ad Environment,Garage & Fleet Strategy,Direct Transport Costs,Vehicles - Repairs And Maint,JA105,07/07/2016,418535,388.6,REVENUE,B A BUSH & SON LTD,101828
North East Lincolnshire Council,http://statistics.data.gov.uk/id/local-authority/00FC),Deputy Chief Executive,Ad Environment,Garage & Fleet Strategy,Direct Transport Costs,Vehicles - Repairs And Maint,JA105,12/07/2016,419321,711.07,REVENUE,WR MATERIAL HANDLING LTD,101388
North East Lincolnshire Council,http://statistics.data.gov.uk/id/local-authority/00FC),Deputy Chief Executive,Ad Environment,Garage & Fleet Strategy,Direct Transport Costs,Vehicles - Repairs And Maint,JA105,14/07/2016,419946,1794,REVENUE,FLEET FACTORS LTD,100886
North East Lincolnshire Council,http://statistics.data.gov.uk/id/local-authority/00FC),Deputy Chief Executive,Ad Environment,Garage & Fleet Strategy,Direct Transport Costs,Vehicles - Repairs And Maint,JA105,14/07/2016,419948,3689.55,REVENUE,FLEET FACTORS LTD,100886
North East Lincolnshire Council,http://statistics.data.gov.uk/id/local-authority/00FC),Deputy Chief Executive,Ad Environment,Garage & Fleet Strategy,Direct Transport Costs,Vehicles - Repairs And Maint,JA105,14/07/2016,419949,1811.9,REVENUE,FLEET FACTORS LTD,100886
North East Lincolnshire Council,http://statistics.data.gov.uk/id/local-authority/00FC),Deputy Chief Executive,Ad Environment,Garage & Fleet Strategy,Direct Transport Costs,Vehicles - Repairs And Maint,JA105,14/07/2016,419950,1245.52,REVENUE,FLEET FACTORS LTD,100886
North East Lincolnshire Council,http://statistics.data.gov.uk/id/local-authority/00FC),Deputy Chief Executive,Ad Environment,Garage & Fleet Strategy,Direct Transport Costs,Vehicles - Repairs And Maint,JA105,19/07/2016,419952,1906.16,REVENUE,FLEET FACTORS LTD,100886
North East Lincolnshire Council,http://statistics.data.gov.uk/id/local-authority/00FC),Deputy Chief Executive,Ad Environment,Garage & Fleet Strategy,Direct Transport Costs,Vehicles - Repairs And Maint,JA105,14/07/2016,419930,430,REVENUE,B A BUSH & SON LTD,101828
North East Lincolnshire Council,http://statistics.data.gov.uk/id/local-authority/00FC),Deputy Chief Executive,Ad Environment,Garage & Fleet Strategy,Direct Transport Costs,Vehicles - Repairs And Maint,JA105,14/07/2016,419931,430,REVENUE,B A BUSH & SON LTD,101828
North East Lincolnshire Council,http://statistics.data.gov.uk/id/local-authority/00FC),Deputy Chief Executive,Ad Environment,Garage & Fleet Strategy,Direct Transport Costs,Vehicles - Repairs And Maint,JA105,14/07/2016,419929,430,REVENUE,B A BUSH & SON LTD,101828
North East Lincolnshire Council,http://statistics.data.gov.uk/id/local-authority/00FC),Deputy Chief Executive,Ad Environment,Garage & Fleet Strategy,Direct Transport Costs,Vehicles - Repairs And Maint,JA105,19/07/2016,419923,645,REVENUE,B A BUSH & SON LTD,101828
North East Lincolnshire Council,http://statistics.data.gov.uk/id/local-authority/00FC),Deputy Chief Executive,Ad Environment,Garage & Fleet Strategy,Direct Transport Costs,Vehicles - Repairs And Maint,JA105,14/07/2016,419940,554.22,REVENUE,B A BUSH & SON LTD,101828
North East Lincolnshire Council,http://statistics.data.gov.uk/id/local-authority/00FC),Deputy Chief Executive,Ad Environment,Garage & Fleet Strategy,Direct Transport Costs,Vehicles - Repairs And Maint,JA105,14/07/2016,419939,430,REVENUE,B A BUSH & SON LTD,101828
North East Lincolnshire Council,http://statistics.data.gov.uk/id/local-authority/00FC),Deputy Chief Executive,Ad Environment,Garage & Fleet Strategy,Direct Transport Costs,Vehicles - Repairs And Maint,JA105,19/07/2016,420457,274.16,REVENUE,FLEET FACTORS LTD,100886
North East Lincolnshire Council,http://statistics.data.gov.uk/id/local-authority/00FC),Deputy Chief Executive,Ad Environment,Garage & Fleet Strategy,Direct Transport Costs,Vehicles - Repairs And Maint,JA105,19/07/2016,420461,2412.17,REVENUE,FLEET FACTORS LTD,100886
North East Lincolnshire Council,http://statistics.data.gov.uk/id/local-authority/00FC),Deputy Chief Executive,Ad Environment,Garage & Fleet Strategy,Direct Transport Costs,Vehicles - Repairs And Maint,JA105,19/07/2016,420458,4163.48,REVENUE,FLEET FACTORS LTD,100886
North East Lincolnshire Council,http://statistics.data.gov.uk/id/local-authority/00FC),Deputy Chief Executive,Ad Environment,Garage & Fleet Strategy,Direct Transport Costs,Vehicles - Repairs And Maint,JA105,28/07/2016,421237,315,REVENUE,J W LIBERA & SON LTD,104043
North East Lincolnshire Council,http://statistics.data.gov.uk/id/local-authority/00FC),Deputy Chief Executive,Ad Environment,Garage & Fleet Strategy,Direct Transport Costs,Vehicles - Repairs And Maint,JA105,28/07/2016,422655,5174.04,REVENUE,FLEET FACTORS LTD,100886
North East Lincolnshire Council,http://statistics.data.gov.uk/id/local-authority/00FC),Deputy Chief Executive,Ad Environment,Garage & Fleet Strategy,Direct Transport Costs,Vehicles - Repairs And Maint,JA105,28/07/2016,422662,1691.95,REVENUE,FLEET FACTORS LTD,100886
North East Lincolnshire Council,http://statistics.data.gov.uk/id/local-authority/00FC),Deputy Chief Executive,Ad Environment,Garage & Fleet Strategy,Direct Transport Costs,Vehicles - Repairs And Maint,JA105,28/07/2016,422657,4574.31,REVENUE,FLEET FACTORS LTD,100886
North East Lincolnshire Council,http://statistics.data.gov.uk/id/local-authority/00FC),Deputy Chief Executive,Ad Environment,Garage & Fleet Strategy,Direct Transport Costs,Vehicles - Repairs And Maint,JA105,28/07/2016,422635,373.8,REVENUE,B A BUSH & SON LTD,101828
North East Lincolnshire Council,http://statistics.data.gov.uk/id/local-authority/00FC),Deputy Chief Executive,Ad Environment,Garage & Fleet Strategy,Direct Transport Costs,Vehicles - Repairs And Maint,JA105,28/07/2016,422636,681.18,REVENUE,B A BUSH & SON LTD,101828
North East Lincolnshire Council,http://statistics.data.gov.uk/id/local-authority/00FC),Deputy Chief Executive,Ad Environment,Garage & Fleet Strategy,Direct Transport Costs,Vehicles - Repairs And Maint,JA105,28/07/2016,422663,562.91,REVENUE,B A BUSH & SON LTD,101828
North East Lincolnshire Council,http://statistics.data.gov.uk/id/local-authority/00FC),Deputy Chief Executive,Ad Environment,Garage & Fleet Strategy,Direct Transport Costs,Vehicles - Repairs And Maint,JA105,28/07/2016,422628,415.04,REVENUE,B A BUSH & SON LTD,101828
North East Lincolnshire Council,http://statistics.data.gov.uk/id/local-authority/00FC),Deputy Chief Executive,Ad Environment,Garage & Fleet Strategy,Direct Transport Costs,Vehicles - Repairs And Maint,JA105,28/07/2016,422629,630.04,REVENUE,B A BUSH & SON LTD,101828
North East Lincolnshire Council,http://statistics.data.gov.uk/id/local-authority/00FC),Deputy Chief Executive,Ad Environment,Garage & Fleet Strategy,Clothes Uniforms And Laundry,Laundry,LC103,18/07/2016,419362,352.36,REVENUE,JOHNSONS APPARELMASTER,100810
North East Lincolnshire Council,http://statistics.data.gov.uk/id/local-authority/00FC),Deputy Chief Executive,Ad Environment,Garage & Fleet Strategy,Private Contractors,Third Party Prov - Private,PH101,18/07/2016,419862,14945,REVENUE,WAKEFIELD MD COUNCIL,100967
North East Lincolnshire Council,http://statistics.data.gov.uk/id/local-authority/00FC),Deputy Chief Executive,Ad Environment,Grounds And Street Cleansing,Rep Alterations Maint Building,Buildings - Repairs And Maint,GA102,19/07/2016,420477,300,REVENUE,BSB SERVICES,102305
North East Lincolnshire Council,http://statistics.data.gov.uk/id/local-authority/00FC),Deputy Chief Executive,Ad Environment,Grounds And Street Cleansing,Rep Alterations Maint Building,Buildings - Repairs And Maint,GA102,26/07/2016,420774,400,REVENUE,E K M LTD,101926
North East Lincolnshire Council,http://statistics.data.gov.uk/id/local-authority/00FC),Deputy Chief Executive,Ad Environment,Grounds And Street Cleansing,Rep Alterations Maint Building,Buildings - Repairs And Maint,GA102,26/07/2016,420774,560,REVENUE,E K M LTD,101926
North East Lincolnshire Council,http://statistics.data.gov.uk/id/local-authority/00FC),Deputy Chief Executive,Ad Environment,Grounds And Street Cleansing,Rep Alterations Maint Building,Buildings - Repairs And Maint,GA102,26/07/2016,420774,280,REVENUE,E K M LTD,101926
North East Lincolnshire Council,http://statistics.data.gov.uk/id/local-authority/00FC),Deputy Chief Executive,Ad Environment,Grounds And Street Cleansing,Rep Alterations Maint Building,Buildings - Repairs And Maint,GA102,26/07/2016,420777,420,REVENUE,E K M LTD,101926
North East Lincolnshire Council,http://statistics.data.gov.uk/id/local-authority/00FC),Deputy Chief Executive,Ad Environment,Grounds And Street Cleansing,Direct Transport Costs,Vehicles - Running Costs,JA104,07/07/2016,418952,1006.46,REVENUE,ALLSTAR BUSINESS SOLUTIONS LTD,108278
North East Lincolnshire Council,http://statistics.data.gov.uk/id/local-authority/00FC),Deputy Chief Executive,Ad Environment,Grounds And Street Cleansing,Equip / Furniture / Materials,Equipment - Purchase,LA101,18/07/2016,417642,340,REVENUE,BRIANPLANT (HUMBERSIDE) LTD,100583
North East Lincolnshire Council,http://statistics.data.gov.uk/id/local-authority/00FC),Deputy Chief Executive,Ad Environment,Grounds And Street Cleansing,Equip / Furniture / Materials,Equipment - Purchase,LA101,19/07/2016,419013,333.5,REVENUE,RAINER SECURITY PRODUCTS LTD,100623
North East Lincolnshire Council,http://statistics.data.gov.uk/id/local-authority/00FC),Deputy Chief Executive,Ad Environment,Grounds And Street Cleansing,Communications And Computing,Telephones,LF112,21/07/2016,420844,324,REVENUE,RADPHONE LTD,101671
North East Lincolnshire Council,http://statistics.data.gov.uk/id/local-authority/00FC),Deputy Chief Executive,Ad Environment,Grounds And Street Cleansing,Private Contractors,Contract Payments,PH105,26/07/2016,421586,5000,REVENUE,IMMINGHAM TOWN COUNCIL,101597
North East Lincolnshire Council,http://statistics.data.gov.uk/id/local-authority/00FC),Deputy Chief Executive,Ad Environment,Grounds And Street Cleansing,Private Contractors,Contract Payments,PH105,26/07/2016,421586,27500,REVENUE,IMMINGHAM TOWN COUNCIL,101597
North East Lincolnshire Council,http://statistics.data.gov.uk/id/local-authority/00FC),Deputy Chief Executive,Ad Environment,Grounds And Street Cleansing,Private Contractors,Third Party Prov - Private,PH101,04/07/2016,417844,1638,REVENUE,VIKINGS BOWLING CLUB,129720
North East Lincolnshire Council,http://statistics.data.gov.uk/id/local-authority/00FC),Deputy Chief Executive,Ad Environment,Grounds And Street Cleansing,Private Contractors,Third Party Prov - Private,PH101,14/07/2016,417047,2070,REVENUE,ONEWAY TM LIMITED,128602
North East Lincolnshire Council,http://statistics.data.gov.uk/id/local-authority/00FC),Deputy Chief Executive,Ad Environment,Grounds And Street Cleansing,Private Contractors,Third Party Prov - Private,PH101,18/07/2016,417832,1475,REVENUE,HARROQUIP PUMP SYSTEMS,103412
North East Lincolnshire Council,http://statistics.data.gov.uk/id/local-authority/00FC),Deputy Chief Executive,Ad Environment,Grounds And Street Cleansing,Equip / Furniture / Materials,Equipment - Purchase,LA101,19/07/2016,418993,375,REVENUE,CROMWELL POLYTHENE LTD,101183
North East Lincolnshire Council,http://statistics.data.gov.uk/id/local-authority/00FC),Deputy Chief Executive,Ad Environment,Grounds And Street Cleansing,Equip / Furniture / Materials,Equipment - Purchase,LA101,19/07/2016,418993,1611,REVENUE,CROMWELL POLYTHENE LTD,101183
North East Lincolnshire Council,http://statistics.data.gov.uk/id/local-authority/00FC),Deputy Chief Executive,Ad Environment,Grounds And Street Cleansing,Clothes Uniforms And Laundry,Protective Clothing,LC101,18/07/2016,417949,420,REVENUE,WESTBURY INDUSTRIAL SUPPLIES LTD,102378
North East Lincolnshire Council,http://statistics.data.gov.uk/id/local-authority/00FC),Deputy Chief Executive,Ad Environment,Grounds And Street Cleansing,Communications And Computing,Telephones,LF112,21/07/2016,420844,264,REVENUE,RADPHONE LTD,101671
North East Lincolnshire Council,http://statistics.data.gov.uk/id/local-authority/00FC),Deputy Chief Executive,Ad Environment,Grounds And Street Cleansing,Private Contractors,Contract Payments,PH105,26/07/2016,421586,15000,REVENUE,IMMINGHAM TOWN COUNCIL,101597
North East Lincolnshire Council,http://statistics.data.gov.uk/id/local-authority/00FC),Deputy Chief Executive,Ad Environment,Grounds And Street Cleansing,Rep Alterations Maint Building,Buildings - Repairs And Maint,GA102,18/07/2016,417404,1270,REVENUE,HARROQUIP PUMP SYSTEMS,103412
North East Lincolnshire Council,http://statistics.data.gov.uk/id/local-authority/00FC),Deputy Chief Executive,Ad Environment,Grounds And Street Cleansing,Rep Alterations Maint Building,Buildings - Repairs And Maint,GA102,18/07/2016,417457,9461.75,REVENUE,BCJ CONSTRUCTION LTD,112224
North East Lincolnshire Council,http://statistics.data.gov.uk/id/local-authority/00FC),Deputy Chief Executive,Ad Environment,Grounds And Street Cleansing,Rep Alterations Maint Building,Buildings - Repairs And Maint,GA102,19/07/2016,420476,600,REVENUE,BSB SERVICES,102305
North East Lincolnshire Council,http://statistics.data.gov.uk/id/local-authority/00FC),Deputy Chief Executive,Ad Environment,Grounds And Street Cleansing,Rep Alterations Maint Building,Buildings - Repairs And Maint,GA102,18/07/2016,417864,860,REVENUE,BCJ CONSTRUCTION LTD,112224
North East Lincolnshire Council,http://statistics.data.gov.uk/id/local-authority/00FC),Deputy Chief Executive,Ad Environment,Grounds And Street Cleansing,Rents,Rent,GC101,05/07/2016,417919,736.5,REVENUE,ASSOCIATED BRITISH PORTS,100834
North East Lincolnshire Council,http://statistics.data.gov.uk/id/local-authority/00FC),Deputy Chief Executive,Ad Environment,Neighbourhood Serv Mgmt A/C,Print Stationery / Gen Off Exp,Printing And Stationery,LD103,14/07/2016,419663,250,REVENUE,PAUL GOLDING,127647
North East Lincolnshire Council,http://statistics.data.gov.uk/id/local-authority/00FC),Deputy Chief Executive,Ad Environment,Neighbourhood Serv Mgmt A/C,Grants And Subscriptions,Subscriptions,LJ101,12/07/2016,419353,3376,REVENUE,APSE,101174
North East Lincolnshire Council,http://statistics.data.gov.uk/id/local-authority/00FC),Deputy Chief Executive,Ad Environment,Neighbourhood Serv Mgmt A/C,Consultancy,Consultancy,PL101,11/07/2016,419205,10000,REVENUE,THE BEECH CENTRE,128323
North East Lincolnshire Council,http://statistics.data.gov.uk/id/local-authority/00FC),Deputy Chief Executive,Ad Environment,Waste Services,Equip / Furniture / Materials,Promotions,LA124,21/07/2016,420843,5852,REVENUE,SUSSEX PROMOTIONS LTD,127774
North East Lincolnshire Council,http://statistics.data.gov.uk/id/local-authority/00FC),Deputy Chief Executive,Ad Environment,Waste Services,Clothes Uniforms And Laundry,Protective Clothing,LC101,26/07/2016,420813,253.37,REVENUE,SORBUS INTERNATIONAL LTD,122947
North East Lincolnshire Council,http://statistics.data.gov.uk/id/local-authority/00FC),Deputy Chief Executive,Ad Environment,Waste Services,Clothes Uniforms And Laundry,Protective Clothing,LC101,26/07/2016,420813,350.82,REVENUE,SORBUS INTERNATIONAL LTD,122947
North East Lincolnshire Council,http://statistics.data.gov.uk/id/local-authority/00FC),Deputy Chief Executive,Ad Environment,Waste Services,Clothes Uniforms And Laundry,Protective Clothing,LC101,21/07/2016,419688,529.2,REVENUE,WESTBURY INDUSTRIAL SUPPLIES LTD,102378
North East Lincolnshire Council,http://statistics.data.gov.uk/id/local-authority/00FC),Deputy Chief Executive,Ad Environment,Waste Services,Clothes Uniforms And Laundry,Protective Clothing,LC101,21/07/2016,419688,352.8,REVENUE,WESTBURY INDUSTRIAL SUPPLIES LTD,102378
North East Lincolnshire Council,http://statistics.data.gov.uk/id/local-authority/00FC),Deputy Chief Executive,Ad Environment,Waste Services,Private Contractors,Third Party Prov - Private,PH101,19/07/2016,419360,6400,REVENUE,SLR CONSULTING LTD,129190
North East Lincolnshire Council,http://statistics.data.gov.uk/id/local-authority/00FC),Deputy Chief Executive,Ad Environment,Waste Disposal And Strategy,Rates,Rates,GD101,11/07/2016,419312,13294.75,REVENUE,NORTH EAST LINCOLNSHIRE COUNCIL,100894
North East Lincolnshire Council,http://statistics.data.gov.uk/id/local-authority/00FC),Deputy Chief Executive,Ad Environment,Waste Disposal And Strategy,Rates,Rates,GD101,11/07/2016,419311,5687,REVENUE,NORTH EAST LINCOLNSHIRE COUNCIL,100894
North East Lincolnshire Council,http://statistics.data.gov.uk/id/local-authority/00FC),Deputy Chief Executive,Ad Environment,Waste Disposal And Strategy,Private Contractors,Contract Payments,PH105,21/07/2016,421151,REDACTED COMMERCIALLY SENSITIVE ,REVENUE,NEWLINCS DEVELOPMENT LTD,101125
North East Lincolnshire Council,http://statistics.data.gov.uk/id/local-authority/00FC),Deputy Chief Executive,Ad Environment,Waste Disposal And Strategy,Private Contractors,Contract Payments Landfill Tax,PH106,21/07/2016,421151,REDACTED COMMERCIALLY SENSITIVE ,REVENUE,NEWLINCS DEVELOPMENT LTD,101125
North East Lincolnshire Council,http://statistics.data.gov.uk/id/local-authority/00FC),Deputy Chief Executive,Ad Environment,Community Protection,Private Contractors,Third Party Prov - Private,PH101,11/07/2016,419285,3520,REVENUE,SANGREAT KENNELS,103270
North East Lincolnshire Council,http://statistics.data.gov.uk/id/local-authority/00FC),Deputy Chief Executive,Ad Environment,Community Protection,Other Agencies,Statutory Burials,PJ147,26/07/2016,420769,1103.5,REVENUE,KETTLE FUNERAL DIRECTORS,108454
North East Lincolnshire Council,http://statistics.data.gov.uk/id/local-authority/00FC),Deputy Chief Executive,Ad Environment,Community Protection,Rates,Rates,GD101,11/07/2016,418989,3000.8,REVENUE,NORTH EAST LINCOLNSHIRE COUNCIL,100894
North East Lincolnshire Council,http://statistics.data.gov.uk/id/local-authority/00FC),Deputy Chief Executive,Ad Environment,Community Protection,Miscellaneous Expenses,Environmental/Health Analysis,LL120,25/07/2016,421545,550.5,REVENUE,EXOVA,120585
North East Lincolnshire Council,http://statistics.data.gov.uk/id/local-authority/00FC),Deputy Chief Executive,Ad Environment,Community Protection,Equip / Furniture / Materials,Goods For Resale,LA123,19/07/2016,418523,669.63,REVENUE,VIP SYSTEM LTD,101697
North East Lincolnshire Council,http://statistics.data.gov.uk/id/local-authority/00FC),Deputy Chief Executive,Ad Environment,Community Protection,Equip / Furniture / Materials,Goods For Resale,LA123,19/07/2016,418523,455.24,REVENUE,VIP SYSTEM LTD,101697
North East Lincolnshire Council,http://statistics.data.gov.uk/id/local-authority/00FC),Deputy Chief Executive,Ad Environment,Community Protection,Miscellaneous Expenses,Other Supplies & Services,LL110,19/07/2016,419674,261.25,REVENUE,INTELLIGENT DATA SYSTEMS (UK) LTD,128734
North East Lincolnshire Council,http://statistics.data.gov.uk/id/local-authority/00FC),Deputy Chief Executive,Ad Environment,Community Protection,Other Local Authorities,Third Pp - Other Local Auth,PC101,18/07/2016,417385,16360,REVENUE,EAST RIDING OF YORKSHIRE,100377
North East Lincolnshire Council,http://statistics.data.gov.uk/id/local-authority/00FC),Deputy Chief Executive,Ad Environment,Community Protection,Other Local Authorities,Third Pp - Other Local Auth,PC101,18/07/2016,417361,1670,REVENUE,EAST RIDING OF YORKSHIRE,100377
